Workbook

Sheet Planned Maint v6.2 CSV File (hidden)
H1: Contractor ###
A2: Code | B2: Short | C2: Element | D2: Section | E2: SubSection | F2: UOM | G2: Rate | H2: % | I2: Rate | J2: Medium
A3: 0011AA | B3: KERB:RENEW 127X254MM PCC KERB | C3: GROUNDWORKS | D3: Kerbs, Channels and Edges | E3: Kerbs - Precast Conctete | F3: LM | G3: 19.51 | H3: =SUMIF('Contractor##'!C:C,'Planned Maint v6.2 CSV File'!C:C,'Contractor##'!F:F) -> -0.1777 | I3: =(1+H3)*G3 -> 16.043073 | J3: Kerb:Renew precast concrete kerb, straight or curved by carefully taking up existing kerb and haunching, remove spoil, clean up concrete bed, supply and lay new 127x254mm precast concrete kerb and haunch to both sides including pointing, formwork and make good to existing finishes.
A4: 0011AB | B4: KERB:LAY NEW 127X254MM PCC KERB | C4: GROUNDWORKS | D4: Kerbs, Channels and Edges | E4: Kerbs - Precast Conctete | F4: LM | G4: 27.02 | H4: =SUMIF('Contractor##'!C:C,'Planned Maint v6.2 CSV File'!C:C,'Contractor##'!F:F) -> -0.1777 | I4: =(1+H4)*G4 -> 22.218546 | J4: Kerb:Excavate, remove waste and debris, subsequently backfill as necessary, level and compact bottom of excavations, supply and lay 127x254mm precast concrete kerb, straight or curved, on and including 200x100mm concrete bed and haunch both sides and pointing, all necessary formwork and make good to existing finishes.
A5: 0011AC | B5: KERB:REBED ANY TYPE OF PCC KERB | C5: GROUNDWORKS | D5: Kerbs, Channels and Edges | E5: Kerbs - Precast Conctete | F5: LM | G5: 15.64 | H5: =SUMIF('Contractor##'!C:C,'Planned Maint v6.2 CSV File'!C:C,'Contractor##'!F:F) -> -0.1777 | I5: 12.860772 | J5: Kerb:Rebed precast concrete kerb, straight or curved on plan, by carefully taking up existing kerb and haunching, remove waste and debris, clean up concrete bed and bed and haunch to existing 127x254mm precast concrete kerb to both sides including pointing, formwork and make good to existing finishes.
A6: 0013AA | B6: CHANNEL:RENEW NE 250X125MM | C6: GROUNDWORKS | D6: Kerbs, Channels and Edges | E6: Channels - Precast Conctete | F6: LM | G6: 19.39 | H6: =SUMIF('Contractor##'!C:C,'Planned Maint v6.2 CSV File'!C:C,'Contractor##'!F:F) -> -0.1777 | I6: 15.944397 | J6: Channel:Renew PCC channel, take up existing including haunching, remove spoil, clean up existing bed, supply and lay new up to 250x125mm PCC channel including haunch both sides, pointing, formwork and make good to existing finishes.
A7: 0013AB | B7: CHANNEL:REBED NE 250X125MM | C7: GROUNDWORKS | D7: Kerbs, Channels and Edges | E7: Channels - Precast Conctete | F7: LM | G7: 15.64 | H7: =SUMIF('Contractor##'!C:C,'Planned Maint v6.2 CSV File'!C:C,'Contractor##'!F:F) -> -0.1777 | I7: 12.860772 | J7: Channel:Rebed precast concrete channel, take up existing including haunching, remove waste and debris, clean up existing bed, and clean and relay ne 250x125mm precast concrete channel including haunch both sides, pointing, formwork and make good to existing finishes.
A8: 0015AA | B8: EDGING:RENEW 50X152MM PCC EDGING | C8: GROUNDWORKS | D8: Kerbs, Channels and Edges | E8: Edgings - Precast Conctete | F8: LM | G8: 14.2 | H8: =SUMIF('Contractor##'!C:C,'Planned Maint v6.2 CSV File'!C:C,'Contractor##'!F:F) -> -0.1777 | I8: 11.67666 | J8: Edging:Renew precast concrete edging, straight or curved by carefully taking up existing edging and haunching, remove spoil, clean up concrete bed, supply and bed up to 50x152mm precast concrete edging, haunch both sides, point including all formwork and make good to finishes.
A9: 0015AB | B9: EDGING:RENEW 25X150MM TIMBER | C9: GROUNDWORKS | D9: Kerbs, Channels and Edges | E9: Edgings - Precast Conctete | F9: LM | G9: 5.91 | H9: =SUMIF('Contractor##'!C:C,'Planned Maint v6.2 CSV File'!C:C,'Contractor##'!F:F) -> -0.1777 | I9: 4.859793 | J9: Edging:Renew or supply and fix new 25x150mm tanalised softwood edging board to and including 50x50x600mm long tanalised pegs at 900mm centres driven firmly into the ground including all necessary excavation and make good to existing finishes.
A10: 0015AC | B10: EDGING:LAY 50X152MM PCC EDGING | C10: GROUNDWORKS | D10: Kerbs, Channels and Edges | E10: Edgings - Timber | F10: LM | G10: 20.56 | H10: =SUMIF('Contractor##'!C:C,'Planned Maint v6.2 CSV File'!C:C,'Contractor##'!F:F) -> -0.1777 | I10: 16.906488 | J10: Edging:Excavate, remove waste and debris, backfill as necessary, level and compact bottom of excavations lay concrete bed 200x100mm and supply and lay 50x152mm precast concrete edging, straight or curved, haunch to both sides, point including all formwork and make good to existing finishes.
A11: 0015AD | B11: EDGING:REBED STRAIGHT AND CURVED PCC EDGING | C11: GROUNDWORKS | D11: Kerbs, Channels and Edges | E11: Edgings - Precast Conctete | F11: LM | G11: 12.13 | H11: =SUMIF('Contractor##'!C:C,'Planned Maint v6.2 CSV File'!C:C,'Contractor##'!F:F) -> -0.1777 | I11: 9.974499 | J11: Edging:Rebed any precast concrete edging, straight or curved on plan, by carefully taking up existing edging and haunching, remove waste and debris, clean up concrete bed and edging and relay including haunch both sides, point including all formwork and make good to existing finishes.
A12: 0030AA | B12: PATH:EXCAVATE LAY NE 100MM CONCRETE BED | C12: GROUNDWORKS | D12: Paths and Pavings | E12: Paving - Insitu Conctete | F12: SM | G12: 58.8 | H12: =SUMIF('Contractor##'!C:C,'Planned Maint v6.2 CSV File'!C:C,'Contractor##'!F:F) -> -0.1777 | I12: 48.35124 | J12: Path:Excavate 250mm below required finished level, remove waste and debris, level and compact bottoms of excavations and fill, 150mm hardcore bed, blinded and ne 100mm concrete trowelled smooth including dishing to gullies and the like and all formwork.
A13: 0030AB | B13: PATH:RENEW NE 100MM CONCRETE BED AND SUB-BASE | C13: GROUNDWORKS | D13: Kerbs, Channels and Edges | E13: Edgings - Timber | F13: SM | G13: 62.78 | H13: =SUMIF('Contractor##'!C:C,'Planned Maint v6.2 CSV File'!C:C,'Contractor##'!F:F) -> -0.1777 | I13: 51.623994 | J13: Path:Renew concrete path by breaking up existing concrete and excavating 250mm below existing level, remove waste and debris, fill soft spots, level and compact bottoms of excavations and fill, 150mm hardcore bed, blinded and ne 100mm concrete trowelled smooth including dishing to gullies and the like and all formwork
A14: 0030AC | B14: FINISH:EXTRA FOR NON-SLIP FINISH TO PATH | C14: GROUNDWORKS | D14: Paths and Pavings | E14: Paving - Insitu Conctete | F14: SM | G14: 3.22 | H14: =SUMIF('Contractor##'!C:C,'Planned Maint v6.2 CSV File'!C:C,'Contractor##'!F:F) -> -0.1777 | I14: 2.647806 | J14: Finish:Extra for non-slip surface to concrete- carborundum grains at the rate of 1kg/sm.
A15: 0030BA | B15: DRIVE:RENEW 100MM CONCRETE BED AND SUB-BASE | C15: GROUNDWORKS | D15: Paths and Pavings | E15: Paving - Insitu Conctete | F15: SM | G15: 87.34 | H15: =SUMIF('Contractor##'!C:C,'Planned Maint v6.2 CSV File'!C:C,'Contractor##'!F:F) -> -0.1777 | I15: 71.819682 | J15: Drive:Renew concrete drive or hardstanding by breaking up existing concrete and excavating 450mm below existing level, remove spoil, fill soft spots, level or grade and compact bottoms of excavations and fill, 350mm hardcore bed, blinded and 100mm concrete with mesh reinforcement, surface tamped or trowelled smooth including dishing to gullies and the like and all formwork.
A16: 0030CA | B16: PATH:REMOVE AND INFILL WITH TOPSOIL | C16: GROUNDWORKS | D16: Paths and Pavings | E16: Paving - Insitu Conctete | F16: SM | G16: 42.93 | H16: =SUMIF('Contractor##'!C:C,'Planned Maint v6.2 CSV File'!C:C,'Contractor##'!F:F) -> -0.1777 | I16: 35.301339 | J16: Path:Break up and remove any thickness existing path and bed under and remove waste and debris, import topsoil and deposit to make up levels and grade to suit existing contours.
A17: 0050AA | B17: PAVING:RENEW 70MM MACADAM AND 75MM SUB-BASE | C17: GROUNDWORKS | D17: Paths and Pavings | E17: Paving - Coated Macadam | F17: SM | G17: 41.51 | H17: =SUMIF('Contractor##'!C:C,'Planned Maint v6.2 CSV File'!C:C,'Contractor##'!F:F) -> -0.1777 | I17: 34.133673 | J17: Paving:Renew macadam by breaking up existing paving and excavations 145mm below existing level, remove spoil, fill soft spots, level and compact bottoms of excavations and fill in layers, 75mm crusher run of broken stone, blinding, 50mm base course of 20mm nominal size open textured macadam and 20mm wearing course of 6mm nominal size medium textured macadam laid to falls, crossfalls and slopes including joints to any existing finishes.
A18: 0050AB | B18: MACADAM:EXCAVATE AND LAY 70MM PAVING | C18: GROUNDWORKS | D18: Paths and Pavings | E18: Paving - Coated Macadam | F18: SM | G18: 48.12 | H18: =SUMIF('Contractor##'!C:C,'Planned Maint v6.2 CSV File'!C:C,'Contractor##'!F:F) -> -0.1777 | I18: 39.569076 | J18: Macadam:Excavate 145mm below required finished level, remove waste and debris, level and compact bottoms of excavations and fill in layers, 75mm crusher run of broken stone blinding, 50mm base course of 20mm nominal size open-textured macadam and 20mm wearing course of 6mm nominal medium textured macadam laid to falls, crossfalls and slopes.
A19: 0050BA | B19: PAVING:RENEW 60MM MACADAM AND 140MM SUB-BASE | C19: GROUNDWORKS | D19: Paths and Pavings | E19: Paving - Coated Macadam | F19: SM | G19: 47.47 | H19: =SUMIF('Contractor##'!C:C,'Planned Maint v6.2 CSV File'!C:C,'Contractor##'!F:F) -> -0.1777 | I19: 39.034581 | J19: Paving:Renew macadam by breaking up existing paving and excavations 200mm below existing level, remove spoil, fill soft spots, level or grade and compact bottoms of excavations and fill in layers, 140mm bed of granular sub-base material, blinding, 20mm dense basecourse macadam to a depth of 40mm, and a 6mm dense wearing course macadam to a depth of 20mm laid to falls, crossfalls and slopes including joints to any existing finishes.
A20: 0050CA | B20: PAVING:RENEW 60MM MACADAM SURFACING | C20: GROUNDWORKS | D20: Paths and Pavings | E20: Paving - Coated Macadam | F20: SM | G20: 28.02 | H20: =SUMIF('Contractor##'!C:C,'Planned Maint v6.2 CSV File'!C:C,'Contractor##'!F:F) -> -0.1777 | I20: 23.040846 | J20: Paving:Renew macadam by breaking up existing surfacing,remove spoil, fill soft spots or pot holes with granular material, level or grade and compact surface of sub-base, lay 20mm dense base course macadam to a depth of 40mm, and a 6mm dense wearing course macadam to a depth of 20mm laid to falls, crossfalls and slopes including joints to any existing finishes.
A21: 0050DA | B21: PAVING:RENEW 90MM MACADAM SURFACING | C21: GROUNDWORKS | D21: Paths and Pavings | E21: Paving - Coated Macadam | F21: SM | G21: 44.44 | H21: =SUMIF('Contractor##'!C:C,'Planned Maint v6.2 CSV File'!C:C,'Contractor##'!F:F) -> -0.1777 | I21: 36.543012 | J21: Paving:Renew macadam by breaking up existing surfacing,remove spoil, fill soft spots or pot holes with granular material, level or grade and compact surface of sub-base, lay 20mm dense base course macadam to a depth of 65mm, and a 6mm dense wearing course macadam to a depth of 25mm laid to falls, crossfalls and slopes including joints to any existing finishes.
A22: 0050DB | B22: MACADAM:EXCAVATE AND LAY 90MM PAVING | C22: GROUNDWORKS | D22: Paths and Pavings | E22: Paving - Coated Macadam | F22: SM | G22: 51.12 | H22: =SUMIF('Contractor##'!C:C,'Planned Maint v6.2 CSV File'!C:C,'Contractor##'!F:F) -> -0.1777 | I22: 42.035976 | J22: Macadam:Excavate 340mm below required finished level, remove waste and debris, level and compact bottoms of excavations and fill in layers, 250mm crusher run of broken stone blinding, 65mm base course of 20mm nominal size open-textured macadam and 25mm wearing course of 6mm nominal medium textured macadam laid to falls, crossfalls and slopes.
A23: 0060AA | B23: LINE:FORM THERMOPLASTIC - 50MM | C23: GROUNDWORKS | D23: Paths and Pavings | E23: Road Markings - Lines | F23: LM | G23: 4.26 | H23: =SUMIF('Contractor##'!C:C,'Planned Maint v6.2 CSV File'!C:C,'Contractor##'!F:F) -> -0.1777 | I23: 3.502998 | J23: Line:Form 50mm thermoplastic line to road surface including setting out on site
A24: 0060AB | B24: LINE:FORM THERMOPLASTIC - 100MM | C24: GROUNDWORKS | D24: Paths and Pavings | E24: Road Markings - Lines | F24: LM | G24: 6.91 | H24: =SUMIF('Contractor##'!C:C,'Planned Maint v6.2 CSV File'!C:C,'Contractor##'!F:F) -> -0.1777 | I24: 5.682093 | J24: Line:Form 100mm thermoplastic line to road surface including setting out on site
A25: 0060AC | B25: LINE:FORM ROAD PAINT- 50MM | C25: GROUNDWORKS | D25: Paths and Pavings | E25: Road Markings - Lines | F25: LM | G25: 3.22 | H25: =SUMIF('Contractor##'!C:C,'Planned Maint v6.2 CSV File'!C:C,'Contractor##'!F:F) -> -0.1777 | I25: 2.647806 | J25: Line:Form 50mm Road Marking Paint line to road surface including setting out on site
A26: 0060AD | B26: LINE:FORM ROAD PAINT- 100MM | C26: GROUNDWORKS | D26: Paths and Pavings | E26: Road Markings - Lines | F26: LM | G26: 4.89 | H26: =SUMIF('Contractor##'!C:C,'Planned Maint v6.2 CSV File'!C:C,'Contractor##'!F:F) -> -0.1777 | I26: 4.021047 | J26: Line:Form 100mm Road Marking Paint line to road surface including setting out on site
A27: 0060AE | B27: LINE:BURN OFF 50MM WIDE | C27: GROUNDWORKS | D27: Paths and Pavings | E27: Road Markings - Lines | F27: LM | G27: 4.37 | H27: =SUMIF('Contractor##'!C:C,'Planned Maint v6.2 CSV File'!C:C,'Contractor##'!F:F) -> -0.1777 | I27: 3.593451 | J27: Line: Burn off and completely opliteraterate 50 mm line
A28: 0060AF | B28: LINE:BURN OFF 100MM WIDE | C28: GROUNDWORKS | D28: Paths and Pavings | E28: Road Markings - Lines | F28: LM | G28: 5.62 | H28: =SUMIF('Contractor##'!C:C,'Planned Maint v6.2 CSV File'!C:C,'Contractor##'!F:F) -> -0.1777 | I28: 4.621326 | J28: Line: Burn off and completely opliteraterate 100 mm line
A29: 0061AA | B29: WORD:FORM IN THERMOPLASTIC -50MM LINES-PER LETTER | C29: GROUNDWORKS | D29: Paths and Pavings | E29: Road Markings - Symbols, Words | F29: NO | G29: 20 | H29: =SUMIF('Contractor##'!C:C,'Planned Maint v6.2 CSV File'!C:C,'Contractor##'!F:F) -> -0.1777 | I29: 16.446 | J29: Word:Form letters of words (Exit, Welcome etc) in 50mm thermoplastic line to road surface including setting out on site- per leter of word
A30: 0061AB | B30: WORD:FORM IN THERMOPLASTIC -100MM LINES-PER LETTER | C30: GROUNDWORKS | D30: Paths and Pavings | E30: Road Markings - Symbols, Words | F30: NO | G30: 35.87 | H30: =SUMIF('Contractor##'!C:C,'Planned Maint v6.2 CSV File'!C:C,'Contractor##'!F:F) -> -0.1777 | I30: 29.495901 | J30: Word:Form letters of words (Exit, Welcome etc) in 100mm thermoplastic line to road surface including setting out on site- per letter of word
A31: 0061AC | B31: ARROW:FORM IN THERMOPLASTIC - 50MM | C31: GROUNDWORKS | D31: Paths and Pavings | E31: Road Markings - Symbols, Words | F31: NO | G31: 27.75 | H31: =SUMIF('Contractor##'!C:C,'Planned Maint v6.2 CSV File'!C:C,'Contractor##'!F:F) -> -0.1777 | I31: 22.818825 | J31: Line:Form Directional Arrow in 50mm thermoplastic line to road surface including setting out on site- standard size
A32: 0061AD | B32: ARROW:FORM IN THERMOPLASTIC - 100MM | C32: GROUNDWORKS | D32: Paths and Pavings | E32: Road Markings - Symbols, Words | F32: NO | G32: 48.12 | H32: =SUMIF('Contractor##'!C:C,'Planned Maint v6.2 CSV File'!C:C,'Contractor##'!F:F) -> -0.1777 | I32: 39.569076 | J32: Line:Form Directional Arrow in 100mm thermoplastic line to road surface including setting out on site- standard size
A33: 0061AE | B33: SYMBOL:FORM DISABLED IN THERMOPLASTIC | C33: GROUNDWORKS | D33: Paths and Pavings | E33: Road Markings - Symbols, Words | F33: NO | G33: 34.75 | H33: =SUMIF('Contractor##'!C:C,'Planned Maint v6.2 CSV File'!C:C,'Contractor##'!F:F) -> -0.1777 | I33: 28.574925 | J33: Symbol:Form Disabled symbol in thermoplastic to car park surface including setting out on site- standard size
A34: 0061AF | B34: SYMBOL:FORM MOTHER AND CHILD IN THERMOPLASTIC | C34: GROUNDWORKS | D34: Paths and Pavings | E34: Road Markings - Symbols, Words | F34: NO | G34: 34.75 | H34: =SUMIF('Contractor##'!C:C,'Planned Maint v6.2 CSV File'!C:C,'Contractor##'!F:F) -> -0.1777 | I34: 28.574925 | J34: Symbol:Form Mother and Child symbol in thermoplastic to car park surface including setting out on site- standard size
A35: 0070AA | B35: PAVING:LIFT AND REBED PCC PAVING FLAGS | C35: GROUNDWORKS | D35: Paths and Pavings | E35: Paving - Precast Concrete Flag | F35: SM | G35: 8.37 | H35: =SUMIF('Contractor##'!C:C,'Planned Maint v6.2 CSV File'!C:C,'Contractor##'!F:F) -> -0.1777 | I35: 6.882651 | J35: Paving:Lift any size existing precast concrete paving flags, fill and compact hardcore to soft spots and rebed existing flags on 25mm bed of cement mortar (1:4) and point up joints.
A36: 0070BA | B36: PAVING:RENEW NON STANDARD PCC PAVING FLAGS - 50MM | C36: GROUNDWORKS | D36: Paths and Pavings | E36: Paving - Precast Concrete Flag | F36: SM | G36: 48.11 | H36: =SUMIF('Contractor##'!C:C,'Planned Maint v6.2 CSV File'!C:C,'Contractor##'!F:F) -> -0.1777 | I36: 39.560853 | J36: Paving:Lift remnants of existing non-standard size precast concrete paving flags, remove from site to approved tip, fill and compact hardcore to soft spots and lay 50mm non-standard size precast concrete paving flags on 25mm bed of cement mortar (1:4), point up joints including any additional cutting and fitting to suit.
A37: 0070BC | B37: PAVING:RENEW STANDARD PCC PAVING FLAGS | C37: GROUNDWORKS | D37: Paths and Pavings | E37: Paving - Precast Concrete Flag | F37: SM | G37: 28.53 | H37: =SUMIF('Contractor##'!C:C,'Planned Maint v6.2 CSV File'!C:C,'Contractor##'!F:F) -> -0.1777 | I37: 23.460219 | J37: Paving:Lift remnants of existing precast concrete paving flags, remove from site to approved tip, fill and compact hardcore to soft spots and lay 50mm standard size precast concrete paving flags on 25mm bed of cement mortar (1:4), point up joints including any additional cutting and fitting to suit.
A38: 0070BD | B38: FLAG:EXCAVATE AND LAY NEW PRECAST CONCRETE – 50 MM | C38: GROUNDWORKS | D38: Paths and Pavings | E38: Paving - Precast Concrete Flag | F38: SM | G38: 45.94 | H38: =SUMIF('Contractor##'!C:C,'Planned Maint v6.2 CSV File'!C:C,'Contractor##'!F:F) -> -0.1777 | I38: 37.776462 | J38: Flag:Excavate 150mm below required finished level, remove waste and debris, and fill in layers, including compacting 75mm crusher run of broken stone blinding and lay 50mm standard size precast concrete paving flags on 25mm bed of cement mortar (1:4) including point up joints and all cutting and dishing to gullies, covers and the like.
A39: 0070BE | B39: FLAG:EXCAVATE AND LAY NEW PRECAST CONCRETE - 63MM | C39: GROUNDWORKS | D39: Paths and Pavings | E39: Paving - Precast Concrete Flag | F39: SM | G39: 47.94 | H39: =SUMIF('Contractor##'!C:C,'Planned Maint v6.2 CSV File'!C:C,'Contractor##'!F:F) -> -0.1777 | I39: 39.421062 | J39: Flag:Excavate 150mm below required finished level, remove waste and debris, and fill in layers, including compacting 75mm crusher run of broken stone blinding and lay 63mm standard size precast concrete paving flags on 25mm bed of cement mortar (1:4) including point up joints and all cutting and dishing to gullies, covers and the like.
A40: 0070BF | B40: FLAG:LIFT AND REBED SINGLE PCC PAVING | C40: GROUNDWORKS | D40: Paths and Pavings | E40: Paving - Precast Concrete Flag | F40: NO | G40: 6.68 | H40: =SUMIF('Contractor##'!C:C,'Planned Maint v6.2 CSV File'!C:C,'Contractor##'!F:F) -> -0.1777 | I40: 5.492964 | J40: Flag:Lift any size existing precast concrete paving flag, fill and compact hardcore to soft spots and rebed existing flag on 25mm bed of cement mortar (1:4) and point up joints.
A41: 0070BG | B41: PAVING:RENEW NON STANDARD PCC PAVING FLAGS - 63MM | C41: GROUNDWORKS | D41: Paths and Pavings | E41: Paving - Precast Concrete Flag | F41: SM | G41: 44.07 | H41: =SUMIF('Contractor##'!C:C,'Planned Maint v6.2 CSV File'!C:C,'Contractor##'!F:F) -> -0.1777 | I41: 36.238761 | J41: Paving:Lift remnants of existing non-standard size precast concrete paving flags, remove from site to approved tip, fill and compact hardcore to soft spots and lay 63mm non-standard size precast concrete paving flags on 25mm bed of cement mortar (1:4), point up joints including any additional cutting and fitting to suit.
A42: 0070BH | B42: FLAG:RENEW SINGLE PCC PAVING FLAG-50MM | C42: GROUNDWORKS | D42: Paths and Pavings | E42: Paving - Precast Concrete Flag | F42: NO | G42: 10.67 | H42: =SUMIF('Contractor##'!C:C,'Planned Maint v6.2 CSV File'!C:C,'Contractor##'!F:F) -> -0.1777 | I42: 8.773941 | J42: Flag:Lift remnants of existing 50mm standard size precast concrete paving flag, remove waste and debris, fill and compact hardcore to soft spots and lay new flag on 25mm bed of cement mortar (1:4), point up joints including any additional cutting and fitting to suit.
A43: 0070BJ | B43: FLAG:RENEW SINGLE PCC PAVING FLAG-63MM | C43: GROUNDWORKS | D43: Paths and Pavings | E43: Paving - Precast Concrete Flag | F43: NO | G43: 11.39 | H43: =SUMIF('Contractor##'!C:C,'Planned Maint v6.2 CSV File'!C:C,'Contractor##'!F:F) -> -0.1777 | I43: 9.365997 | J43: Flag:Lift remnants of existing 63mm standard size precast concrete paving flag, remove waste and debris, fill and compact hardcore to soft spots and lay new flag on 25mm bed of cement mortar (1:4), point up joints including any additional cutting and fitting to suit.
A44: 0070BK | B44: PAVING:RENEW STANDARD PCC PAVING FLAGS-63MM | C44: GROUNDWORKS | D44: Paths and Pavings | E44: Paving - Precast Concrete Flag | F44: SM | G44: 30.73 | H44: =SUMIF('Contractor##'!C:C,'Planned Maint v6.2 CSV File'!C:C,'Contractor##'!F:F) -> -0.1777 | I44: 25.269279 | J44: Paving:Lift remnants of existing precast concrete paving flags, remove from site to approved tip, fill and compact hardcore to soft spots and lay 63mm standard size precast concrete paving flags on 25mm bed of cement mortar (1:4), point up joints including any additional cutting and fitting to suit.
A45: 0070CA | B45: PAVING:REGROUT PCC PAVING FLAGS | C45: GROUNDWORKS | D45: Paths and Pavings | E45: Paving - Precast Concrete Flag | F45: SM | G45: 7.8 | H45: =SUMIF('Contractor##'!C:C,'Planned Maint v6.2 CSV File'!C:C,'Contractor##'!F:F) -> -0.1777 | I45: 6.41394 | J45: Paving:Regrout PCC paving, rake out joints, repoint with cement mortar (1:4).
A46: 0070CB | B46: PAVING:FILLET POINT JOINT TO WALL FLAGS | C46: GROUNDWORKS | D46: Paths and Pavings | E46: Paving - Precast Concrete Flag | F46: LM | G46: 1.69 | H46: =SUMIF('Contractor##'!C:C,'Planned Maint v6.2 CSV File'!C:C,'Contractor##'!F:F) -> -0.1777 | I46: 1.389687 | J46: Paving:Rake out existing and/or fillet point in cement mortar (1:4) joint between edges of paving and wall/abutment.
A47: 0071AA | B47: FLAG:EXCAVATE AND LAY NEW PCC TACTILE –50 MM | C47: GROUNDWORKS | D47: Paths and Pavings | E47: Paving - PCC Hazard Warning | F47: SM | G47: 53 | H47: =SUMIF('Contractor##'!C:C,'Planned Maint v6.2 CSV File'!C:C,'Contractor##'!F:F) -> -0.1777 | I47: 43.5819 | J47: Flag:Excavate 150mm below required finished level, remove waste and debris, and fill in layers, including compacting 75mm crusher run of broken stone blinding and lay 50mm standard size precast concrete Blister type Tactile paving flags on 25mm bed of cement mortar (1:4) including point up joints and all cutting and dishing to gullies, covers and the like.
A48: 0071AB | B48: FLAG:EXCAVATE AND LAY NEW PCC TACTILE – 63MM | C48: GROUNDWORKS | D48: Paths and Pavings | E48: Paving - PCC Hazard Warning | F48: SM | G48: 56 | H48: =SUMIF('Contractor##'!C:C,'Planned Maint v6.2 CSV File'!C:C,'Contractor##'!F:F) -> -0.1777 | I48: 46.0488 | J48: Flag:Excavate 150mm below required finished level, remove waste and debris, and fill in layers, including compacting 75mm crusher run of broken stone blinding and lay 63mm standard size precast concrete Blister Type Tactile paving flags on 25mm bed of cement mortar (1:4) including point up joints and all cutting and dishing to gullies, covers and the like.
A49: 0071AC | B49: FLAG:EXCAVATE AND LAY NEW PCC HAZARD STRIP –50 MM | C49: GROUNDWORKS | D49: Paths and Pavings | E49: Paving - PCC Hazard Warning | F49: LM | G49: 33.62 | H49: =SUMIF('Contractor##'!C:C,'Planned Maint v6.2 CSV File'!C:C,'Contractor##'!F:F) -> -0.1777 | I49: 27.645726 | J49: Flag:Excavate 150mm below required finished level, remove waste and debris, and fill in layers, including compacting 75mm crusher run of broken stone blinding and lay n.e. 450mm wide strip of 50mm standard size precast concrete Corduroy type Hazard Warning paving flags on 25mm bed of cement mortar (1:4) including point up joints and all cutting and dishing to gullies, covers and the like.
A50: 0071AD | B50: FLAG:EXCAVATE AND LAY NEW PCC HAZARD STRIP – 63MM | C50: GROUNDWORKS | D50: Paths and Pavings | E50: Paving - PCC Hazard Warning | F50: LM | G50: 35.12 | H50: =SUMIF('Contractor##'!C:C,'Planned Maint v6.2 CSV File'!C:C,'Contractor##'!F:F) -> -0.1777 | I50: 28.879176 | J50: Flag:Excavate 150mm below required finished level, remove waste and debris, and fill in layers, including compacting 75mm crusher run of broken stone blinding and lay n.e. 450mm wide strip of 63mm standard size precast concrete Blister Type Tactile paving flags on 25mm bed of cement mortar (1:4) including point up joints and all cutting and dishing to gullies, covers and the like.
A51: 0071AE | B51: FLAG:RENEW SINGLE 50 MM PCC CORDUROY PAVING FLAG | C51: GROUNDWORKS | D51: Paths and Pavings | E51: Paving - PCC Hazard Warning | F51: NO | G51: 17.19 | H51: =SUMIF('Contractor##'!C:C,'Planned Maint v6.2 CSV File'!C:C,'Contractor##'!F:F) -> -0.1777 | I51: 14.135337 | J51: Flag:Lift remnants of existing 50mm standard Corduroy type Hazard Warning precast concrete paving flag, remove waste and debris, fill and compact hardcore to soft spots and lay new flag on 25mm bed of cement mortar (1:4), point up joints including any additional cutting and fitting to suit.
A52: 0071AF | B52: FLAG:RENEW SINGLE 50 MMPCC TACTILE PAVING FLAG | C52: GROUNDWORKS | D52: Paths and Pavings | E52: Paving - PCC Hazard Warning | F52: NO | G52: 15.14 | H52: =SUMIF('Contractor##'!C:C,'Planned Maint v6.2 CSV File'!C:C,'Contractor##'!F:F) -> -0.1777 | I52: 12.449622 | J52: Flag:Lift remnants of existing 50mm standard Blister type Tacktile precast concrete paving flag, remove waste and debris, fill and compact hardcore to soft spots and lay new flag on 25mm bed of cement mortar (1:4), point up joints including any additional cutting and fitting to suit.
A53: 0071AG | B53: FLAG:RENEW SINGLE 63 MM PCC CORDUROY PAVING FLAG | C53: GROUNDWORKS | D53: Paths and Pavings | E53: Paving - PCC Hazard Warning | F53: NO | G53: 19.19 | H53: =SUMIF('Contractor##'!C:C,'Planned Maint v6.2 CSV File'!C:C,'Contractor##'!F:F) -> -0.1777 | I53: 15.779937 | J53: Flag:Lift remnants of existing 50mm standard Corduroy type Hazard Warning precast concrete paving flag, remove waste and debris, fill and compact hardcore to soft spots and lay new flag on 25mm bed of cement mortar (1:4), point up joints including any additional cutting and fitting to suit.
A54: 0071AH | B54: FLAG:RENEW SINGLE 63MM PCC TACTILE PAVING FLAG | C54: GROUNDWORKS | D54: Paths and Pavings | E54: Paving - PCC Hazard Warning | F54: NO | G54: 16.26 | H54: =SUMIF('Contractor##'!C:C,'Planned Maint v6.2 CSV File'!C:C,'Contractor##'!F:F) -> -0.1777 | I54: 13.370598 | J54: Flag:Lift remnants of existing 50mm standard Blister type Tacktile precast concrete paving flag, remove waste and debris, fill and compact hardcore to soft spots and lay new flag on 25mm bed of cement mortar (1:4), point up joints including any additional cutting and fitting to suit.
A55: 0071AJ | B55: PAVING:RENEW TACTILE PCC PAVING FLAGS - 50MM | C55: GROUNDWORKS | D55: Paths and Pavings | E55: Paving - PCC Hazard Warning | F55: SM | G55: 36.54 | H55: =SUMIF('Contractor##'!C:C,'Planned Maint v6.2 CSV File'!C:C,'Contractor##'!F:F) -> -0.1777 | I55: 30.046842 | J55: Paving:Lift remnants of existing precast concrete paving flags, remove from site to approved tip, fill and compact hardcore to soft spots and lay 50mm standard Blister type Tactile precast concrete paving flags on 25mm bed of cement mortar (1:4), point up joints including any additional cutting and fitting to suit.
A56: 0071AK | B56: PAVING:RENEW TACTILE PCC PAVING FLAGS - 63MM | C56: GROUNDWORKS | D56: Paths and Pavings | E56: Paving - PCC Hazard Warning | F56: SM | G56: 38.61 | H56: =SUMIF('Contractor##'!C:C,'Planned Maint v6.2 CSV File'!C:C,'Contractor##'!F:F) -> -0.1777 | I56: 31.749003 | J56: Paving:Lift remnants of existing precast concrete paving flags, remove from site to approved tip, fill and compact hardcore to soft spots and lay 63mm standard Blister type Tactile precast concrete paving flags on 25mm bed of cement mortar (1:4), point up joints including any additional cutting and fitting to suit.
A57: 0071AL | B57: PAVING:RENEW PCC HAZARD STRIP –50 MM | C57: GROUNDWORKS | D57: Paths and Pavings | E57: Paving - PCC Hazard Warning | F57: LM | G57: 24.95 | H57: =SUMIF('Contractor##'!C:C,'Planned Maint v6.2 CSV File'!C:C,'Contractor##'!F:F) -> -0.1777 | I57: 20.516385 | J57: Paving:Lift remnants of existing precast concrete paving flags, remove from site to approved tip, fill and compact hardcore to soft spots and lay n.e. 450mm wide strip of 50mm standard size precast concrete Corduroy type Hazard Warning paving flags on 25mm bed of cement mortar (1:4) including point up joints and all cutting and dishing to gullies, covers and the like.
A58: 0071AM | B58: PAVING:RENEW PCC HAZARD STRIP –63 MM | C58: GROUNDWORKS | D58: Paths and Pavings | E58: Paving - PCC Hazard Warning | F58: LM | G58: 26 | H58: =SUMIF('Contractor##'!C:C,'Planned Maint v6.2 CSV File'!C:C,'Contractor##'!F:F) -> -0.1777 | I58: 21.3798 | J58: Paving:Lift remnants of existing precast concrete paving flags, remove from site to approved tip, fill and compact hardcore to soft spots and lay n.e. 450mm wide strip of 63mm standard size precast concrete Corduroy type Hazard Warning paving flags on 25mm bed of cement mortar (1:4) including point up joints and all cutting and dishing to gullies, covers and the like.
A59: 0090AA | B59: PAVING:REBED BRICK PAVING-MORTAR OR SAND | C59: GROUNDWORKS | D59: Paths and Pavings | E59: Paving - Brick | F59: SM | G59: 57.17 | H59: =SUMIF('Contractor##'!C:C,'Planned Maint v6.2 CSV File'!C:C,'Contractor##'!F:F) -> -0.1777 | I59: 47.010891 | J59: Paving:Take up loose brick paving, set aside, clean bed and bricks, and relay brick paving including jointing and pointing in cement mortar (1:4) or joint filling sand including all bonding.
A60: 0090BA | B60: PAVING:RENEW BRICK PAVING-MORTAR OR SAND | C60: GROUNDWORKS | D60: Paths and Pavings | E60: Paving - Brick | F60: SM | G60: 67 | H60: =SUMIF('Contractor##'!C:C,'Planned Maint v6.2 CSV File'!C:C,'Contractor##'!F:F) -> -0.1777 | I60: 55.0941 | J60: Paving:Renew brick paving including take up existing, remove suplus spoil, fill and compact hardcore to soft spots and lay new paving on 25mm bed of cement mortar (1:4) or 50mm sand bed including all pointing and cutting and bonding.
A61: 0090BB | B61: PAVING:LAY NEW BRICK PAVING-MORTAR OR SAND | C61: GROUNDWORKS | D61: Paths and Pavings | E61: Paving - Brick | F61: SM | G61: 84.33 | H61: =SUMIF('Contractor##'!C:C,'Planned Maint v6.2 CSV File'!C:C,'Contractor##'!F:F) -> -0.1777 | I61: 69.344559 | J61: Paving:Supply and lay new brick paving including excavate to level, lay 100mm hardcore bed and lay new paving on 25mm bed of cement mortar (1:4) or 50mm sand bed including all pointing and cutting and bonding.
A62: 0090CA | B62: PAVING:RENEW GRAVEL PAVING 30MM | C62: GROUNDWORKS | D62: Paths and Pavings | E62: Paving - Gravel | F62: SM | G62: 5.45 | H62: =SUMIF('Contractor##'!C:C,'Planned Maint v6.2 CSV File'!C:C,'Contractor##'!F:F) -> -0.1777 | I62: 4.481535 | J62: Paving:Renew gravel paving to paths and driveways ne 30mm thick including take up and clear away existing, supply, spread and level washed gravel to existing surfaces.
A63: 0090DA | B63: PAVING:RENEW HOGGIN PAVING 30MM | C63: GROUNDWORKS | D63: Paths and Pavings | E63: Paving - Hoggin | F63: SM | G63: 6.75 | H63: =SUMIF('Contractor##'!C:C,'Planned Maint v6.2 CSV File'!C:C,'Contractor##'!F:F) -> -0.1777 | I63: 5.550525 | J63: Paving:Renew gravel paving to paths and driveways ne 30mm thick including take up and clear away existing, supply, spread and level and compact natural hoggin to existing surfaces.
A64: 0091AA | B64: PAVING:REBED GRANITE SETT | C64: GROUNDWORKS | D64: Paths and Pavings | E64: Paving - Setts | F64: SM | G64: 51.78 | H64: =SUMIF('Contractor##'!C:C,'Planned Maint v6.2 CSV File'!C:C,'Contractor##'!F:F) -> -0.1777 | I64: 42.578694 | J64: Paving:Take up loose granite sett paving, set aside, clean bed and setts, lay and point setts in cement mortar (1:4) including all bonding.
A65: 0091BA | B65: PAVING:RENEW 150MM GRANITE SETT | C65: GROUNDWORKS | D65: Paths and Pavings | E65: Paving - Setts | F65: SM | G65: 91.45 | H65: =SUMIF('Contractor##'!C:C,'Planned Maint v6.2 CSV File'!C:C,'Contractor##'!F:F) -> -0.1777 | I65: 75.199335 | J65: Paving:Renew 150x150mmx150mm granite sett paving including take up existing and clear away, fill and compact hardcore to soft spots and lay newsetts on 30mm bed of cement mortar (1:4) including all pointing, cutting and bonding.
A66: 0091BB | B66: PAVING:RENEW 200MM GRANITE SETT | C66: GROUNDWORKS | D66: Paths and Pavings | E66: Paving - Setts | F66: SM | G66: 87.48 | H66: =SUMIF('Contractor##'!C:C,'Planned Maint v6.2 CSV File'!C:C,'Contractor##'!F:F) -> -0.1777 | I66: 71.934804 | J66: Paving:Renew 200x150mmx150mm granite sett paving including take up existing and clear away, fill and compact hardcore to soft spots and lay new setts on 30mm bed of cement mortar (1:4) including all pointing, cutting and bonding.
A67: 0091CA | B67: PAVING:RENEW RECLAIMED 150MM GRANITE SETT | C67: GROUNDWORKS | D67: Paths and Pavings | E67: Paving - Setts | F67: SM | G67: 75.76 | H67: =SUMIF('Contractor##'!C:C,'Planned Maint v6.2 CSV File'!C:C,'Contractor##'!F:F) -> -0.1777 | I67: 62.297448 | J67: Paving:Renew 150x150mmx150mm granite sett paving including take up existing and clear away, fill and compact hardcore to soft spots and lay reclaimed setts on 30mm bed of cement mortar (1:4) including all pointing, cutting and bonding.
A68: 0091CB | B68: PAVING:RENEW RECLAIMED 200MM GRANITE SETT | C68: GROUNDWORKS | D68: Paths and Pavings | E68: Paving - Setts | F68: SM | G68: 71.79 | H68: =SUMIF('Contractor##'!C:C,'Planned Maint v6.2 CSV File'!C:C,'Contractor##'!F:F) -> -0.1777 | I68: =(1+H68)*G68 -> 59.032917 | J68: Paving:Renew 200x150mmx150mm granite sett paving including take up existing and clear away, fill and compact hardcore to soft spots and lay reclaimed setts on 30mm bed of cement mortar(1:4) including all pointing, cutting and bonding.
A69: 0091DA | B69: PAVING:REBED ARTSTONE SETT | C69: GROUNDWORKS | D69: Paths and Pavings | E69: Paving - Artstone Setts | F69: SM | G69: 47.1 | H69: =SUMIF('Contractor##'!C:C,'Planned Maint v6.2 CSV File'!C:C,'Contractor##'!F:F) -> -0.1777 | I69: 38.73033 | J69: Paving:Take up loose artstone (tegula) sett paving, set aside, clean bed and setts, lay and point setts in cement mortar (1:4) including all bonding.
A70: 0091DB | B70: PAVING:RENEW 60MM ARTSTONE SETT | C70: GROUNDWORKS | D70: Paths and Pavings | E70: Paving - Artstone Setts | F70: SM | G70: 62.5 | H70: =SUMIF('Contractor##'!C:C,'Planned Maint v6.2 CSV File'!C:C,'Contractor##'!F:F) -> -0.1777 | I70: 51.39375 | J70: Paving:Renew random sized 60mm artstone (tegula) sett paving including take up existing and clear away, fill and compact hardcore to soft spots and lay newsetts on 30mm bed of cement mortar (1:4) including all pointing, cutting and bonding.
A71: 0091DC | B71: PAVING:RENEW 80MM ARTSTONE SETT | C71: GROUNDWORKS | D71: Paths and Pavings | E71: Paving - Artstone Setts | F71: SM | G71: 69.12 | H71: =SUMIF('Contractor##'!C:C,'Planned Maint v6.2 CSV File'!C:C,'Contractor##'!F:F) -> -0.1777 | I71: 56.837376 | J71: Paving:Renew random sized 80 mm artstone (tegula) sett paving including take up existing and clear away, fill and compact hardcore to soft spots and lay new setts on 30mm bed of cement mortar (1:4) including all pointing, cutting and bonding.
A72: 0092AA | B72: PAVING:REBED COBBLES | C72: GROUNDWORKS | D72: Paths and Pavings | E72: Paving - Cobbles | F72: SM | G72: 47.1 | H72: =SUMIF('Contractor##'!C:C,'Planned Maint v6.2 CSV File'!C:C,'Contractor##'!F:F) -> -0.1777 | I72: 38.73033 | J72: Paving:Take up existing cobble paving:50-75mm, set aside, clean off, relay, bedding 30mm thick in cement mortar (1:4) jointing to a height of two thirds of the cobble in dry mortar tightly butted, washed and brushed.
A73: 0092BA | B73: PAVING:RENEW COBBLES | C73: GROUNDWORKS | D73: Paths and Pavings | E73: Paving - Cobbles | F73: SM | G73: 67.04 | H73: =SUMIF('Contractor##'!C:C,'Planned Maint v6.2 CSV File'!C:C,'Contractor##'!F:F) -> -0.1777 | I73: 55.126992 | J73: Paving:Renew cobble paving including taking up existing and clear away, fill and compact hardcore to softspots and lay new cobble paving:50-75mm, bedding 30mm thick in cement mortar (1:4) jointing to a height of two thirds of the cobble in dry mortar tightly butted, washed and brushed.
A74: 0093AA | B74: PAVING:REBED INTERLOCK BLOCKS | C74: GROUNDWORKS | D74: Paths and Pavings | E74: Paving - Interlock Blocks | F74: SM | G74: 28.59 | H74: =SUMIF('Contractor##'!C:C,'Planned Maint v6.2 CSV File'!C:C,'Contractor##'!F:F) -> -0.1777 | I74: 23.509557 | J74: Paving:Take up loose interlocking paving blocks, set aside, clean blocks, make up levels and soft spots to sand bed as necessary, relay blocks including bonding, compacting with plate vibrator, jointing and pointing with approved joint filling sand.
A75: 0093BA | B75: PAVING:RENEW 60MM INTERLOCK | C75: GROUNDWORKS | D75: Paths and Pavings | E75: Paving - Interlock Blocks | F75: SM | G75: 54.27 | H75: =SUMIF('Contractor##'!C:C,'Planned Maint v6.2 CSV File'!C:C,'Contractor##'!F:F) -> -0.1777 | I75: 44.626221 | J75: Paving:Renew upto 60mm thick interlocking precast concrete paving blocks including take up existing and clear away, fill and compact hardcore to soft spots and lay new paving on 60mm bed of sand including bonding, compacting with plate vibrator, jointing and pointing with approved joint filling sand.
A76: 0093CA | B76: PAVING:RENEW 80MM INTERLOCK | C76: GROUNDWORKS | D76: Paths and Pavings | E76: Paving - Interlock Blocks | F76: SM | G76: 65.27 | H76: =SUMIF('Contractor##'!C:C,'Planned Maint v6.2 CSV File'!C:C,'Contractor##'!F:F) -> -0.1777 | I76: 53.671521 | J76: Paving:Renew 80mm thick interlocking precast concrete paving blocks including take up existing and clear away, fill and compact hardcore to soft spots and lay new paving on 60mm bed of sand including bonding, compacting with plate vibrator, jointing and pointing with approved joint filling sand.
A77: 0094AA | B77: PAVING:REBED CHAMFER EDGE BLOCKS | C77: GROUNDWORKS | D77: Paths and Pavings | E77: Paving - Chamfer Edge Blocks | F77: SM | G77: 28.59 | H77: =SUMIF('Contractor##'!C:C,'Planned Maint v6.2 CSV File'!C:C,'Contractor##'!F:F) -> -0.1777 | I77: 23.509557 | J77: Paving:Take up loose chamfered edge concrete block paving, set aside, clean blocks, make up levels and soft spots to sand bed as necessary, relay blocks including bonding, compacting with plate vibrator, jointing and pointing with approved joint filling sand.
A78: 0094BA | B78: PAVING:RENEW CHAMFER EDGE BLOCK | C78: GROUNDWORKS | D78: Paths and Pavings | E78: Paving - Chamfer Edge Blocks | F78: SM | G78: 54.44 | H78: =SUMIF('Contractor##'!C:C,'Planned Maint v6.2 CSV File'!C:C,'Contractor##'!F:F) -> -0.1777 | I78: 44.766012 | J78: Paving:Renew 200x100x65mm thick concrete paving blocks with chamfered edge including take up existing and clear away, fill and compact hardcore to soft spots and lay new paving on 60mm bed of sand including bonding, compacting with plate vibrator, jointing and pointing with approved joint filling sand.
A79: 0095AA | B79: PAVING:REBED GRASS CONCRETE | C79: GROUNDWORKS | D79: Paths and Pavings | E79: Paving - Grass Concrete | F79: SM | G79: 22.06 | H79: =SUMIF('Contractor##'!C:C,'Planned Maint v6.2 CSV File'!C:C,'Contractor##'!F:F) -> -0.1777 | I79: 18.139938 | J79: Paving:Take up loose grass concrete paving units, set aside, clean units, make up levels and soft spots to sand bed as necessary, relay units, voids filled with topsoil and sown with grass seed.
A80: 0095BA | B80: PAVING:RENEW GRASS CONCRETE | C80: GROUNDWORKS | D80: Paths and Pavings | E80: Paving - Grass Concrete | F80: SM | G80: 45.21 | H80: =SUMIF('Contractor##'!C:C,'Planned Maint v6.2 CSV File'!C:C,'Contractor##'!F:F) -> -0.1777 | I80: 37.176183 | J80: Paving:Renew 120mm thick precast concrete perforated paving units including take up existing and clear away, fill and compact hardcore to soft spots and lay new units on 25mm bed of sand, voids filled with topsoil and sown with grass seed.
A81: 0096AA | B81: TREE:GRILLE-BRICK:1350X1350MM:450 HOLE | C81: GROUNDWORKS | D81: Paths and Pavings | E81: Paving - Tree Grilles | F81: NO | G81: 312.5 | H81: =SUMIF('Contractor##'!C:C,'Planned Maint v6.2 CSV File'!C:C,'Contractor##'!F:F) -> -0.1777 | I81: 256.96875 | J81: Tree:Grille:supply and lay special quality paving bricks in grid size 1350 x 1350mm around tree on 50mm bed of sharp sand, well tamped and pointed in sand, with 450 x 450mm hole for tree
A82: 0096AB | B82: TREE:GRILLE-BRICK:1800X1800MM:450 HOLE | C82: GROUNDWORKS | D82: Paths and Pavings | E82: Paving - Tree Grilles | F82: NO | G82: 528.19 | H82: =SUMIF('Contractor##'!C:C,'Planned Maint v6.2 CSV File'!C:C,'Contractor##'!F:F) -> -0.1777 | I82: 434.330637 | J82: Tree:Grille:supply and lay special quality paving bricks in grid size 1800 x 1800mm around tree on 50mm bed of sharp sand, well tamped and pointed in sand, with 450 x 450mm hole for tree
A83: 0096AC | B83: TREE:GRILLE-BRICK:2250X22500MM:450 HOLE | C83: GROUNDWORKS | D83: Paths and Pavings | E83: Paving - Tree Grilles | F83: NO | G83: 806.87 | H83: =SUMIF('Contractor##'!C:C,'Planned Maint v6.2 CSV File'!C:C,'Contractor##'!F:F) -> -0.1777 | I83: 663.489201 | J83: Tree:Grille:supply and lay special quality paving bricks in grid size 2250 x 2250mm around tree on 50mm bed of sharp sand, well tamped and pointed in sand, with 450 x 450mm hole for tree
A84: 0096AD | B84: TREE:GRILLE-BRICK:2700X2700MM:450 HOLE | C84: GROUNDWORKS | D84: Paths and Pavings | E84: Paving - Tree Grilles | F84: NO | G84: 1151.25 | H84: =SUMIF('Contractor##'!C:C,'Planned Maint v6.2 CSV File'!C:C,'Contractor##'!F:F) -> -0.1777 | I84: 946.672875 | J84: Tree:Grille:supply and lay special quality paving bricks in grid size 2700 x 2700mm around tree on 50mm bed of sharp sand, well tamped and pointed in sand, with 450 x 450mm hole for tree
A85: 0096AE | B85: TREE:GRILLE–GRANITE SETT:1000X1000MM:400 HOLE | C85: GROUNDWORKS | D85: Paths and Pavings | E85: Paving - Tree Grilles | F85: NO | G85: 184.37 | H85: =SUMIF('Contractor##'!C:C,'Planned Maint v6.2 CSV File'!C:C,'Contractor##'!F:F) -> -0.1777 | I85: 151.607451 | J85: Tree:Grille:supply and lay granite setts in grid size 1000 x 1000mm around tree on 50mm bed of sharp sand, well tamped and pointed in sand, with 450 x 450mm hole for tree
A86: 0096AF | B86: TREE:GRILLE–GRANITE SETT:1400X1400MM:400 HOLE | C86: GROUNDWORKS | D86: Paths and Pavings | E86: Paving - Tree Grilles | F86: NO | G86: 334.06 | H86: =SUMIF('Contractor##'!C:C,'Planned Maint v6.2 CSV File'!C:C,'Contractor##'!F:F) -> -0.1777 | I86: 274.697538 | J86: Tree:Grille:supply and lay granite setts in grid size 1400 x 1400mm around tree on 50mm bed of sharp sand, well tamped and pointed in sand, with 450 x 450mm hole for tree
A87: 0096AG | B87: TREE:GRILLE–GRANITE SETT:1800X1800MM:400 HOLE | C87: GROUNDWORKS | D87: Paths and Pavings | E87: Paving - Tree Grilles | F87: NO | G87: 527.19 | H87: =SUMIF('Contractor##'!C:C,'Planned Maint v6.2 CSV File'!C:C,'Contractor##'!F:F) -> -0.1777 | I87: 433.508337 | J87: Tree:Grille:supply and lay granite setts in grid size 1800 x 1800mm around tree on 50mm bed of sharp sand, well tamped and pointed in sand, with 450 x 450mm hole for tree
A88: 0096AH | B88: TREE:GRILLE–GRANITE SETT:2000X2000MM:400 HOLE | C88: GROUNDWORKS | D88: Paths and Pavings | E88: Paving - Tree Grilles | F88: NO | G88: 644.37 | H88: =SUMIF('Contractor##'!C:C,'Planned Maint v6.2 CSV File'!C:C,'Contractor##'!F:F) -> -0.1777 | I88: 529.865451 | J88: Tree:Grille:supply and lay granite setts in grid size 2000 x 2000mm around tree on 50mm bed of sharp sand, well tamped and pointed in sand, with 450 x 450mm hole for tree
A89: 0096AI | B89: TREE:GRILLE:RENEW GRAVEL PAVING 30MM TO TREE GRID | C89: GROUNDWORKS | D89: Paths and Pavings | E89: Paving - Tree Grilles | F89: NO | G89: 6.39 | H89: =SUMIF('Contractor##'!C:C,'Planned Maint v6.2 CSV File'!C:C,'Contractor##'!F:F) -> -0.1777 | I89: 5.254497 | J89: Paving:Renew gravel paving to tree grid or grille ne 30mm thick including take up grill and set aside, take up gravel and clear away existing, resey grid to level and supply, spread and level washed gravel.
A90: 0097AA | B90: PAVING:TEMPORARY CONCRETE REPAIR | C90: GROUNDWORKS | D90: Paths and Pavings | E90: Paving - Temporary Repairs | F90: IT | G90: 27.43 | H90: =SUMIF('Contractor##'!C:C,'Planned Maint v6.2 CSV File'!C:C,'Contractor##'!F:F) -> -0.1777 | I90: 22.555689 | J90: Paving:Break out existing defective paving of any type if necessary ne 100mm thick and clear away, remove waste and debris, fill in void with lean mix concrete ensuring flush edges to existing finishes in areas ne 1.00sm.
A91: 0098AA | B91: HARDCORE:ADDITIONAL SUB-BASE OR BED NE 150 | C91: GROUNDWORKS | D91: Paths and Pavings | E91: Hardcore | F91: SM | G91: 24.27 | H91: =SUMIF('Contractor##'!C:C,'Planned Maint v6.2 CSV File'!C:C,'Contractor##'!F:F) -> -0.1777 | I91: 19.957221 | J91: Hardcore:Extra for additional hardcore sub-base or bed ne 150mm thick laid under any type of paving including excavate, remove spoil, level and compact bottoms, remove waste and debris, (to be charged only when specifically ordered by Client’s Representative).
A92: 0130AA | B92: STEP:FORM OR RENEW STEP IN CONCRETE PAVING | C92: GROUNDWORKS | D92: Steps, Stairs and Ramps | E92: Steps, Stairs and Ramps - Institu and Precast Concrete | F92: IT | G92: 29.14 | H92: =SUMIF('Contractor##'!C:C,'Planned Maint v6.2 CSV File'!C:C,'Contractor##'!F:F) -> -0.1777 | I92: 23.961822 | J92: Step:Form step ne 1000x300x200mm in concrete paving including all necessary excavation, hardcore, extra concrete and all formwork with surfaces trowelled smooth, make good to adjacent finishes and remove waste and debris.
A93: 0130AB | B93: STEP:FORM OR RENEW PCC STEP IN PAVING | C93: GROUNDWORKS | D93: Steps, Stairs and Ramps | E93: Steps, Stairs and Ramps - Institu and Precast Concrete | F93: IT | G93: 34.24 | H93: =SUMIF('Contractor##'!C:C,'Planned Maint v6.2 CSV File'!C:C,'Contractor##'!F:F) -> -0.1777 | I93: 28.155552 | J93: Step:Form step in precast concrete paving ne 1000x300x200mm including all extra excavation, hardcore, blinding and bed precast concrete flags to steps and risers on 25mm mortar bed including all cutting, make good to adjacent finishes and remove waste and debris.
A94: 0130AC | B94: STEP:FORM BRICK ON EDGE STEP | C94: GROUNDWORKS | D94: Steps, Stairs and Ramps | E94: Steps, Stairs and Ramps - Institu and Precast Concrete | F94: LM | G94: 16.49 | H94: =SUMIF('Contractor##'!C:C,'Planned Maint v6.2 CSV File'!C:C,'Contractor##'!F:F) -> -0.1777 | I94: 13.559727 | J94: Step:Form step with approved brick on edge, bedded and pointed in cement mortar (1:4).
A95: 0130AD | B95: STEP:REPAIR DAMAGED CONCRETE | C95: GROUNDWORKS | D95: Steps, Stairs and Ramps | E95: Steps, Stairs and Ramps - Institu and Precast Concrete | F95: IT | G95: 14.67 | H95: =SUMIF('Contractor##'!C:C,'Planned Maint v6.2 CSV File'!C:C,'Contractor##'!F:F) -> -0.1777 | I95: 12.063141 | J95: Step:Cut out damaged section and repair step as necessary with concrete (1:1:5:3) or cement and sand polymer enhanced cementitious mortar including formwork and trowel finish.
A96: 0130DB | B96: STEP:REFIX AND BED LOOSE STEP | C96: GROUNDWORKS | D96: Steps, Stairs and Ramps | E96: Steps, Stairs and Ramps - Institu and Precast Concrete | F96: IT | G96: 5.42 | H96: =SUMIF('Contractor##'!C:C,'Planned Maint v6.2 CSV File'!C:C,'Contractor##'!F:F) -> -0.1777 | I96: 4.456866 | J96: Step:Rebed loose precast concrete step or loose bricks to brick step including remove existing, clean off as necessary and rebed in cement mortar (1:4) (per step).
A97: 0130EA | B97: RAMP:CONSTRUCT CONCRETE RAMP | C97: GROUNDWORKS | D97: Steps, Stairs and Ramps | E97: Steps, Stairs and Ramps - Institu and Precast Concrete | F97: LM | G97: 79.08 | H97: =SUMIF('Contractor##'!C:C,'Planned Maint v6.2 CSV File'!C:C,'Contractor##'!F:F) -> -0.1777 | I97: 65.027484 | J97: Ramp:Construct insitu concrete ramp average 150mm thick, ne 1.5m wide overall with 50mm high insitu concrete kerbs to both sides, laid to gradient 1:12 with pinked finish including all excavation, hardcore, reinforcement and formwork.
A98: 0130FA | B98: NOSING:RENEW INSET NOSING TO PCC STEP | C98: GROUNDWORKS | D98: Steps, Stairs and Ramps | E98: Steps - Institu PCC Concrete | F98: LM | G98: 24.94 | H98: =SUMIF('Contractor##'!C:C,'Planned Maint v6.2 CSV File'!C:C,'Contractor##'!F:F) -> -0.1777 | I98: 20.508162 | J98: Nosing:Renew Ferodo type Inset nosing to step in precast concrete paving ne 200mm wide including all jointing, bedding and pointing as required and all cutting, make good to adjacent finishes and remove waste and debris.
A99: 0130FB | B99: NOSING:REFIX BED LOOSE INSET NOSING TO PCC STEP | C99: GROUNDWORKS | D99: Steps, Stairs and Ramps | E99: Steps - Institu PCC Concrete | F99: IT | G99: 12.94 | H99: =SUMIF('Contractor##'!C:C,'Planned Maint v6.2 CSV File'!C:C,'Contractor##'!F:F) -> -0.1777 | I99: 10.640562 | J99: Step:Rebed loose Ferodo type inset nosing to precast concrete step including remove existing, clean off as necessary and rebed as required(per step).
A100: 0150AA | B100: FLOOR:RENEW INTERNAL CONCRETE | C100: FOUNDATIONS | D100: Floors | E100: Concrete Internal Renewal | F100: SM | G100: 91.26 | H100: =SUMIF('Contractor##'!C:C,'Planned Maint v6.2 CSV File'!C:C,'Contractor##'!F:F) -> -0.2702 | I100: 66.601548 | J100: Floor:Renew complete any floor with new concrete floor including break up existing floor, applied finish and sub-base under and remove from site, excavate as necessary, compact bottoms and lay and compact up to 175mm hardcore bed blinded with sand, lay 1200 gauge polythene damp proof membrane and 100mm concrete slab (1:2:4) with 50mm cement and sand floor screed trowelled smooth to receive floor finish,remove and refix skirtings as necessary and make good all finishes.
A101: 0150AB | B101: FLOOR:RENEW INTERNAL CONCRETE INSULATION | C101: FOUNDATIONS | D101: Floors | E101: Concrete Internal Renewal | F101: SM | G101: 123.62 | H101: =SUMIF('Contractor##'!C:C,'Planned Maint v6.2 CSV File'!C:C,'Contractor##'!F:F) -> -0.2702 | I101: 90.217876 | J101: Floor:Renew complete any floor with new concrete floor including break up existing floor, applied finish and sub-base under and remove from site, excavate as necessary, compact bottoms and lay and compact up to 175mm hardcore bed blinded with sand, lay 1200 gauge polythene damp proof membrane, 50mm Jablite or other equal and approved insulation board, both membrane and board turned up 150mm at edges, 150mm concrete slab (1:2:4) with mesh reinforcement and upto 65mm cement and sand floor screed trowelled smooth to receive floor finish, remove and refix skirtings as necessary and make good all finishes.
A102: 0150AC | B102: FLOOR:RENEW INTERNAL REINFORCED CONCRETE | C102: FOUNDATIONS | D102: Floors | E102: Concrete Internal Renewal | F102: SM | G102: 83.87 | H102: =SUMIF('Contractor##'!C:C,'Planned Maint v6.2 CSV File'!C:C,'Contractor##'!F:F) -> -0.2702 | I102: 61.208326 | J102: Floor:Renew complete any floor with new concrete floor including break up existing floor, applied finish and sub-base under and remove from site, excavate as necessary, compact bottoms and lay and compact up to 175mm hardcore bed blinded with sand, lay 1200 gauge polythene damp proof membrane and 100mm concrete slab (1:2:4) with mesh reinforcement 50mm cement and sand floor screed trowelled smooth to receive floor finish, remove and refix skirtings as necessary and make good all finishes.
A103: 0155AA | B103: FLOOR:HARDCORE FILL UNDER FLOOR | C103: SPECIALIST TREATMENTS | D103: Fungus and Beetle Eradication and DPC Works | E103: Works to Sub-Floors due to Fungus and Beetle Eradication or DPC Works | F103: CM | G103: 57.78 | H103: =SUMIF('Contractor##'!C:C,'Planned Maint v6.2 CSV File'!C:C,'Contractor##'!F:F) -> -0.275 | I103: 41.8905 | J103: Floor:Fill under floor with clean broken and graded hardcore or other filling to approval of Client’s Representative, consolidate and blind ready to receive PVC membrane and concrete floor slab as specified all in conjunction with injected dpc wall treatment.
A104: 0171AD | B104: FENCING:RENEW 1.8M BOARD - TIMBER POST | C104: FENCING AND GATES | D104: Fencing | E104: Fencing - Boarded | F104: LM | G104: 93.18 | H104: =SUMIF('Contractor##'!C:C,'Planned Maint v6.2 CSV File'!C:C,'Contractor##'!F:F) -> -0.179 | I104: 76.50078 | J104: Fencing:Renew or provide new 1.65m tanalised timber vertical board fencing including for taking down remnants of existing fence and posts set in concrete, remove from site to approved tip, and set 125x125mm x 2.65m long softwood posts in concrete at ne 1.80m centres with three 69x44mm softwood rails bolted to posts and 144x20mm vertical boards nailed to rails, softwood gravel board with centre prop (measured per metre run of fencing).
A105: 0171AE | B105: FENCING:RENEW 1.2M BOARD PCC POST GRAVEL BOARD | C105: FENCING AND GATES | D105: Fencing | E105: Fencing - Boarded | F105: LM | G105: 66.96 | H105: =SUMIF('Contractor##'!C:C,'Planned Maint v6.2 CSV File'!C:C,'Contractor##'!F:F) -> -0.179 | I105: 54.97416 | J105: Fencing:Renew or provide new 1.05m tanalised timber vertical board fencing including for taking down remnants of existing fence and posts set in concrete, remove waste and debris, and set 100x100mm x 1.65m long concrete posts in concrete at ne 1.80m centres with two 69x44mm softwood rails bolted to posts and 144x20mm vertical boards nailed to rails, precast concrete gravel board with centre prop (measured per metre run of fencing).
A106: 0171AF | B106: FENCING:RENEW 1.2M BOARD TIMBER POST | C106: FENCING AND GATES | D106: Fencing | E106: Fencing - Boarded | F106: LM | G106: 63.85 | H106: =SUMIF('Contractor##'!C:C,'Planned Maint v6.2 CSV File'!C:C,'Contractor##'!F:F) -> -0.179 | I106: 52.42085 | J106: Fencing:Renew or provide new 1.05m tanalised timber vertical board fencing including for taking down remnants of existing fence and posts set in concrete, remove waste and debris, and set 100x100mm x 1.65m long softwood posts in concrete at ne 1.80m centres with two 69x44mm softwood rails bolted to posts and 144x20mm vertical boards nailed to rails, softwood gravel board with centre prop (measured per metre run of fencing).
A107: 0171AG | B107: FENCING:RENEW 1.8M BOARD PCC POST | C107: FENCING AND GATES | D107: Fencing | E107: Fencing - Boarded | F107: LM | G107: 98.81 | H107: =SUMIF('Contractor##'!C:C,'Planned Maint v6.2 CSV File'!C:C,'Contractor##'!F:F) -> -0.179 | I107: 81.12301 | J107: Fencing:Renew or provide new 1.65m high tanalised timber vertical board fencing including for taking down remnants of existing fence and posts set in concrete, remove waste and debris, and set 125x125mm x 2.25m long concrete posts in concrete at ne 1.80m centres with three softwood rails 69x44mm bolted to posts and 144x20mm vertical boards nailed to rails 25x150mm softwood gravel board with centre prop (measured per metre run of fencing).
A108: 0171AH | B108: FENCING:RENEW 1.8M BOARD PCC POST GRAVEL BOARD | C108: FENCING AND GATES | D108: Fencing | E108: Fencing - Boarded | F108: LM | G108: 93.18 | H108: =SUMIF('Contractor##'!C:C,'Planned Maint v6.2 CSV File'!C:C,'Contractor##'!F:F) -> -0.179 | I108: 76.50078 | J108: Fencing:Renew or provide new 1.65m high tanalised timber vertical board fencing including for taking down remnants of existing fence and posts set in concrete, remove waste and debris, and set 125x125mm x 2.25m long concrete posts in concrete at ne 1.80m centres with three softwood rails 69x44mm bolted to posts and 144x20mm vertical boards nailed to rails precast concrete gravel board with centre prop (measured per metre run of fencing).
A109: 0171AJ | B109: FENCING:REMOVE BOARD FENCE | C109: FENCING AND GATES | D109: Fencing | E109: Fencing - Boarded | F109: LM | G109: 7.02 | H109: =SUMIF('Contractor##'!C:C,'Planned Maint v6.2 CSV File'!C:C,'Contractor##'!F:F) -> -0.179 | I109: 5.76342 | J109: Fencing:Take down and remove any height vertical board fence consisting of concrete and or timber posts set in concrete, softwood rails, gravel board and vertical boards and remove waste and debris, fill post holes with top soil.
A110: 0171AK | B110: FENCING:RENEW TIMBER GRAVEL BOARD | C110: FENCING AND GATES | D110: Fencing | E110: Fencing - Boarded | F110: NO | G110: 12.4 | H110: =SUMIF('Contractor##'!C:C,'Planned Maint v6.2 CSV File'!C:C,'Contractor##'!F:F) -> -0.179 | I110: 10.1804 | J110: Fencing:Renew or supply and fix new 25x150mm tanalised softwood gravel board and centre prop including remove existing, excavate as necessary, cut and or trim existing fence boards as necessary and fix gravel board with galvanised nails, remove waste and debris.
A111: 0171AL | B111: FENCING:RENEW PCC GRAVEL BOARD | C111: FENCING AND GATES | D111: Fencing | E111: Fencing - Boarded | F111: NO | G111: 14 | H111: =SUMIF('Contractor##'!C:C,'Planned Maint v6.2 CSV File'!C:C,'Contractor##'!F:F) -> -0.179 | I111: 11.494 | J111: Fencing:Renew or supply and fix new ne 50x225mm precast concrete gravel board and centre prop including remove existing, excavate as necessary, cut and or trim existing fence boards as necessary and fix gravel board with cleats and or bolts, remove waste and debris.
A112: 0171BA | B112: FENCING:RENEW 1.2M CLOSE BOARD PCC POST | C112: FENCING AND GATES | D112: Fencing | E112: Fencing - Close Boarded | F112: LM | G112: 66.96 | H112: =SUMIF('Contractor##'!C:C,'Planned Maint v6.2 CSV File'!C:C,'Contractor##'!F:F) -> -0.179 | I112: 54.97416 | J112: Fencing:Renew or provide new tanalised timber closeboard fencing including for taking down remnants of existing fence and posts set in concrete, remove from site to approved tip, and set 100x100x1650mm long concrete posts in concrete at 1.80m centres with two 69x44mm softwood arris rails bolted to posts and 144x20mm vertical boards 1.05m high nailed to rails, provide and fix 25x150mm tanalised softwood gravel board with centre prop. (measured per metre run of fencing).
A113: 0171BB | B113: FENCING:RENEW 1.2M CLOSE BOARD TIMBER POST | C113: FENCING AND GATES | D113: Fencing | E113: Fencing - Close Boarded | F113: LM | G113: 63.85 | H113: =SUMIF('Contractor##'!C:C,'Planned Maint v6.2 CSV File'!C:C,'Contractor##'!F:F) -> -0.179 | I113: 52.42085 | J113: Fencing:Renew or provide new tanalised timber closeboard fencing including for taking down remnants of existing fence and posts set in concrete, remove from site to approved tip, and set 100x100x1650mm long tanalised softwood posts in concrete at 1.80m centres with two 69x44mm softwood arris rails bolted to posts with 144x20mm vertical boards 1.05m high nailed to rails, provide and fix 25x150mm tanalised softwood gravel board with centre prop. (measured per metre run of fencing).
A114: 0171BC | B114: FENCING:RENEW 1.8M CLOSE BOARD PCC POST | C114: FENCING AND GATES | D114: Fencing | E114: Fencing - Close Boarded | F114: LM | G114: 98.81 | H114: =SUMIF('Contractor##'!C:C,'Planned Maint v6.2 CSV File'!C:C,'Contractor##'!F:F) -> -0.179 | I114: 81.12301 | J114: Fencing:Renew or provide new tanalised timber closeboard fencing including for taking down remnants of existing fence and posts set in concrete, remove from site to approved tip, and set 125x125x2250mm long concrete posts in concrete at 1.80m centres with three softwood arris rails 69x44mm bolted to posts and 144x20mm vertical boards 1.675m high nailed to rails, provide and fix 25x150mm tanalised softwood gravel board with centre prop. (measured per metre run of fencing).
A115: 0171BD | B115: FENCING:RENEW 1.8M CLOSE BOARD TIMBER POST | C115: FENCING AND GATES | D115: Fencing | E115: Fencing - Close Boarded | F115: LM | G115: 93.18 | H115: =SUMIF('Contractor##'!C:C,'Planned Maint v6.2 CSV File'!C:C,'Contractor##'!F:F) -> -0.179 | I115: 76.50078 | J115: Fencing:Renew or provide new tanalised timber closeboard fencing including for taking down remnants of existing fence and posts set in concrete, remove from site to approved tip, and set 125x125x2250mm long tanalised softwood posts in concrete at 1.80m centres, with three softwood arris rails 69x44mm bolted to posts and 144x20mm vertical boards 1.675m high nailed to rails, provide and fix 25x150mm tanalised gravel board with centre prop. (measured per metre run of fencing).
A116: 0172AB | B116: FENCING:RENEW CHESTNUT NE 1.5M AND POSTS | C116: FENCING AND GATES | D116: Fencing | E116: Fencing - Chestnut Pale | F116: LM | G116: 16.51 | H116: =SUMIF('Contractor##'!C:C,'Planned Maint v6.2 CSV File'!C:C,'Contractor##'!F:F) -> -0.179 | I116: 13.55471 | J116: Fencing:Renew chestnut pale fencing ne 1.50m high including for taking down remnants of existing fence and posts, remove waste and debris, and renew by driving in 60mm diameter sweet chestnut posts at 2.22m centres including galvanised accessories and sweet chestnut struts and chestnut pales at 75mm centres, fixed at head and bottom with galvanised straining wire (measured per metre run of fencing).
A117: 0172AD | B117: FENCING:RENEW CHESTNUT NE 1.5M | C117: FENCING AND GATES | D117: Fencing | E117: Fencing - Chestnut Pale | F117: LM | G117: 13.87 | H117: =SUMIF('Contractor##'!C:C,'Planned Maint v6.2 CSV File'!C:C,'Contractor##'!F:F) -> -0.179 | I117: 11.38727 | J117: Fencing:Renew existing pales and wire on existing posts by carefully removing, remove waste and debris, and renew with chestnut pales ne 1.50m high at 75mm centres fixed at head and bottom with galvanised straining wire (measured per metre run of fencing).
A118: 0172AE | B118: FENCING:LINE WIRE SUPPORT | C118: FENCING AND GATES | D118: Fencing | E118: Fencing - Chestnut Pale | F118: LM | G118: 2.13 | H118: =SUMIF('Contractor##'!C:C,'Planned Maint v6.2 CSV File'!C:C,'Contractor##'!F:F) -> -0.179 | I118: 1.74873 | J118: Fencing:Renew or fix new galvanised or PVC coated line wire to support cleft chestnut paling fence, fix wire to posts and fencing with galvanised staples and ties including remove and refix fencing as found expedient (measured per run of line wire).
A119: 0172AF | B119: FENCING:RENEW INDIVIDUAL CHESTNUT PALE | C119: FENCING AND GATES | D119: Fencing | E119: Fencing - Chestnut Pale | F119: NO | G119: 4.96 | H119: =SUMIF('Contractor##'!C:C,'Planned Maint v6.2 CSV File'!C:C,'Contractor##'!F:F) -> -0.179 | I119: 4.07216 | J119: Fencing:Renew cleft chestnut pale to fence including remove existing and remove waste and debris and fix new to match existing.
A120: 0172AG | B120: FENCING:RENEW 75MM STRAIN POST | C120: FENCING AND GATES | D120: Fencing | E120: Fencing - Chestnut Pale | F120: NO | G120: 12.65 | H120: =SUMIF('Contractor##'!C:C,'Planned Maint v6.2 CSV File'!C:C,'Contractor##'!F:F) -> -0.179 | I120: 10.38565 | J120: Fencing:Renew 75mm timber sweet chestnut straining post 1.60m long to chestnut pale fencing including connecting bolt strainers, remove waste and debris.
A121: 0173AA | B121: FENCING:RENEW 1.8M HIGH PANEL | C121: FENCING AND GATES | D121: Fencing | E121: Fencing - Interwoven and Overlap Fence Panels | F121: NO | G121: 42.65 | H121: =SUMIF('Contractor##'!C:C,'Planned Maint v6.2 CSV File'!C:C,'Contractor##'!F:F) -> -0.179 | I121: 35.01565 | J121: Fencing:Renew any interwoven or overlap fence panel ne 1.8x1.8m fixed with galvanised metal support brackets to existing posts, remove and dismantle existing and cart away debris to tip.
A122: 0173AB | B122: FENCING:RENEW 1.2M HIGH PANEL | C122: FENCING AND GATES | D122: Fencing | E122: Fencing - Interwoven and Overlap Fence Panels | F122: NO | G122: 40.64 | H122: =SUMIF('Contractor##'!C:C,'Planned Maint v6.2 CSV File'!C:C,'Contractor##'!F:F) -> -0.179 | I122: 33.36544 | J122: Fencing:Renew any interwoven or overlap fence panel ne 1.8x1.2m fixed with galvanised metal support brackets to existing posts, remove and dismantle existing and cart away debris to tip.
A123: 0173AC | B123: FENCING:RENEW 1.2M WIDE PANEL | C123: FENCING AND GATES | D123: Fencing | E123: Fencing - Interwoven Panels | F123: NO | G123: 45.19 | H123: =SUMIF('Contractor##'!C:C,'Planned Maint v6.2 CSV File'!C:C,'Contractor##'!F:F) -> -0.179 | I123: 37.10099 | J123: Fencing:Renew any interwoven or overlap fence panel ne 1.20x1.80m fixed with galvanised metal support brackets to existing posts, remove and dismantle existing and remove waste and debris.
A124: 0173AD | B124: FENCING:RENEW 0.9M HIGH PANEL | C124: FENCING AND GATES | D124: Fencing | E124: Fencing - Interwoven Panels | F124: NO | G124: 43.62 | H124: =SUMIF('Contractor##'!C:C,'Planned Maint v6.2 CSV File'!C:C,'Contractor##'!F:F) -> -0.179 | I124: 35.81202 | J124: Fencing:Renew any interwoven or overlap fence panel ne 1.80x0.90m fixed with galvanised metal support brackets to existing posts, remove and dismantle existing and remove waste and debris.
A125: 0173BA | B125: FENCING:RENEW 1.8M PANEL WITH TIMBER POSTS | C125: FENCING AND GATES | D125: Fencing | E125: Fencing - Interwoven and Overlap Fence Panels | F125: LM | G125: 47.47 | H125: =SUMIF('Contractor##'!C:C,'Planned Maint v6.2 CSV File'!C:C,'Contractor##'!F:F) -> -0.179 | I125: 38.97287 | J125: Fencing:Renew interwoven or overlap panel fencing complete consisting of 1.80x1.80m high interwoven or overlap fencing panels fixed with galvanised metal support brackets to and including 75x75mm tanalised fence posts, allow for all necessary excavation including excavation for posts, concrete, backfill and remove surplus to approved tip, reinstate paths and gardens as necessary (measured per metre run of fencing).
A126: 0173BB | B126: FENCING:RENEW 1.2M PANEL WITH TIMBER POSTS | C126: FENCING AND GATES | D126: Fencing | E126: Fencing - Interwoven and Overlap Fence Panels | F126: LM | G126: 43.05 | H126: =SUMIF('Contractor##'!C:C,'Planned Maint v6.2 CSV File'!C:C,'Contractor##'!F:F) -> -0.179 | I126: 35.34405 | J126: Fencing:Renew interwoven or overlap panel fencing complete consisting of 1.80x1.20m high interwoven or overlap fencing panels fixed with galvanised metal support brackets to and including 75x75mm tanalised fence posts, set in concrete, provide and fix 25x150mm tanalised softwood gravel board with centre prop, allow for all necessary excavation including excavation for posts, concrete, backfill and remove surplus to approved tip, reinstate paths and gardens as necessary (measured per metre run of fencing).
A127: 0173CA | B127: FENCING:RENEW 1.8M PANEL WITH PCC POSTS | C127: FENCING AND GATES | D127: Fencing | E127: Fencing - Interwoven and Overlap Fence Panels | F127: LM | G127: 52.35 | H127: =SUMIF('Contractor##'!C:C,'Planned Maint v6.2 CSV File'!C:C,'Contractor##'!F:F) -> -0.179 | I127: 42.97935 | J127: Fencing:Renew interwoven or overlap panel fencing complete consisting of 1.80x1.80m high interwoven or overlap fencing panels fixed with galvanised metal support brackets to and including 100x100mm PCC posts, allow for all necessary excavation including excavation for posts, concrete, backfill and remove surplus to approved tip, reinstate paths and gardens as necessary (measured per metre run of fencing).
A128: 0173CB | B128: FENCING:RENEW 1.2M PANEL WITH PCC POSTS | C128: FENCING AND GATES | D128: Fencing | E128: Fencing - Interwoven and Overlap Fence Panels | F128: LM | G128: 47.35 | H128: =SUMIF('Contractor##'!C:C,'Planned Maint v6.2 CSV File'!C:C,'Contractor##'!F:F) -> -0.179 | I128: 38.87435 | J128: Fencing:Renew interwoven or overlap panel fencing complete consisting of 1.80x1.20m high interwoven or overlap fencing panels fixed with galvanised metal support brackets to and including 100x100mm PCC posts set in concrete, provide and fix 25x150mm precast concrete gravel board, allow for all necessary excavation including excavation for posts, concrete, backfill and remove surplus to approved tip, reinstate paths and gardens as necessary (measured per metre run of fencing).
A129: 0173CD | B129: FENCING:ERECT 1.8M HIGH PANEL WITH TIMBER POSTS | C129: FENCING AND GATES | D129: Fencing | E129: Fencing - Interwoven Panels | F129: LM | G129: 52.12 | H129: =SUMIF('Contractor##'!C:C,'Planned Maint v6.2 CSV File'!C:C,'Contractor##'!F:F) -> -0.179 | I129: 42.79052 | J129: Fencing:Erect tanalised 1.80m high interwoven or overlap panel fencing complete consisting of interwoven or overlap fencing panels fixed with galvanised metal support brackets to and including 75x75mm fence posts, posts set in concrete, capping, 25x150mm gravel board with centre prop, allow for all necessary excavation including excavation for posts, concrete, backfill and remove waste and debris, reinstate paving and gardens as necessary (measured per metre run of fencing).
A130: 0173CE | B130: FENCING:ERECT 1.2M HIGH PANEL WITH TIMBER POSTS | C130: FENCING AND GATES | D130: Fencing | E130: Fencing - Interwoven Panels | F130: LM | G130: 47.22 | H130: =SUMIF('Contractor##'!C:C,'Planned Maint v6.2 CSV File'!C:C,'Contractor##'!F:F) -> -0.179 | I130: 38.76762 | J130: Fencing:Erect tanalised 1.20m high interwoven or overlap panel fencing complete consisting of interwoven or overlap fencing panels fixed with galvanised metal support brackets to and including 75x75mm fence posts, posts set in concrete, capping, 25x150mm gravel board with with centre prop, allow for all necessary excavation including excavation for posts, concrete, backfill and remove waste and debris, reinstate paving and gardens as necessary (measured per metre run of fencing).
A131: 0173CF | B131: FENCING:ERECT 0.9M HIGH PANEL WITH TIMBER POSTS | C131: FENCING AND GATES | D131: Fencing | E131: Fencing - Interwoven Panels | F131: LM | G131: 42.88 | H131: =SUMIF('Contractor##'!C:C,'Planned Maint v6.2 CSV File'!C:C,'Contractor##'!F:F) -> -0.179 | I131: 35.20448 | J131: Fencing:Erect tanalised 0.90m high interwoven or overlap panel fencing complete consisting of interwoven or overlap fencing panels fixed with galvanised metal support brackets to and including 75x75mm fence posts, posts set in concrete, capping, 25x150mm gravel board with centre prop, allow for all necessary excavation including excavation for posts, concrete, backfill and remove waste and debris, reinstate paving and gardens as necessary (measured per metre run of fencing).
A132: 0173CG | B132: FENCING:ERECT 1.8M HIGH PANEL WITH PCC POSTS | C132: FENCING AND GATES | D132: Fencing | E132: Fencing - Interwoven Panels | F132: LM | G132: 57.53 | H132: =SUMIF('Contractor##'!C:C,'Planned Maint v6.2 CSV File'!C:C,'Contractor##'!F:F) -> -0.179 | I132: =(1+H132)*G132 -> 47.23213 | J132: Fencing:Erect tanalised 1.80m high interwoven or overlap panel fencing complete consisting of 1 interwoven or overlap fencing panels fixed with galvanised metal support brackets to and including 100x100mm pcc posts, posts set in concrete, capping 25x150mm precast concrete gravel board, allow for all necessary excavation including excavation for posts, concrete, backfill and remove waste and debris, reinstate paving and gardens as necessary (measured per metre run of fencing).
A133: 0173CH | B133: FENCING:ERECT 1.2M HIGH PANEL WITH PCC POSTS | C133: FENCING AND GATES | D133: Fencing | E133: Fencing - Interwoven Panels | F133: LM | G133: 51.97 | H133: =SUMIF('Contractor##'!C:C,'Planned Maint v6.2 CSV File'!C:C,'Contractor##'!F:F) -> -0.179 | I133: 42.66737 | J133: Fencing:Erect tanalised 1.20m high interwoven or overlap panel fencing complete consisting of 1 interwoven or overlap fencing panels fixed with galvanised metal support brackets to and including 100x100mm pcc posts, posts set in concrete, capping 25x150mm precast concrete gravel board, allow for all necessary excavation including excavation for posts, concrete, backfill and remove waste and debris, reinstate paving and gardens as necessary (measured per metre run of fencing).
A134: 0173CJ | B134: FENCING:ERECT 0.9M HIGH PANEL WITH PCC POSTS | C134: FENCING AND GATES | D134: Fencing | E134: Fencing - Interwoven Panels | F134: LM | G134: 47.31 | H134: =SUMIF('Contractor##'!C:C,'Planned Maint v6.2 CSV File'!C:C,'Contractor##'!F:F) -> -0.179 | I134: 38.84151 | J134: Fencing:Erect tanalised 0.90m high interwoven or overlap panel fencing complete consisting of 1 interwoven or overlap fencing panels fixed with galvanised metal support brackets to and including 100x100mm pcc posts, posts set in concrete, capping 25x150mm precast concrete gravel board, allow for all necessary excavation including excavation for posts, concrete, backfill and remove waste and debris, reinstate paving and gardens as necessary (measured per metre run of fencing).
A135: 0173CK | B135: FENCING:REMOVE PANEL FENCE COMPLETE | C135: FENCING AND GATES | D135: Fencing | E135: Fencing - Interwoven Panels | F135: LM | G135: 6.08 | H135: =SUMIF('Contractor##'!C:C,'Planned Maint v6.2 CSV File'!C:C,'Contractor##'!F:F) -> -0.179 | I135: 4.99168 | J135: Fencing:Remove any panel fencing complete including timber or concrete posts, gravel boards etc and remove waste and debris, fill post holes with top soil and reinstate paths and gardens (measured per metre run of fencing).
A136: 0173DA | B136: TRELLIS:RENEW 1.8M PANEL WITH PCC POSTS | C136: FENCING AND GATES | D136: Fencing | E136: Fencing - Trellis Panels | F136: LM | G136: 50.75 | H136: =SUMIF('Contractor##'!C:C,'Planned Maint v6.2 CSV File'!C:C,'Contractor##'!F:F) -> -0.179 | I136: 41.66575 | J136: Trellis:Renew Timber Trellis panel fencing complete consisting of 1.80x1.80m high trellis fencing panels fixed with galvanised metal support brackets to and including 100x100mm PCC posts, allow for all necessary excavation including excavation for posts, concrete, backfill and remove surplus to approved tip, reinstate paths and gardens as necessary (measured per metre run of fencing).
A137: 0173DB | B137: TRELLIS:ERECT 1.8M HIGH PANEL WITH PCC POSTS | C137: FENCING AND GATES | D137: Fencing | E137: Fencing - Trellis Panels | F137: LM | G137: 54.31 | H137: =SUMIF('Contractor##'!C:C,'Planned Maint v6.2 CSV File'!C:C,'Contractor##'!F:F) -> -0.179 | I137: 44.58851 | J137: Trellis:Erect tanalised 1.80m high Trellis panel fencing complete consisting of trellis fencing panels fixed with galvanised metal support brackets to and including 100x100mm pcc posts, posts set in concrete, capping 25x150mm precast concrete gravel board, allow for all necessary excavation including excavation for posts, concrete, backfill and remove waste and debris, reinstate paving and gardens as necessary (measured per metre run of fencing).
A138: 0173EA | B138: FENCING:RENEW HAIRPIN METAL ON EXISTING POSTS 1.2M | C138: FENCING AND GATES | D138: Fencing | E138: Fencing - Metal - Hairpin | F138: LM | G138: 110 | H138: =SUMIF('Contractor##'!C:C,'Planned Maint v6.2 CSV File'!C:C,'Contractor##'!F:F) -> -0.179 | I138: 90.31 | J138: Fencing:Renew Hairpin top decorative metal fencing 1.20m high on existing posts, including removal of old and remove from site to approved tip, supply and fix new galvanised steel fencing panels including all bars, rails,fittings,boltsetc. (measured per metre run of fencing).
A139: 0173EB | B139: FENCING:ERECT HAIRPIN TOP METAL FENCE POSTS 1.2M | C139: FENCING AND GATES | D139: Fencing | E139: Fencing - Metal - Hairpin | F139: LM | G139: 135 | H139: =SUMIF('Contractor##'!C:C,'Planned Maint v6.2 CSV File'!C:C,'Contractor##'!F:F) -> -0.179 | I139: 110.835 | J139: Fencing:Erect new Hairpin top decorative fencing 1.20m high with 100x100mm x 2.35m galvanised steel posts cast into concrete at n.e. 2.4m centres and galvanised steel fencing panels including all bars, rails, fittings, bolts etc. and all excavation, concrete backfill and remove waste and debris, reinstatement of paving, gardens and the like (measured per metre run of fencing).
A140: 0173FA | B140: FENCING:RENEW DECORATIVE METAL ON EXIST POSTS 1.8M | C140: FENCING AND GATES | D140: Fencing | E140: Fencing - Decorative Metal | F140: LM | G140: 165 | H140: =SUMIF('Contractor##'!C:C,'Planned Maint v6.2 CSV File'!C:C,'Contractor##'!F:F) -> -0.179 | I140: 135.465 | J140: Fencing:Renew decorative metal fencing 1.80m high on existing posts, including removal of old and remove from site to approved tip, supply and fix new galvanised steel fencing panels including all bars, rails,fittings,boltsetc. (measured per metre run of fencing).
A141: 0173FB | B141: FENCING:ERECT DECORATIVE METAL FENCE POSTS 1.8M | C141: FENCING AND GATES | D141: Fencing | E141: Fencing - Decorative Metal | F141: LM | G141: 190 | H141: =SUMIF('Contractor##'!C:C,'Planned Maint v6.2 CSV File'!C:C,'Contractor##'!F:F) -> -0.179 | I141: 155.99 | J141: Fencing:Erect new decorative metal fencing 1.80m high with 100x100mm x 2.35m galvanised steel posts cast into concrete at n.e. 2.4m centres and galvanised steel fencing panels including all bars, rails, fittings, bolts etc. and all excavation, concrete backfill and remove waste and debris, reinstatement of paving, gardens and the like (measured per metre run of fencing).
A142: 0173GA | B142: FENCING:RENEW PVC WELDMESH SECURITY 1.8M | C142: FENCING AND GATES | D142: Fencing | E142: Fencing - PVC Weldmesh | F142: LM | G142: 54 | H142: =SUMIF('Contractor##'!C:C,'Planned Maint v6.2 CSV File'!C:C,'Contractor##'!F:F) -> -0.179 | I142: 44.334 | J142: Fencing:Renew pvc weldmesh security fencing 1.80m high on existing posts, including excavate to remove old buried section and supply and fix new weldmesh fencing, mesh size 38x75mm including 3.15mm pvc coated mild steel wires and all fittings, ties etc. Fence set 600mm into ground (overall mesh height =2.40m),backfill trench, remove surplus and spoil to approved tip, make good ( measured per metre run of fencing)
A143: 0173GB | B143: FENCING:ERECT NEW PVC WELDMESH SECURITY 1.8M | C143: FENCING AND GATES | D143: Fencing | E143: Fencing - PVC Weldmesh | F143: LM | G143: 65 | H143: =SUMIF('Contractor##'!C:C,'Planned Maint v6.2 CSV File'!C:C,'Contractor##'!F:F) -> -0.179 | I143: 53.365 | J143: Fencing:Erect new pvc weldmesh security fencing 1.80m high on 100 x 100 concrete or pvc coated mild steel posts set in concrete at 1.80m centres, supply and fix new weldmesh fencing, mesh size 38x75mm including 3.15mm pvc coated mild steel wires and all fittings, ties etc. Fence set 600mm into ground (overall mesh height =2.40m). Allow for all necessary excavations,concrete (C25)backfill pits and trenches, remove surplus and spoil to approved tip, , reinstatement of paving, gardens and the like ( measured per metre run of fencing)
A144: 0173HA | B144: FENCING:RENEW GALV WELDMESH SECURITY 1.8M | C144: FENCING AND GATES | D144: Fencing | E144: Fencing - Galvanised Weldmesh | F144: LM | G144: 52 | H144: =SUMIF('Contractor##'!C:C,'Planned Maint v6.2 CSV File'!C:C,'Contractor##'!F:F) -> -0.179 | I144: 42.692 | J144: Fencing:Renew galvanised weldmesh security fencing 1.80m high on existing posts, including excavate to remove old buried section and supply and fix new weldmesh fencing, mesh size 38x75mm including 3.15mm galvanised mild steel wires and all fittings, ties etc. Fence set 600mm into ground (overall mesh height =2.40m),backfill trench, remove surplus and spoil to approved tip, make good ( measured per metre run of fencing)
A145: 0173HB | B145: FENCING:ERECT NEW GALV WELDMESH SECURITY 1.8M | C145: FENCING AND GATES | D145: Fencing | E145: Fencing - Galvanised Weldmesh | F145: LM | G145: 63 | H145: =SUMIF('Contractor##'!C:C,'Planned Maint v6.2 CSV File'!C:C,'Contractor##'!F:F) -> -0.179 | I145: 51.723 | J145: Fencing:Erect new galvanisedweldmesh security fencing 1.80m high on 100 x 100 concrete or galvanised mild steel posts set in concrete at 1.80m centres, supply and fix new weldmesh fencing, mesh size 38x75mm including 3.15mm galv mild steel wires and all fittings, ties etc. Fence set 600mm into ground (overall mesh height =2.40m). Allow for allnecessary excavations,concrete (C25)backfill pits and trenches, remove surplus and spoil to approved tip, , reinstatement of paving, gardens and the like ( measured per metre run of fencing)
A146: 0174AA | B146: CHAINLINK:RENEW ON EXISTING POSTS 0.9M | C146: FENCING AND GATES | D146: Fencing | E146: Fencing - Chainlink | F146: LM | G146: 8.39 | H146: =SUMIF('Contractor##'!C:C,'Planned Maint v6.2 CSV File'!C:C,'Contractor##'!F:F) -> -0.179 | I146: 6.88819 | J146: Chainlink:Renew chainlink fencing 0.9m high on existing posts, including removal of old and remove from site to approved tip, supply and fix new galvanised or plastic coated steel chainlink wire fencing including three 2.50mm diameter galvanised mild steel line wires and all fittings, ties etc. (measured per metre run of fencing).
A147: 0174AB | B147: CHAINLINK:RENEW ON EXISTING POSTS 1.2M | C147: FENCING AND GATES | D147: Fencing | E147: Fencing - Chainlink | F147: LM | G147: 9.24 | H147: =SUMIF('Contractor##'!C:C,'Planned Maint v6.2 CSV File'!C:C,'Contractor##'!F:F) -> -0.179 | I147: 7.58604 | J147: Chainlink:Renew chainlink fencing 1.20m high on existing posts, including removal of old and remove from site to approved tip, supply and fix new galvanised or plastic coated steel chainlink wire fencing including three 2.50mm diameter galvanised mild steel line wires and all fittings, ties etc. (measured per metre run of fencing).
A148: 0174AC | B148: CHAINLINK:RENEW ON EXISTING POSTS 1.8M | C148: FENCING AND GATES | D148: Fencing | E148: Fencing - Chainlink | F148: LM | G148: 11.29 | H148: =SUMIF('Contractor##'!C:C,'Planned Maint v6.2 CSV File'!C:C,'Contractor##'!F:F) -> -0.179 | I148: 9.26909 | J148: Chainlink:Renew chainlink fencing 1.80m high on existing posts, including removal of old and remove from site to approved tip, supply and fix new galvanised or plastic coated steel chainlink wire fencing including three 2.50mm diameter galvanised mild steel line wires and all fittings, ties etc. (measured per metre run of fencing).
A149: 0174AD | B149: FENCING:ERECT CHAINLINK FENCE AND POSTS 1.2M | C149: FENCING AND GATES | D149: Fencing | E149: Fencing - Chainlink | F149: LM | G149: 34.27 | H149: =SUMIF('Contractor##'!C:C,'Planned Maint v6.2 CSV File'!C:C,'Contractor##'!F:F) -> -0.179 | I149: 28.13567 | J149: Fencing:1.20m high with 100x100mm x 1.625m concrete posts cast into concrete with three 2.5mm diameter galvanised mild steel line wires and galvanised or plastic coated steel chainlink fencing including all fittings, ties etc. and all excavation, concrete backfill and remove waste and debris, reinstatement of paving, gardens and the like (measured per metre run of fencing).
A150: 0174AE | B150: FENCING:ERECT CHAINLINK FENCE AND POSTS 1.8M | C150: FENCING AND GATES | D150: Fencing | E150: Fencing - Chainlink | F150: LM | G150: 38.62 | H150: =SUMIF('Contractor##'!C:C,'Planned Maint v6.2 CSV File'!C:C,'Contractor##'!F:F) -> -0.179 | I150: 31.70702 | J150: Fencing:Erect new chainlink fencing 1.80m high with 100x100mm x 2.35m concrete posts cast into concrete with three 2.5mm diameter galvanised mild steel line wires and galvanised or plastic coated steel chainlink fencing including all fittings, ties etc. and all excavation, concrete backfill and remove waste and debris, reinstatement of paving, gardens and the like (measured per metre run of fencing).
A151: 0174BA | B151: CHAINLINK:RESECURE LOOSE FENCE | C151: FENCING AND GATES | D151: Fencing | E151: Fencing - Chainlink | F151: LM | G151: 1.06 | H151: =SUMIF('Contractor##'!C:C,'Planned Maint v6.2 CSV File'!C:C,'Contractor##'!F:F) -> -0.179 | I151: 0.87026 | J151: Chainlink:Resecure loose chainlink fencing including tightening straining wires as necessary.
A152: 0174BB | B152: FENCING:REMOVE CHAINLINK COMPLETE | C152: FENCING AND GATES | D152: Fencing | E152: Fencing - Chainlink | F152: LM | G152: 6.08 | H152: =SUMIF('Contractor##'!C:C,'Planned Maint v6.2 CSV File'!C:C,'Contractor##'!F:F) -> -0.179 | I152: 4.99168 | J152: Fencing:Remove any height chainlink fencing complete with concrete posts and remove waste and debris, fill holes with topsoil and reinstate paving and gardens as necessary.
A153: 0174DA | B153: FENCING:RENEW WIRES TO EXISTING POSTS 1.2M | C153: FENCING AND GATES | D153: Fencing | E153: Fencing - Post and Wire | F153: LM | G153: 4.29 | H153: =SUMIF('Contractor##'!C:C,'Planned Maint v6.2 CSV File'!C:C,'Contractor##'!F:F) -> -0.179 | I153: 3.52209 | J153: Fencing:Renew wire fencing 1.20m high on existing posts, including removal of old and remove waste and debris, supply and fix three new galvanised or plastic coated steel 2.50mm diameter line wires and all fittings, ties etc. (measured per metre run of fencing).
A154: 0174EA | B154: FENCING:RENEW POST AND WIRE 0.9M HIGH | C154: FENCING AND GATES | D154: Fencing | E154: Fencing - Post and Wire | F154: LM | G154: 14.36 | H154: =SUMIF('Contractor##'!C:C,'Planned Maint v6.2 CSV File'!C:C,'Contractor##'!F:F) -> -0.179 | I154: 11.78956 | J154: Fencing:Renew 900mm high post and wire fencing complete, concrete posts with rounded tops and struts at 2743mm centres set 600mm into ground in and including concrete (1:3:6), three strands of 2.50mm galvanised mild or plastic coated steel line wires, including all fittings, ties etc., and including all excavation, concrete, backfill and remove waste and debris, reinstate paving, gardens and the like as necessary (measured per metre run of fencing).
A155: 0174FA | B155: FENCING:RENEW POST AND WIRE 1.05M HIGH | C155: FENCING AND GATES | D155: Fencing | E155: Fencing - Post and Wire | F155: LM | G155: 16.68 | H155: =SUMIF('Contractor##'!C:C,'Planned Maint v6.2 CSV File'!C:C,'Contractor##'!F:F) -> -0.179 | I155: 13.69428 | J155: Fencing:Renew 1050mm high post and wire fencing complete, concrete posts with rounded tops and struts at 2743mm centres set 600mm into ground in and including concrete (1:3:6), three strands of 2.50mm galvanised mild or plastic coated steel line wires, including all fittings, ties etc., and including all excavation, concrete, backfill and remove waste and debris, reinstate paving, gardens and the like as necessary (measured per metre run of fencing).
A156: 0175AA | B156: FENCING:RENEW GARDEN RAIL 0.575M HIGH | C156: FENCING AND GATES | D156: Fencing | E156: Fencing - Garden Rail | F156: LM | G156: 25.6 | H156: =SUMIF('Contractor##'!C:C,'Planned Maint v6.2 CSV File'!C:C,'Contractor##'!F:F) -> -0.179 | I156: 21.0176 | J156: Fencing:Renew with or supply and fix 575mm high tanalised softwood garden rail fencing comprising 50x225mm horizontal rail splayed on top, bolted to 75x75mm x 0.90m splayed on top posts set in concrete bases at ne 2.00m centres with two (2) 9mm diameter x 150mm galvanised mild steel round head bolts, including excavation, concrete, backfill and remove waste and debris including where necessary taking down remnants of existing fencing and posts, reinstate paving, gardens and the like as necessary (measured per metre run of fencing).
A157: 0175AB | B157: FENCING:REMOVE GARDEN RAIL 0.575M HIGH | C157: FENCING AND GATES | D157: Fencing | E157: Fencing - Garden Rail | F157: LM | G157: 4.52 | H157: =SUMIF('Contractor##'!C:C,'Planned Maint v6.2 CSV File'!C:C,'Contractor##'!F:F) -> -0.179 | I157: 3.71092 | J157: Fencing:Remove 575mm high garden rail fencing including posts and remove waste and debris, including fill in post holes with top soil and reinstate paving, gardens and the like as necessary.
A158: 0176AA | B158: FENCING:RENEW HIT AND MISS 1.35M HIGH | C158: FENCING AND GATES | D158: Fencing | E158: Fencing - Hit and Miss | F158: LM | G158: 38.39 | H158: =SUMIF('Contractor##'!C:C,'Planned Maint v6.2 CSV File'!C:C,'Contractor##'!F:F) -> -0.179 | I158: 31.51819 | J158: Fencing:Renew with or supply and fix tanalised softwood hit and miss fence 1.35m high, comprising 100x100mm posts at ne 1.80m centres, 100x50mm rails, 100x25mm pales to both faces including all excavation, concrete, backfill and remove waste and debris, including where necessary taking down remnants of existing fencing and posts,, reinstate paving, gardens and the like as necessary (measured per metre run of fencing).
A159: 0176AB | B159: FENCING:RENEW HIT AND MISS 1.8M HIGH | C159: FENCING AND GATES | D159: Fencing | E159: Fencing - Hit and Miss | F159: LM | G159: 44.38 | H159: =SUMIF('Contractor##'!C:C,'Planned Maint v6.2 CSV File'!C:C,'Contractor##'!F:F) -> -0.179 | I159: 36.43598 | J159: Fencing:Renew with or supply and fix tanalised softwood hit and miss fence 1.80m high, comprising 100x100mm posts at ne 1.80m centres, 100x50mm rails, 100x25mm pales to both faces including all excavation, concrete, 100x25mm pales including all excavation, concrete backfill and remove waste and debris, including where necessary taking down remnants of existing fencing and posts, reinstate paving, gardens and the like as necessary (measured per metre run of fencing).
A160: 0176BA | B160: FENCING:RENEW HORIZONTAL HIT AND MISS 1.8M HIGH | C160: FENCING AND GATES | D160: Fencing | E160: Fencing - Hit and Miss | F160: LM | G160: 52.4 | H160: =SUMIF('Contractor##'!C:C,'Planned Maint v6.2 CSV File'!C:C,'Contractor##'!F:F) -> -0.179 | I160: 43.0204 | J160: Fencing:Renew with or supply and fix tanalised softwood horizontal hit and miss fence 1.80m high, comprising 100x100mm posts at ne 1.20m centres, posts fixed to and including concrete spur posts set in concrete, 100x50mm pales, 150x25mm rails to both faces including all excavation, concrete backfill and remove waste and debris, including where necessary taking down remnants of existing fencing and posts, reinstate paving, gardens and the like as necessary (measured per metre run of fencing).
A161: 0176BB | B161: FENCING:REMOVE HIT AND MISS | C161: FENCING AND GATES | D161: Fencing | E161: Fencing - Hit and Miss | F161: LM | G161: 7.64 | H161: =SUMIF('Contractor##'!C:C,'Planned Maint v6.2 CSV File'!C:C,'Contractor##'!F:F) -> -0.179 | I161: 6.27244 | J161: Fencing:Remove any softwood hit and miss type of fencing including posts and and remove waste and debris, fill post holes with top soil and reinstate paving and gardens as necessary.
A162: 0176CA | B162: FENCING:RENEW PALISADE 1.35M HIGH | C162: FENCING AND GATES | D162: Fencing | E162: Fencing - Palisade | F162: LM | G162: 42.32 | H162: =SUMIF('Contractor##'!C:C,'Planned Maint v6.2 CSV File'!C:C,'Contractor##'!F:F) -> -0.179 | I162: 34.74472 | J162: Fencing:Renew with or supply and fix tanalised softwood palisade fence 1.35m high with 100x100mm posts at ne 1.80m centres, 100x50mm rails, 75mm pales at 125mm centres including all excavation, concrete, backfill and remove waste and debris, including where necessary taking down remnants of existing fencing and posts, reinstate paving, gardens and the like as necessary (measured per metre run of fencing).
A163: 0176CB | B163: FENCING:RENEW PALISADE 1.8M HIGH | C163: FENCING AND GATES | D163: Fencing | E163: Fencing - Palisade | F163: LM | G163: 49.62 | H163: =SUMIF('Contractor##'!C:C,'Planned Maint v6.2 CSV File'!C:C,'Contractor##'!F:F) -> -0.179 | I163: 40.73802 | J163: Fencing:Renew with or supply and fix tanalised softwood palisade fence 1.80m high with 100x100mm posts at ne 1.80m centres, 100x50mm rails, 75mm pales at 125mm centres including all excavation, concrete, backfill and remove waste and debris, including where necessary taking down remnants of existing fencing and posts, reinstate paving, gardens and the like as necessary (measured per metre run of fencing).
A164: 0176CC | B164: FENCING:REMOVE PALISADE | C164: FENCING AND GATES | D164: Fencing | E164: Fencing - Palisade | F164: LM | G164: 8.78 | H164: =SUMIF('Contractor##'!C:C,'Planned Maint v6.2 CSV File'!C:C,'Contractor##'!F:F) -> -0.179 | I164: 7.20838 | J164: Fencing:Remove any palisade type of fencing including posts and remove waste and debris, fill post holes with top soil and reinstate paving and gardens as necessary.
A165: 0176GA | B165: FENCING:RENEW POST AND 2 RAIL | C165: FENCING AND GATES | D165: Fencing | E165: Fencing - Post and Rail | F165: LM | G165: 30.62 | H165: =SUMIF('Contractor##'!C:C,'Planned Maint v6.2 CSV File'!C:C,'Contractor##'!F:F) -> -0.179 | I165: 25.13902 | J165: Fencing:Renew with or supply and fix tanalised softwood post and two rail fence with 75x125mm posts at ne 1.80m centres, 100x38mm rails, including all excavation, concrete, backfill and remove waste and debris, including where necessary taking down remnants of existing fencing and posts, reinstate paving, gardens and the like as necessary (measured per metre run of fencing).
A166: 0176GB | B166: FENCING:RENEW POST AND 3 RAIL | C166: FENCING AND GATES | D166: Fencing | E166: Fencing - Post and Rail | F166: LM | G166: 34.15 | H166: =SUMIF('Contractor##'!C:C,'Planned Maint v6.2 CSV File'!C:C,'Contractor##'!F:F) -> -0.179 | I166: 28.03715 | J166: Fencing:Renew with or supply and fix tanalised softwood post and three rail fence with 75x125mm posts at ne 1.80m centres, 100x38mm rails, including all excavation, concrete, backfill and remove waste and debris, including where necessary taking down remnants of existing fencing and posts, reinstate paving, gardens and the like as necessary (measured per metre run of fencing).
A167: 0176HA | B167: FENCING:ERECT POST AND WIRE 1.2M | C167: FENCING AND GATES | D167: Fencing | E167: Fencing - Post and Wire | F167: LM | G167: 20.9 | H167: =SUMIF('Contractor##'!C:C,'Planned Maint v6.2 CSV File'!C:C,'Contractor##'!F:F) -> -0.179 | I167: 17.1589 | J167: Fencing:Erect post and wire fencing 1.20m high with 100x100x1.625m concrete posts cast into concrete with three 2.5mm diameter galvanised mild or plastic coated steel line wires including all fittings, ties etc. and including all excavation, concrete, backfill and remove waste and debris, reinstate paving, gardens and the like as necessary (measured per metre run of fencing).
A168: 0176HB | B168: FENCING:RENEW OR FIX LINE WIRE | C168: FENCING AND GATES | D168: Fencing | E168: Fencing - Post and Wire | F168: LM | G168: 1.69 | H168: =SUMIF('Contractor##'!C:C,'Planned Maint v6.2 CSV File'!C:C,'Contractor##'!F:F) -> -0.179 | I168: 1.38749 | J168: Fencing:Renew or fix new galvanised or PVC coated line wire to post and wire fence, fix wire to posts including remove and refix fencing as found expedient, remove waste and debris (measured per run of line wire).
A169: 0177AA | B169: FENCING:REMOVE PCC POST AND SLAB | C169: FENCING AND GATES | D169: Fencing | E169: Fencing - Concrete Panel | F169: LM | G169: 7.64 | H169: =SUMIF('Contractor##'!C:C,'Planned Maint v6.2 CSV File'!C:C,'Contractor##'!F:F) -> -0.179 | I169: 6.27244 | J169: Fencing:Remove precast concrete post and slab fencing 1.20m high and remove waste and debris, fill post holes with top soil and reinstate paving gardens and the like as necessary (measured per metre run of fencing).
A170: 0178AA | B170: FENCING:MAKE SAFE FENCING | C170: FENCING AND GATES | D170: Fencing | E170: Fencing - Concrete Panel | F170: LM | G170: 10.62 | H170: =SUMIF('Contractor##'!C:C,'Planned Maint v6.2 CSV File'!C:C,'Contractor##'!F:F) -> -0.179 | I170: 8.71902 | J170: Fencing:Make safe any unstable fence and or gate including but not limited to resecure and or refix fencing, brace and or reset and or refix post, rehang gate or resecure.
A171: 0178AB | B171: FENCING:RENEW TIMBER PALE AND LAG | C171: FENCING AND GATES | D171: Fencing | E171: Fencing - Sundry Repairs | F171: NO | G171: 6.01 | H171: =SUMIF('Contractor##'!C:C,'Planned Maint v6.2 CSV File'!C:C,'Contractor##'!F:F) -> -0.179 | I171: 4.93421 | J171: Fencing:Renew any type of fencing pale or lag with ne 25x150mm tanalised timber including all labours, remove waste and debris.
A172: 0178AC | B172: FENCING:REFIX TIMBER PALE AND LAG | C172: FENCING AND GATES | D172: Fencing | E172: Fencing - Sundry Repairs | F172: NO | G172: 1.71 | H172: =SUMIF('Contractor##'!C:C,'Planned Maint v6.2 CSV File'!C:C,'Contractor##'!F:F) -> -0.179 | I172: 1.40391 | J172: Fencing:Refix any type of fencing pale or lag including remove and refix as necessary.
A173: 0178AD | B173: FENCING:FIX GALVANISED REPAIR BRACKET | C173: FENCING AND GATES | D173: Fencing | E173: Fencing - Sundry Repairs | F173: NO | G173: 6.1 | H173: =SUMIF('Contractor##'!C:C,'Planned Maint v6.2 CSV File'!C:C,'Contractor##'!F:F) -> -0.179 | I173: 5.0081 | J173: Fencing:Supply and fix galvanised repair bracket to rail and post including all cutting and fitting to suit.
A174: 0190AA | B174: FENCE POST:EXCAVATE REMOVE AND MAKE GOOD | C174: FENCING AND GATES | D174: Fencing | E174: Fencing - Posts | F174: NO | G174: 6.86 | H174: =SUMIF('Contractor##'!C:C,'Planned Maint v6.2 CSV File'!C:C,'Contractor##'!F:F) -> -0.179 | I174: 5.63206 | J174: Fence Post:Excavate and remove remnants of damaged post with earth or concrete surround, fill hole with top soil, and remove waste and debris, reinstate paving, gardens and the like as necessary.
A175: 0190AB | B175: FENCE POST:REFIX LOOSE POST | C175: FENCING AND GATES | D175: Fencing | E175: Fencing - Posts | F175: NO | G175: 7.7 | H175: =SUMIF('Contractor##'!C:C,'Planned Maint v6.2 CSV File'!C:C,'Contractor##'!F:F) -> -0.179 | I175: 6.3217 | J175: Fence Post:Refix any type of loose post including reset any post set in earth or concrete without removing and refixing any post fixed to brickwork, concrete and make good.
A176: 0190BA | B176: FENCE POST:RENEW TIMBER TO HARDCORE OR CONCRETE | C176: FENCING AND GATES | D176: Fencing | E176: Fencing - Posts | F176: NO | G176: 26.57 | H176: =SUMIF('Contractor##'!C:C,'Planned Maint v6.2 CSV File'!C:C,'Contractor##'!F:F) -> -0.179 | I176: 21.81397 | J176: Fence Post:Renew tanalised softwood fence post set in hardcore or concrete size 100x100mm and ne 2.40m long including any struts, excavate hole, place hardcore and or concrete, backfill, remove and refix fencing, and remove waste and debris, reinstate paving, gardens and the like as necessary.
A177: 0190BB | B177: FENCE POST:RENEW TIMBER TO BRICKWORK | C177: FENCING AND GATES | D177: Fencing | E177: Fencing - Posts | F177: NO | G177: 24.42 | H177: =SUMIF('Contractor##'!C:C,'Planned Maint v6.2 CSV File'!C:C,'Contractor##'!F:F) -> -0.179 | I177: 20.04882 | J177: Post:Renew softwood tanalised fence post fixed to brickwork size 100x100mm and up to 2.4m long including remove and refix fencing and or gates and drill plug and screw and make good.
A178: 0190BC | B178: FENCE POST:RENEW TIMBER IN METPOST | C178: FENCING AND GATES | D178: Fencing | E178: Fencing - Posts | F178: NO | G178: 23.7 | H178: =SUMIF('Contractor##'!C:C,'Planned Maint v6.2 CSV File'!C:C,'Contractor##'!F:F) -> -0.179 | I178: 19.4577 | J178: Fence Post:Renew 75x75mm tanalised softwood fence post ne 2.40m long with post fixed into driven or bolted Metpost including any struts, remove and refix fencing, remove spoil from site to approved tip, reinstate paving, gardens and the like as necessary.
A179: 0190CA | B179: FENCE POST:RENEW PCC NE 1.5M | C179: FENCING AND GATES | D179: Fencing | E179: Fencing - Posts | F179: NO | G179: 28.47 | H179: =SUMIF('Contractor##'!C:C,'Planned Maint v6.2 CSV File'!C:C,'Contractor##'!F:F) -> -0.179 | I179: 23.37387 | J179: Fence Post:Renew precast concrete fence post or spur set in hardcore or concrete ne 100x100mm and ne 1.50m long including any struts, excavate hole, place hardcore and concrete, backfill, remove and refix fencing, and remove waste and debris, reinstate paving, gardens and the like as necessary.
A180: 0190CB | B180: FENCE POST:RENEW PCC OVER 1.5M | C180: FENCING AND GATES | D180: Fencing | E180: Fencing - Posts | F180: NO | G180: 36.87 | H180: =SUMIF('Contractor##'!C:C,'Planned Maint v6.2 CSV File'!C:C,'Contractor##'!F:F) -> -0.179 | I180: 30.27027 | J180: Fence Post:Renew precast concrete fence post or spur set in hardcore or concrete ne 100x100mm and over 1.50m long including any struts, excavate hole, place hardcore or concrete, backfill, remove and refix fencing, and remove waste and debris, reinstate paving, gardens and the like as necessary.
A181: 0190DA | B181: FENCE POST:FIX 50X100MM SW BATTEN | C181: FENCING AND GATES | D181: Fencing | E181: Fencing - Posts | F181: NO | G181: 15.05 | H181: =SUMIF('Contractor##'!C:C,'Planned Maint v6.2 CSV File'!C:C,'Contractor##'!F:F) -> -0.179 | I181: 12.35605 | J181: Fence Post:Supply and fix 50x100mm tanalised softwood batten to precast concrete post ne 1.80m long including drill and bolt batten to post.
A182: 0190EA | B182: FENCE POST:REPAIR WITH METSPUR | C182: FENCING AND GATES | D182: Fencing | E182: Fencing - Posts | F182: NO | G182: 16.2 | H182: =SUMIF('Contractor##'!C:C,'Planned Maint v6.2 CSV File'!C:C,'Contractor##'!F:F) -> -0.179 | I182: 13.3002 | J182: Fence Post:Repair broken post with ‘Metspur’ fitting including driving spur into ground and bolting to existing post, supply all necessary struts and reinstate paths and gardens on completion, and remove waste and debris.
A183: 0210AA | B183: GATE:RENEW TIMBER NE 1.0SM | C183: FENCING AND GATES | D183: Fencing | E183: Fencing - Timber Gates | F183: NO | G183: 64.35 | H183: =SUMIF('Contractor##'!C:C,'Planned Maint v6.2 CSV File'!C:C,'Contractor##'!F:F) -> -0.179 | I183: 52.83135 | J183: Gate:Renew tanalised softwood single leaf gate ne 1.00sm overall, comprising of two 144x27mm ledges, five 144x20mm vertical boards at 175mm centres and one 144x27mm diagonal brace, including new galvanised steel strap hinges and hangers fixed to existing concrete post, new galvanised mild steel auto catch, prepare for and decorate, and remove waste and debris.
A184: 0210AB | B184: GATE:RENEW TIMBER NE 1.5SM | C184: FENCING AND GATES | D184: Fencing | E184: Fencing - Timber Gates | F184: NO | G184: 73.72 | H184: =SUMIF('Contractor##'!C:C,'Planned Maint v6.2 CSV File'!C:C,'Contractor##'!F:F) -> -0.179 | I184: 60.52412 | J184: Gate:Renew tanalised softwood single leaf gate ne 1.50sm overall, comprising two 144x27mm ledges, five 144x20mm vertical boards at 175mm centres and one 144x27mm diagonal brace, including new galvanised steel strap hinges and hangers fixed to existing concrete post, new galvanised mild steel auto catch, prepare for and decorate, and remove waste and debris.
A185: 0210AC | B185: GATE:RENEW PAIR TIMBER NE 2.5SM OVERALL | C185: FENCING AND GATES | D185: Fencing | E185: Fencing - Timber Gates | F185: NO | G185: 179.83 | H185: =SUMIF('Contractor##'!C:C,'Planned Maint v6.2 CSV File'!C:C,'Contractor##'!F:F) -> -0.179 | I185: 147.64043 | J185: Gate:Renew tanalised softwood two leaved gate ne 2.50sm overall, each leaf comprising two 144x27mm ledges six 144x20mm vertical boards at 175mm centres and one 144x27mm diagonal brace, including new galavanised steel strap hinges and hangers fixed to existing concrete posts, new galvanised mild steel auto catch, prepare for and decorate, to approved tip.
A186: 0210AD | B186: GATE:RENEW TIMBER NE 2.SM OVERALL | C186: FENCING AND GATES | D186: Gates | E186: Fencing - Timber Gates | F186: NO | G186: 95.31 | H186: =SUMIF('Contractor##'!C:C,'Planned Maint v6.2 CSV File'!C:C,'Contractor##'!F:F) -> -0.179 | I186: 78.24951 | J186: Gate:Renew tanalised softwood single leaf gate ne 2.00sm overall, comprising of three 144x27mm ledges six 144x20mm vertical boards at 175mm centres and two 144x27mm diagonal braces, including new galavanised steel strap hinges and hangers fixed to existing concrete posts, new galvanised mild steel auto catch, prepare for and decorate, remove waste and debris.
A187: 0210AE | B187: GATE:RENEW PAIR TIMBER NE 4SM OVERALL | C187: FENCING AND GATES | D187: Gates | E187: Fencing - Timber Gates | F187: NO | G187: 282.19 | H187: =SUMIF('Contractor##'!C:C,'Planned Maint v6.2 CSV File'!C:C,'Contractor##'!F:F) -> -0.179 | I187: 231.67799 | J187: Gate:Renew tanalised softwood two leaved gate ne 4.00sm overall, each leaf comprising three 144x27mm ledges six 144x20mm vertical boards at 175mm centres and two 144x27mm diagonal braces, including new galavanised steel strap hinges and hangers fixed to existing concrete posts, new galvanised mild steel auto catch, prepare for and decorate, to approved tip.
A188: 0210AF | B188: GATE:RENEW PAIR TIMBER NE 8SM OVERALL | C188: FENCING AND GATES | D188: Gates | E188: Fencing - Timber Gates | F188: NO | G188: 618.12 | H188: =SUMIF('Contractor##'!C:C,'Planned Maint v6.2 CSV File'!C:C,'Contractor##'!F:F) -> -0.179 | I188: 507.47652 | J188: Gate:Renew tanalised softwood two leaved gate ne 8.00sm overall, each leaf comprising three 144x27mm ledges six 144x20mm vertical boards at 175mm centres and two 144x27mm diagonal braces, including new galavanised steel strap hinges and hangers fixed to existing concrete posts, new galvanised mild steel auto catch, prepare for and decorate, to approved tip.
A189: 0210BA | B189: GATE:INSTALL TIMBER NE 1.0SM AND POSTS | C189: FENCING AND GATES | D189: Fencing | E189: Fencing - Timber Gates | F189: NO | G189: 131.04 | H189: =SUMIF('Contractor##'!C:C,'Planned Maint v6.2 CSV File'!C:C,'Contractor##'!F:F) -> -0.179 | I189: 107.58384 | J189: Gate:Install tanalised softwood single leaf gate ne 1.00sm overall, comprising of two 144x27mm ledges, five 144x20mm vertical boards at 175mm centres and one 144x27mm diagonal brace, including galvanised steel strap hinges and hangers fixed to and including precast concrete posts ne 1.65m long, galvanised mild steel auto catch, prepare for and decorate, posts set in concrete including all excavation, concrete, backfill, and remove waste and debris, reinstate paving, gardens and the like as necessary.
A190: 0210BB | B190: GATE:INSTALL TIMBER NE 1.5SM AND POSTS | C190: FENCING AND GATES | D190: Fencing | E190: Fencing - Timber Gates | F190: NO | G190: 150.72 | H190: =SUMIF('Contractor##'!C:C,'Planned Maint v6.2 CSV File'!C:C,'Contractor##'!F:F) -> -0.179 | I190: 123.74112 | J190: Gate:Install tanalised softwood single leaf gate ne 1.50sm overall, comprising two 144x27mm ledges, five 144x20mm vertical boards at 175mm centres and one 144x27mm diagonal brace, including galvanised steel strap hinges and hangers fixed to and including precast concrete posts ne 2.15m long, galvanised mild steel auto catch, prepare for and decorate, posts set in concrete including all excavation, concrete, backfill, and remove waste and debris, reinstate paving, gardens and the like as necessary.
A191: 0210BC | B191: GATES:INSTALL PAIR TIMBER NE 2.5SM OVERALL & POSTS | C191: FENCING AND GATES | D191: Fencing | E191: Fencing - Timber Gates | F191: NO | G191: 259.88 | H191: =SUMIF('Contractor##'!C:C,'Planned Maint v6.2 CSV File'!C:C,'Contractor##'!F:F) -> -0.179 | I191: 213.36148 | J191: Gates:Install tanalised softwood two leaved gate ne 2.5sm overall, each leaf comprising two 144x27mm ledges, six 144x20mm vertical boards at 175mm centres and one 144x27mm diagonal brace, including steel strap hinges and hangers fixed to and including precaste concrete posts, galvanised mild steel auto catch, prepare for and decorate, posts set in concrete including all excavation, concrete, backfill and remove waste and debris, reinstate paving, gardens and like as necessary.
A192: 0210BD | B192: GATE:INSTALL TIMBER NE 2.0SM AND POSTS | C192: FENCING AND GATES | D192: Gates | E192: Fencing - Timber Gates | F192: NO | G192: 189.37 | H192: =SUMIF('Contractor##'!C:C,'Planned Maint v6.2 CSV File'!C:C,'Contractor##'!F:F) -> -0.179 | I192: 155.47277 | J192: Gate:Install tanalised softwood single leaf gate ne 2.00sm overall, comprising of three 144x27mm ledges, six 144x20mm vertical boards at 175mm centres and two 144x27mm diagonal braces, including galvanised steel strap hinges and hangers fixed to and including precast concrete posts ne 1.65m long, galvanised mild steel auto catch, prepare for and decorate, posts set in concrete including all excavation, concrete, backfill, and remove waste and debris, reinstate paving, gardens and the like as necessary.
A193: 0210BF | B193: GATES:INSTALL PAIR TIMBER NE 4SM OVERALL & POSTS | C193: FENCING AND GATES | D193: Gates | E193: Fencing - Timber Gates | F193: NO | G193: 377.49 | H193: =SUMIF('Contractor##'!C:C,'Planned Maint v6.2 CSV File'!C:C,'Contractor##'!F:F) -> -0.179 | I193: 309.91929 | J193: Gates:Install tanalised softwood two leaved gate ne 4.00sm overall, each leaf comprising three 144x27mm ledges, six 144x20mm vertical boards at 175mm centres and two 144x27mm diagonal braces, including steel strap hinges and hangers fixed to and including precaste concrete posts, galvanised mild steel auto catch, prepare for and decorate, posts set in concrete including all excavation, concrete, backfill and remove waste and debris, reinstate paving, gardens and like as necessary.
A194: 0210BG | B194: GATES:INSTALL PAIR TIMBER NE 8SM OVERALL & POSTS | C194: FENCING AND GATES | D194: Gates | E194: Fencing - Timber Gates | F194: NO | G194: 774.37 | H194: =SUMIF('Contractor##'!C:C,'Planned Maint v6.2 CSV File'!C:C,'Contractor##'!F:F) -> -0.179 | I194: 635.75777 | J194: Gates:Install tanalised softwood two leaved gate ne 8.00sm overall, each leaf comprising three 144x27mm ledges, six 144x20mm vertical boards at 175mm centres and two 144x27mm diagonal braces, including steel strap hinges and hangers fixed to and including precaste concrete posts, galvanised mild steel auto catch, prepare for and decorate, posts set in concrete including all excavation, concrete, backfill and remove waste and debris, reinstate paving, gardens and like as necessary.
A195: 0210BH | B195: GATE:INSTALL TIMBER PANEL 1.2M HIGH | C195: FENCING AND GATES | D195: Gates | E195: Fencing - Timber Gates | F195: NO | G195: 91.48 | H195: =SUMIF('Contractor##'!C:C,'Planned Maint v6.2 CSV File'!C:C,'Contractor##'!F:F) -> -0.179 | I195: 75.10508 | J195: Gate:Install tanalised softwood single leaf gate comprising 0 90m wide x 1.20m high interwoven or overlap panel with additional diagonal brace, including galvanised steel hinges fixed to and including 100x100mm treated softwood posts ne 1.85m long, galvanised mild steel auto catch, prepare for and decorate, posts set in concrete including all excavation, concrete, backfill, and remove waste and debris, reinstate paving, gardens and the like as necessary.
A196: 0210BJ | B196: GATE:INSTALL TIMBER PANEL 1.8M HIGH | C196: FENCING AND GATES | D196: Gates | E196: Fencing - Timber Gates | F196: NO | G196: 105.51 | H196: =SUMIF('Contractor##'!C:C,'Planned Maint v6.2 CSV File'!C:C,'Contractor##'!F:F) -> -0.179 | I196: =(1+H196)*G196 -> 86.62371 | J196: Gate:Install tanalised softwood single leaf gate comprising 0.90m wide x 1.80m high interwoven or overlap panel with additional diagonal brace, including galvanised steel hinges fixed to and including 100x100mm treated softwood posts ne 2.45m long, galvanised mild steel auto catch, prepare for and decorate, posts set in concrete including all excavation, concrete, backfill, and remove waste and debris, reinstate paving, gardens and the like as necessary.
A197: 0210CA | B197: GATE:REPAIR AND EASE AND ADJUST TIMBER GATE | C197: FENCING AND GATES | D197: Gates | E197: Fencing - Timber Gates | F197: NO | G197: 19.42 | H197: =SUMIF('Contractor##'!C:C,'Planned Maint v6.2 CSV File'!C:C,'Contractor##'!F:F) -> -0.179 | I197: 15.94382 | J197: Gate:Repair any damaged timber gate including ease and adjust, remove and rehang as necessary including adjust stop, supply and fix new timbers and scarf new sections as required and redecorate to match existing.
A198: 0210CB | B198: GATE:RENEW GATE AND FENCE CAPPING | C198: FENCING AND GATES | D198: Gates | E198: Fencing - Timber Gates | F198: LM | G198: 4.05 | H198: =SUMIF('Contractor##'!C:C,'Planned Maint v6.2 CSV File'!C:C,'Contractor##'!F:F) -> -0.179 | I198: 3.32505 | J198: Gate:Renew any type and size of gate or fence capping with softwood tanalised capping to match and redecorate to match existing, remove waste and debris.
A199: 0230AA | B199: GATE:RENEW METAL NE 1.0SM | C199: FENCING AND GATES | D199: Fencing | E199: Fencing - Metal Gates | F199: NO | G199: 60.04 | H199: =SUMIF('Contractor##'!C:C,'Planned Maint v6.2 CSV File'!C:C,'Contractor##'!F:F) -> -0.179 | I199: 49.29284 | J199: Gate:Renew galvanised mild steel gate ne 1.00sm, overall consisting of 25x25x3mm angle frame with corners mitred and welded and seven 10x10mm balusters with ends welded to frame, including sliding bolt, stop and one pair of hanging lugs fixed to brickwork or concrete, prepare for and decorate, and remove waste and debris.
A200: 0230AB | B200: GATE:RENEW METAL NE 2.0SM | C200: FENCING AND GATES | D200: Fencing | E200: Fencing - Metal Gates | F200: NO | G200: 134.57 | H200: =SUMIF('Contractor##'!C:C,'Planned Maint v6.2 CSV File'!C:C,'Contractor##'!F:F) -> -0.179 | I200: 110.48197 | J200: Gate:Renew galvanised mild steel gate ne 2.00sm overall consisting of 25x25x3mm angle frame with corners mitred and welded and seven 10x10mm balusters with ends welded to frame, including sliding bolt, stop and one pair of hanging lugs fixed to brickwork or concrete, prepare for and decorate, and remove waste and debris.
... 2998 more rows

Sheet Contractor##
K1: Rate Packet Order
K2: Details | L2: Order
C3: Camden Better Homes Construction Framework | K3: SCAFFOLD | L3: 1
C4: Lot 2: Internals & Externals | K4: ROOF | L4: 2
C5: Schedule 4: Pricing Document | K5: WINDOWS | L5: 3
K6: EXTREP | L6: 4
C7: Mulalley | K7: COMMUNAL WORKS | L7: 5
K8: ASBESTOS | L8: 6
D9: Works total (exc Central Overhead and Profit) | G9: 142064000 | K9: ESTATE WORKS | L9: 7
K10: FRA WORKS | L10: 8
C11: Category | D11: Weighting | E11: Score share | F11: (-) Discount/ (+) Increase | G11: Score | K11: ENERGY EFFICIENY | L11: 9
C12: NHF Schedule - Planned Maintenance and Property Reinvestment Works - Version 6.2 - Volume 2 - Schedule of Rates
C14: Foundations | D14: 0.0011 | E14: =G$9*D14 -> 156270.4 | F14: -0.2702 | G14: =(1+F14)*E14 -> 114046.1379
C15: Groundworks | D15: 0.0011 | E15: =G$9*D15 -> 156270.4 | F15: -0.1777 | G15: =(1+F15)*E15 -> 128501.1499
C16: Fencing and gates | D16: 0.0011 | E16: 156270.4 | F16: -0.179 | G16: 128297.9984
C17: Drainage | D17: 0.0011 | E17: 156270.4 | F17: -0.1714 | G17: 129485.6534
C18: Brickwork | D18: 0.0162 | E18: 2301436.8 | F18: -0.275 | G18: 1668541.68
C19: Masonry | D19: 0.0011 | E19: 156270.4 | F19: -0.275 | G19: 113296.04
C20: Roofing | D20: 0.1135 | E20: 16124264 | F20: -0.2 | G20: 12899411.2
C21: CARPENTRY AND JOINERY | D21: 0.2236 | E21: 31765510.4 | F21: -0.1135 | G21: 28160124.97
C22: Plasterwork and other finishes | D22: 0.0114 | E22: 1619529.6 | F22: -0.275 | G22: 1174158.96
C23: WALL AND FLOOR TILE AND SHEET FINISHES | D23: 0.0041 | E23: 582462.4 | F23: -0.1576 | G23: 490666.3258
C24: Painting and decorating | D24: 0.0986 | E24: 14007510.4 | F24: -0.15 | G24: 11906383.84
C25: Cleaning and clearances | D25: 0.0009 | E25: 127857.6 | F25: -0.233 | G25: 98066.7792
C26: Glazing | D26: 0.0194 | E26: 2756041.6 | F26: -0.1786 | G26: 2263812.57
C27: Plumbing | D27: 0.0073 | E27: 1037067.2 | F27: -0.2589 | G27: 768570.5019
C28: Electrical | D28: 0.0041 | E28: 582462.4 | F28: -0.2 | G28: 465969.92
C29: Specialist treatments | D29: 0.0011 | E29: 156270.4 | F29: -0.275 | G29: 113296.04
C31: Addendums
C33: Scaffolding | D33: 0.1781 | E33: =G$9*D33 -> 25301598.4 | F33: 0.27 | G33: =(1+F33)*E33 -> 32133029.97
C34: Window repairs addendum | D34: 0.1322 | E34: 18780860.8 | F34: -0.05 | G34: 17841817.76
C35: Fabric Repairs addendum | D35: 0.0185 | E35: 2628184 | F35: -0.2 | G35: 2102547.2
C36: Roofing addendum | D36: 0.0117 | E36: 1662148.8 | F36: -0.227 | G36: 1284841.022
C37: Asbestos internal/external | D37: 0.0089 | E37: 1264369.6 | F37: -0.05 | G37: 1201151.12
C39: Internal Baskets
C41: Kitchens | D41: 0.0204 | E41: =G$9*D41 -> 2898105.6 | F41: 0.0014 | G41: =(1+F41)*E41 -> 2902162.948
C42: Bathrooms | D42: 0.0059 | E42: 838177.6 | F42: 0.1259 | G42: 943704.1598
C43: Electrical Internals | D43: 0.0149 | E43: 2116753.6 | F43: -0.1 | G43: 1905078.24
C44: Heating | D44: 0.0037 | E44: 525636.8 | F44: -0.1 | G44: 473073.12
C46: Project Overhead Schedule
C47: Category | D47: Weighting | E47: Estimated Spend | F47: % Increase or Decrease on Schedule | G47: Score
C49: Project Overhead Schedule | D49: 0.1 | E49: =G$9*D49 -> 14206400 | F49: 0 | G49: =(1+F49)*E49 -> 14206400
D52: Works Tender Score | G52: =(SUM(G13:G30))+(SUM(G33:G37))+(SUM(G40:G45))+G49 -> 135616435.3
C54: Percentage for Central Overhead & Profit
C55: Category | F55: Percentage | G55: Amount
C57: Percentage for Central Overhead & Profit | F57: 0.04 | G57: =G52*F57 -> 5424657.412
D60: Tender Price Score | G60: =G52+G57 -> 141041092.7
D62: =(SUM(D14:D44))+D49 -> 1 | E62: =SUM(E14:E49) -> 142064000
C64: * It is anticipated that most of the works done under this heading will be window renewals and repairs

Sheet Project Overheads & Scaffold
AK2: May not need this section
A6: Requirement | C6: Requirement Type | D6: Rowtype (H=Header, D=Detail) | E6: Description | F6: Works Order Commencement Date | G6: Works Order Completion Date | H6: Specification Ref. Item No.'s | I6: Works Order Delivery Date | J6: SOR Code | K6: SOR Unit | L6: No units | M6: Allocation | N6: No Months | O6: Tendered rate | P6: Improved rate | Q6: Total Cost | V6: Property | W6: Code | X6: Requirement Type | Y6: Rowtype (H=Header, D=Detail) | Z6: Description | AA6: Works Order Commencement Date | AB6: Works Order Completion Date | AC6: Specification Ref. Item No.'s | AD6: Works Order Delivery Date | AE6: SOR Code | AF6: SOR Unit | AG6: SOR Qty | AH6: SOR Cost | AI6: Total Cost | AK6: Rate (max) | AL6: Cost (max) | AM6: Modified price | AN6: Tendered rate | AO6: Tendered total
U7: 0 | V7: =OFFSET(PropertyStart,0,U7) -> 1-44 Denyer House | W7: =INDIRECT("'"&V7&"'!B6") -> REPB14020 | X7: SCAFFOLD | Y7: D | Z7: Additional Hire if required - % per week of total scaffolding costs. This is to be applied in the event an agreed programme exceeding the duration set out above. An example would be large low level blocks of 4 storeys requiring a large programme duration | AE7: SC024 | AF7: unit | AH7: =IF($AP$10="",$AP$8,$AP$10) -> 0.0483 | AI7: =AG7*AH7*SUMIFS(INDIRECT("'"&V7 &"'!T:T"),INDIRECT("'"&V7 &"'!j:j"),"<>SC024",INDIRECT("'"&V7 &"'!j:j"),"<>SC017",INDIRECT("'"&V7 &"'!j:j"),"<>SC026",INDIRECT("'"&V7 &"'!j:j"),"<>SC027",INDIRECT("'"&V7 &"'!j:j"),"<>SC030",INDIRECT("'"&V7 &"'!C:C"),"SCAFFOLD") -> 0 | AK7: =SUMIF('Planned Maint v6.2 CSV File'!A:A,AE7,'Planned Maint v6.2 CSV File'!I:I) -> 0.0483 | AL7: =IF(AE7="PROV SUM",AI7,#REF!*AK7) ->  | AM7: =IF(AE7="Prov Sum","",IF(MATCH(AE7,'Packet Rate Library'!J:J,0),VLOOKUP(AE7,'Packet Rate Library'!J:T,9,FALSE),"")) ->  | AN7: =AK7 -> 0.0483 | AO7: =IF(AE7="PROV SUM",AI7,AG7*AN7) -> 0
C8: PROJECT OVERHEADS- Staffing | D8: H | U8: 1 | V8: 1-10 Lissenden Mansions | W8: =INDIRECT("'"&V8&"'!B6") -> REPB04223 | X8: SCAFFOLD | Y8: D | Z8: Additional Hire if required - % per week of total scaffolding costs. This is to be applied in the event an agreed programme exceeding the duration set out above. An example would be large low level blocks of 4 storeys requiring a large programme duration | AE8: SC024 | AF8: unit | AH8: =IF($AP$10="",$AP$8,$AP$10) -> 0.0483 | AI8: =AG8*AH8*SUMIFS(INDIRECT("'"&V8 &"'!T:T"),INDIRECT("'"&V8 &"'!j:j"),"<>SC024",INDIRECT("'"&V8 &"'!j:j"),"<>SC017",INDIRECT("'"&V8 &"'!j:j"),"<>SC026",INDIRECT("'"&V8 &"'!j:j"),"<>SC027",INDIRECT("'"&V8 &"'!j:j"),"<>SC030",INDIRECT("'"&V8 &"'!C:C"),"<>SC028",INDIRECT("'"&V8 &"'!C:C"),"<>SC029",INDIRECT("'"&V8 &"'!C:C"),"SCAFFOLD") -> 0 | AK8: =SUMIF('Planned Maint v6.2 CSV File'!A:A,AE8,'Planned Maint v6.2 CSV File'!I:I) -> 0.0483 | AL8: =IF(AE8="PROV SUM",AI8,#REF!*AK8) ->  | AM8: =IF(AE8="Prov Sum","",IF(MATCH(AE8,'Packet Rate Library'!J:J,0),VLOOKUP(AE8,'Packet Rate Library'!J:T,9,FALSE),"")) ->  | AN8: =AK8 -> 0.0483 | AO8: =IF(AE8="PROV SUM",AI8,AG8*AN8) -> 0 | AP8: ='Planned Maint v6.2 CSV File'!I2999 -> 0.0483 | AQ8: Additional Hire if required - % per week of total scaffolding costs. This is to be applied in the event an agreed programme exceeding 12 weeks
C9: PROJECT OVERHEADS- Staffing | D9: D | E9: Project Manager | J9: 1.01 | K9: Unit/Month | O9: =SUMIF('Planned Maint v6.2 CSV File'!A:A,J9,'Planned Maint v6.2 CSV File'!I:I) -> 6098.245614 | Q9: =IF(NOT(ISBLANK(P9)),P9*N9*M9*L9,O9*N9*M9*L9) -> 0 | U9: 2 | V9: 25 Troyes House | W9: REPB11024 | X9: SCAFFOLD | Y9: D | Z9: Additional Hire if required - % per week of total scaffolding costs. This is to be applied in the event an agreed programme exceeding the duration set out above. An example would be large low level blocks of 4 storeys requiring a large programme duration | AE9: SC024 | AF9: unit | AH9: 0.0483 | AI9: =AG9*AH9*SUMIFS(INDIRECT("'"&V9 &"'!T:T"),INDIRECT("'"&V9 &"'!j:j"),"<>SC024",INDIRECT("'"&V9 &"'!j:j"),"<>SC017",INDIRECT("'"&V9 &"'!j:j"),"<>SC026",INDIRECT("'"&V9 &"'!j:j"),"<>SC027",INDIRECT("'"&V9 &"'!j:j"),"<>SC030",INDIRECT("'"&V9 &"'!C:C"),"SCAFFOLD") -> 0 | AK9: =SUMIF('Planned Maint v6.2 CSV File'!A:A,AE9,'Planned Maint v6.2 CSV File'!I:I) -> 0.0483 | AL9: =IF(AE9="PROV SUM",AI9,#REF!*AK9) ->  | AM9: =IF(AE9="Prov Sum","",IF(MATCH(AE9,'Packet Rate Library'!J:J,0),VLOOKUP(AE9,'Packet Rate Library'!J:T,9,FALSE),"")) ->  | AN9: 0.0483 | AO9: 0
C10: PROJECT OVERHEADS- Staffing | D10: D | E10: Senior Contract Manager | J10: 1.02 | K10: Unit/Month | O10: =SUMIF('Planned Maint v6.2 CSV File'!A:A,J10,'Planned Maint v6.2 CSV File'!I:I) -> 7355 | Q10: =IF(NOT(ISBLANK(P10)),P10*N10*M10*L10,O10*N10*M10*L10) -> 0 | U10: 3 | V10: 11-20 Lissenden Mansions- | W10: REPB04224 | X10: SCAFFOLD | Y10: D | Z10: Additional Hire if required - % per week of total scaffolding costs. This is to be applied in the event an agreed programme exceeding the duration set out above. An example would be large low level blocks of 4 storeys requiring a large programme duration | AE10: SC024 | AF10: unit | AH10: 0.0483 | AI10: 0 | AK10: =SUMIF('Planned Maint v6.2 CSV File'!A:A,AE10,'Planned Maint v6.2 CSV File'!I:I) -> 0.0483 | AL10: =IF(AE10="PROV SUM",AI10,#REF!*AK10) ->  | AM10: =IF(AE10="Prov Sum","",IF(MATCH(AE10,'Packet Rate Library'!J:J,0),VLOOKUP(AE10,'Packet Rate Library'!J:T,9,FALSE),"")) ->  | AN10: 0.0483 | AO10: 0 | AQ10: Additional Hire if required - % per week of total scaffolding costs. This is to be applied in the event an agreed programme exceeding 12 weeks (modified)
C11: PROJECT OVERHEADS- Staffing | D11: D | E11: Contract Manager | J11: 1.03 | K11: Unit/Month | L11: 1 | M11: 0.4 | N11: 3.25 | O11: =SUMIF('Planned Maint v6.2 CSV File'!A:A,J11,'Planned Maint v6.2 CSV File'!I:I) -> 5427.2 | Q11: 7055.36 | U11: 4 | V11: 5 Gillies Street | W11: REPB42150 | X11: SCAFFOLD | Y11: D | Z11: Additional Hire if required - % per week of total scaffolding costs. This is to be applied in the event an agreed programme exceeding the duration set out above. An example would be large low level blocks of 4 storeys requiring a large programme duration | AE11: SC024 | AF11: unit | AH11: 0.0483 | AI11: 0 | AK11: =SUMIF('Planned Maint v6.2 CSV File'!A:A,AE11,'Planned Maint v6.2 CSV File'!I:I) -> 0.0483 | AL11: =IF(AE11="PROV SUM",AI11,#REF!*AK11) ->  | AM11: =IF(AE11="Prov Sum","",IF(MATCH(AE11,'Packet Rate Library'!J:J,0),VLOOKUP(AE11,'Packet Rate Library'!J:T,9,FALSE),"")) ->  | AN11: 0.0483 | AO11: 0
C12: PROJECT OVERHEADS- Staffing | D12: D | E12: Senior Site Manager | J12: 1.04 | K12: Unit/Month | O12: =SUMIF('Planned Maint v6.2 CSV File'!A:A,J12,'Planned Maint v6.2 CSV File'!I:I) -> 4996.75 | Q12: 0 | U12: 5 | V12: 8 Dale Road | W12: REPB42122 | X12: SCAFFOLD | Y12: D | Z12: Additional Hire if required - % per week of total scaffolding costs. This is to be applied in the event an agreed programme exceeding the duration set out above. An example would be large low level blocks of 4 storeys requiring a large programme duration | AE12: SC024 | AF12: unit | AH12: 0.0483 | AI12: 0 | AK12: =SUMIF('Planned Maint v6.2 CSV File'!A:A,AE12,'Planned Maint v6.2 CSV File'!I:I) -> 0.0483 | AL12: =IF(AE12="PROV SUM",AI12,#REF!*AK12) ->  | AM12: =IF(AE12="Prov Sum","",IF(MATCH(AE12,'Packet Rate Library'!J:J,0),VLOOKUP(AE12,'Packet Rate Library'!J:T,9,FALSE),"")) ->  | AN12: 0.0483 | AO12: 0 | AP12: ='[2]Planned Maint v6.2 CSV File'!I3002 -> 236.28 | AQ12: Weekly hire (in event of programme extension in line with NEC opt A compensation event agreed). Hoist hire (total number of weeks)
C13: PROJECT OVERHEADS- Staffing | D13: D | E13: Site Manager | J13: 1.05 | K13: Unit/Month | L13: 2 | M13: 1 | N13: 3.25 | O13: =SUMIF('Planned Maint v6.2 CSV File'!A:A,J13,'Planned Maint v6.2 CSV File'!I:I) -> 4471.5 | Q13: 29064.75 | U13: 6 | V13: 11 Gillies Street A-B | W13: REPB42154 | X13: SCAFFOLD | Y13: D | Z13: Additional Hire if required - % per week of total scaffolding costs. This is to be applied in the event an agreed programme exceeding the duration set out above. An example would be large low level blocks of 4 storeys requiring a large programme duration | AE13: SC024 | AF13: unit | AH13: 0.0483 | AI13: 0 | AK13: =SUMIF('Planned Maint v6.2 CSV File'!A:A,AE13,'Planned Maint v6.2 CSV File'!I:I) -> 0.0483 | AL13: =IF(AE13="PROV SUM",AI13,#REF!*AK13) ->  | AM13: =IF(AE13="Prov Sum","",IF(MATCH(AE13,'Packet Rate Library'!J:J,0),VLOOKUP(AE13,'Packet Rate Library'!J:T,9,FALSE),"")) ->  | AN13: 0.0483 | AO13: 0
C14: PROJECT OVERHEADS- Staffing | D14: D | E14: Assistant Site Manager | J14: 1.06 | K14: Unit/Month | O14: =SUMIF('Planned Maint v6.2 CSV File'!A:A,J14,'Planned Maint v6.2 CSV File'!I:I) -> 3910.5 | Q14: 0 | U14: 7 | V14: 30 Grove Terrace Flats A-C | W14: REPB47495 | X14: SCAFFOLD | Y14: D | Z14: Additional Hire if required - % per week of total scaffolding costs. This is to be applied in the event an agreed programme exceeding the duration set out above. An example would be large low level blocks of 4 storeys requiring a large programme duration | AE14: SC024 | AF14: unit | AH14: 0.0483 | AI14: 0 | AK14: =SUMIF('Planned Maint v6.2 CSV File'!A:A,AE14,'Planned Maint v6.2 CSV File'!I:I) -> 0.0483 | AL14: =IF(AE14="PROV SUM",AI14,#REF!*AK14) ->  | AM14: =IF(AE14="Prov Sum","",IF(MATCH(AE14,'Packet Rate Library'!J:J,0),VLOOKUP(AE14,'Packet Rate Library'!J:T,9,FALSE),"")) ->  | AN14: 0.0483 | AO14: 0 | AP14: 179 | AQ14: Weekly hire (in event of programme extension in line with NEC opt A compensation event agreed). Hoist hire (total number of weeks) (modified)
C15: PROJECT OVERHEADS- Staffing | D15: D | E15: Site Supervisor | J15: 1.07 | K15: Unit/Month | O15: =SUMIF('Planned Maint v6.2 CSV File'!A:A,J15,'Planned Maint v6.2 CSV File'!I:I) -> 2903.8 | Q15: 0 | U15: 8 | V15: 25 Elaine Grove | W15: REPB42129 | X15: SCAFFOLD | Y15: D | Z15: Additional Hire if required - % per week of total scaffolding costs. This is to be applied in the event an agreed programme exceeding the duration set out above. An example would be large low level blocks of 4 storeys requiring a large programme duration | AE15: SC024 | AF15: unit | AH15: 0.0483 | AI15: 0 | AK15: =SUMIF('Planned Maint v6.2 CSV File'!A:A,AE15,'Planned Maint v6.2 CSV File'!I:I) -> 0.0483 | AL15: =IF(AE15="PROV SUM",AI15,#REF!*AK15) ->  | AM15: =IF(AE15="Prov Sum","",IF(MATCH(AE15,'Packet Rate Library'!J:J,0),VLOOKUP(AE15,'Packet Rate Library'!J:T,9,FALSE),"")) ->  | AN15: 0.0483 | AO15: 0
C16: PROJECT OVERHEADS- Staffing | D16: D | E16: Technical (lifts, electrical, etc) Supervisor | J16: 1.08 | K16: Unit/Month | O16: =SUMIF('Planned Maint v6.2 CSV File'!A:A,J16,'Planned Maint v6.2 CSV File'!I:I) -> 3693.5 | Q16: 0 | U16: 9 | V16: 130 Prince of Wales Road | W16: REPB42458 | X16: SCAFFOLD | Y16: D | Z16: Additional Hire if required - % per week of total scaffolding costs. This is to be applied in the event an agreed programme exceeding the duration set out above. An example would be large low level blocks of 4 storeys requiring a large programme duration | AE16: SC024 | AF16: unit | AH16: 0.0483 | AI16: 0 | AK16: =SUMIF('Planned Maint v6.2 CSV File'!A:A,AE16,'Planned Maint v6.2 CSV File'!I:I) -> 0.0483 | AL16: =IF(AE16="PROV SUM",AI16,#REF!*AK16) ->  | AM16: =IF(AE16="Prov Sum","",IF(MATCH(AE16,'Packet Rate Library'!J:J,0),VLOOKUP(AE16,'Packet Rate Library'!J:T,9,FALSE),"")) ->  | AN16: 0.0483 | AO16: 0
C17: PROJECT OVERHEADS- Staffing | D17: D | E17: Co-ordinator / RLO / TLO | J17: 1.09 | K17: Unit/Month | L17: 2 | M17: 1 | N17: 3.25 | O17: =SUMIF('Planned Maint v6.2 CSV File'!A:A,J17,'Planned Maint v6.2 CSV File'!I:I) -> 2479.4 | Q17: 16116.1 | U17: 10 | V17: 25 Herbert Street Flats A-B | W17: REPB42313 | X17: SCAFFOLD | Y17: D | Z17: Additional Hire if required - % per week of total scaffolding costs. This is to be applied in the event an agreed programme exceeding the duration set out above. An example would be large low level blocks of 4 storeys requiring a large programme duration | AE17: SC024 | AF17: unit | AH17: 0.0483 | AI17: 0 | AK17: =SUMIF('Planned Maint v6.2 CSV File'!A:A,AE17,'Planned Maint v6.2 CSV File'!I:I) -> 0.0483 | AL17: =IF(AE17="PROV SUM",AI17,#REF!*AK17) ->  | AM17: =IF(AE17="Prov Sum","",IF(MATCH(AE17,'Packet Rate Library'!J:J,0),VLOOKUP(AE17,'Packet Rate Library'!J:T,9,FALSE),"")) ->  | AN17: 0.0483 | AO17: 0
C18: PROJECT OVERHEADS- Staffing | D18: D | E18: Senior QS | J18: 1.1 | K18: Unit/Month | O18: =SUMIF('Planned Maint v6.2 CSV File'!A:A,J18,'Planned Maint v6.2 CSV File'!I:I) -> 6388 | Q18: 0 | U18: 11 | V18: 128 Prince of Wales | W18: REPB42457 | X18: SCAFFOLD | Y18: D | Z18: Additional Hire if required - % per week of total scaffolding costs. This is to be applied in the event an agreed programme exceeding the duration set out above. An example would be large low level blocks of 4 storeys requiring a large programme duration | AE18: SC024 | AF18: unit | AH18: 0.0483 | AI18: 0 | AK18: =SUMIF('Planned Maint v6.2 CSV File'!A:A,AE18,'Planned Maint v6.2 CSV File'!I:I) -> 0.0483 | AL18: =IF(AE18="PROV SUM",AI18,#REF!*AK18) ->  | AM18: =IF(AE18="Prov Sum","",IF(MATCH(AE18,'Packet Rate Library'!J:J,0),VLOOKUP(AE18,'Packet Rate Library'!J:T,9,FALSE),"")) ->  | AN18: 0.0483 | AO18: 0
C19: PROJECT OVERHEADS- Staffing | D19: D | E19: QS | J19: 1.11 | K19: Unit/Month | L19: 1 | M19: 0.5 | N19: 3.25 | O19: =SUMIF('Planned Maint v6.2 CSV File'!A:A,J19,'Planned Maint v6.2 CSV File'!I:I) -> 5935.5 | Q19: 9645.1875 | U19: 12 | V19: 10 Gillies Street | W19: REPB42153 | X19: SCAFFOLD | Y19: D | Z19: Additional Hire if required - % per week of total scaffolding costs. This is to be applied in the event an agreed programme exceeding the duration set out above. An example would be large low level blocks of 4 storeys requiring a large programme duration | AE19: SC024 | AF19: unit | AH19: 0.0483 | AI19: 0 | AK19: =SUMIF('Planned Maint v6.2 CSV File'!A:A,AE19,'Planned Maint v6.2 CSV File'!I:I) -> 0.0483 | AL19: =IF(AE19="PROV SUM",AI19,#REF!*AK19) ->  | AM19: =IF(AE19="Prov Sum","",IF(MATCH(AE19,'Packet Rate Library'!J:J,0),VLOOKUP(AE19,'Packet Rate Library'!J:T,9,FALSE),"")) ->  | AN19: 0.0483 | AO19: 0
C20: PROJECT OVERHEADS- Staffing | D20: D | E20: Assistant QS | J20: 1.12 | K20: Unit/Month | O20: =SUMIF('Planned Maint v6.2 CSV File'!A:A,J20,'Planned Maint v6.2 CSV File'!I:I) -> 2389.75 | Q20: 0 | U20: 13 | V20: 17 Ascham Street | W20: REPB47024 | X20: SCAFFOLD | Y20: D | Z20: Additional Hire if required - % per week of total scaffolding costs. This is to be applied in the event an agreed programme exceeding the duration set out above. An example would be large low level blocks of 4 storeys requiring a large programme duration | AE20: SC024 | AF20: unit | AH20: 0.0483 | AI20: 0 | AK20: =SUMIF('Planned Maint v6.2 CSV File'!A:A,AE20,'Planned Maint v6.2 CSV File'!I:I) -> 0.0483 | AL20: =IF(AE20="PROV SUM",AI20,#REF!*AK20) ->  | AM20: =IF(AE20="Prov Sum","",IF(MATCH(AE20,'Packet Rate Library'!J:J,0),VLOOKUP(AE20,'Packet Rate Library'!J:T,9,FALSE),"")) ->  | AN20: 0.0483 | AO20: 0
C21: PROJECT OVERHEADS- Staffing | D21: D | E21: Ad Hoc Site Administrator | J21: 1.13 | K21: Unit/Month | O21: =SUMIF('Planned Maint v6.2 CSV File'!A:A,J21,'Planned Maint v6.2 CSV File'!I:I) -> 1694.55 | Q21: 0 | U21: 14 | V21: 13 Doynton Street | W21: REPB47344 | X21: SCAFFOLD | Y21: D | Z21: Additional Hire if required - % per week of total scaffolding costs. This is to be applied in the event an agreed programme exceeding the duration set out above. An example would be large low level blocks of 4 storeys requiring a large programme duration | AE21: SC024 | AF21: unit | AH21: 0.0483 | AI21: 0 | AK21: =SUMIF('Planned Maint v6.2 CSV File'!A:A,AE21,'Planned Maint v6.2 CSV File'!I:I) -> 0.0483 | AL21: =IF(AE21="PROV SUM",AI21,#REF!*AK21) ->  | AM21: =IF(AE21="Prov Sum","",IF(MATCH(AE21,'Packet Rate Library'!J:J,0),VLOOKUP(AE21,'Packet Rate Library'!J:T,9,FALSE),"")) ->  | AN21: 0.0483 | AO21: 0
C22: PROJECT OVERHEADS- Other | D22: H | U22: 15 | V22: 111 Chetwynd Road | W22: REPB47293 | X22: SCAFFOLD | Y22: D | Z22: Additional Hire if required - % per week of total scaffolding costs. This is to be applied in the event an agreed programme exceeding the duration set out above. An example would be large low level blocks of 4 storeys requiring a large programme duration | AE22: SC024 | AF22: unit | AH22: 0.0483 | AI22: 0 | AK22: =SUMIF('Planned Maint v6.2 CSV File'!A:A,AE22,'Planned Maint v6.2 CSV File'!I:I) -> 0.0483 | AL22: =IF(AE22="PROV SUM",AI22,#REF!*AK22) ->  | AM22: =IF(AE22="Prov Sum","",IF(MATCH(AE22,'Packet Rate Library'!J:J,0),VLOOKUP(AE22,'Packet Rate Library'!J:T,9,FALSE),"")) ->  | AN22: 0.0483 | AO22: 0
C23: PROJECT OVERHEADS- Other | D23: D | E23: Site office Cabin (At site office location, with furniture) (drop off, pick up included) | J23: 2.01 | K23: Unit/Month | L23: 1 | M23: 1 | N23: 3.25 | O23: =SUMIF('Planned Maint v6.2 CSV File'!A:A,J23,'Planned Maint v6.2 CSV File'!I:I) -> 142.56 | Q23: =IF(NOT(ISBLANK(P23)),P23*N23*M23*L23,O23*N23*M23*L23) -> 463.32 | U23: 16 | V23: 19 Ascham Street Flats A-B | W23: REPB47025 | X23: SCAFFOLD | Y23: D | Z23: Additional Hire if required - % per week of total scaffolding costs. This is to be applied in the event an agreed programme exceeding the duration set out above. An example would be large low level blocks of 4 storeys requiring a large programme duration | AE23: SC024 | AF23: unit | AH23: 0.0483 | AI23: 0 | AK23: =SUMIF('Planned Maint v6.2 CSV File'!A:A,AE23,'Planned Maint v6.2 CSV File'!I:I) -> 0.0483 | AL23: =IF(AE23="PROV SUM",AI23,#REF!*AK23) ->  | AM23: =IF(AE23="Prov Sum","",IF(MATCH(AE23,'Packet Rate Library'!J:J,0),VLOOKUP(AE23,'Packet Rate Library'!J:T,9,FALSE),"")) ->  | AN23: 0.0483 | AO23: 0
C24: PROJECT OVERHEADS- Other | D24: D | E24: Site stores cabin (At site office location) (drop off, pick up included) | J24: 2.02 | K24: Unit/Month | L24: 2 | M24: 1 | N24: 3.25 | O24: =SUMIF('Planned Maint v6.2 CSV File'!A:A,J24,'Planned Maint v6.2 CSV File'!I:I) -> 39.096 | Q24: 254.124 | U24: 17 | V24: 66LevertonStreet(Flats A-B) | W24: REPB47684 | X24: SCAFFOLD | Y24: D | Z24: Additional Hire if required - % per week of total scaffolding costs. This is to be applied in the event an agreed programme exceeding the duration set out above. An example would be large low level blocks of 4 storeys requiring a large programme duration | AE24: SC024 | AF24: unit | AH24: 0.0483 | AI24: 0 | AK24: =SUMIF('Planned Maint v6.2 CSV File'!A:A,AE24,'Planned Maint v6.2 CSV File'!I:I) -> 0.0483 | AL24: =IF(AE24="PROV SUM",AI24,#REF!*AK24) ->  | AM24: =IF(AE24="Prov Sum","",IF(MATCH(AE24,'Packet Rate Library'!J:J,0),VLOOKUP(AE24,'Packet Rate Library'!J:T,9,FALSE),"")) ->  | AN24: 0.0483 | AO24: 0
C25: PROJECT OVERHEADS- Other | D25: D | E25: Site portable toilet and shower block (drop off, pick up included) | J25: 2.03 | K25: Unit/Month | O25: =SUMIF('Planned Maint v6.2 CSV File'!A:A,J25,'Planned Maint v6.2 CSV File'!I:I) -> 928.8 | Q25: 0 | U25: 18 | V25: 13 Oseney Crescent | W25: REPB47732 | X25: SCAFFOLD | Y25: D | Z25: Additional Hire if required - % per week of total scaffolding costs. This is to be applied in the event an agreed programme exceeding the duration set out above. An example would be large low level blocks of 4 storeys requiring a large programme duration | AE25: SC024 | AF25: unit | AH25: 0.0483 | AI25: 0 | AK25: =SUMIF('Planned Maint v6.2 CSV File'!A:A,AE25,'Planned Maint v6.2 CSV File'!I:I) -> 0.0483 | AL25: =IF(AE25="PROV SUM",AI25,#REF!*AK25) ->  | AM25: =IF(AE25="Prov Sum","",IF(MATCH(AE25,'Packet Rate Library'!J:J,0),VLOOKUP(AE25,'Packet Rate Library'!J:T,9,FALSE),"")) ->  | AN25: 0.0483 | AO25: 0
C26: PROJECT OVERHEADS- Other | D26: D | E26: Site portable toilet 3+1 (drop off, pick up included) | J26: 2.04 | K26: Unit/Month | L26: 1 | M26: 1 | N26: 3.25 | O26: =SUMIF('Planned Maint v6.2 CSV File'!A:A,J26,'Planned Maint v6.2 CSV File'!I:I) -> 928.8 | Q26: 3018.6 | U26: 19 | V26: 29 Grove TerraceFlatsA-C- | W26: REPB47494 | X26: SCAFFOLD | Y26: D | Z26: Additional Hire if required - % per week of total scaffolding costs. This is to be applied in the event an agreed programme exceeding the duration set out above. An example would be large low level blocks of 4 storeys requiring a large programme duration | AE26: SC024 | AF26: unit | AH26: 0.0483 | AI26: 0
C27: PROJECT OVERHEADS- Other | D27: D | E27: Site portable changing/canteen/drying (drop off, pick up included) | J27: 2.05 | K27: Unit/Month | O27: =SUMIF('Planned Maint v6.2 CSV File'!A:A,J27,'Planned Maint v6.2 CSV File'!I:I) -> 129.6 | Q27: 0 | U27: 20 | V27: 28 Leighton Road Flats A-B | W27: REPB47660 | X27: SCAFFOLD | Y27: D | Z27: Additional Hire if required - % per week of total scaffolding costs. This is to be applied in the event an agreed programme exceeding the duration set out above. An example would be large low level blocks of 4 storeys requiring a large programme duration | AE27: SC024 | AF27: unit | AH27: 0.0483 | AI27: 0
C28: PROJECT OVERHEADS- Other | D28: D | E28: Portaloo (drop off, pick up included) | J28: 2.06 | K28: Unit/Month | L28: 6 | M28: 1 | N28: 3.25 | O28: =SUMIF('Planned Maint v6.2 CSV File'!A:A,J28,'Planned Maint v6.2 CSV File'!I:I) -> 86.4 | Q28: 1684.8 | U28: 21 | V28: 13 Mortimer Terrace | W28: REPB47715 | X28: SCAFFOLD | Y28: D | Z28: Additional Hire if required - % per week of total scaffolding costs. This is to be applied in the event an agreed programme exceeding the duration set out above. An example would be large low level blocks of 4 storeys requiring a large programme duration | AE28: SC024 | AF28: unit | AH28: 0.0483 | AI28: 0
C29: PROJECT OVERHEADS- Other | D29: D | E29: Site accommodation general waste per site set up | J29: 2.07 | K29: Unit/Month | L29: 1 | M29: 1 | N29: 3.25 | O29: =SUMIF('Planned Maint v6.2 CSV File'!A:A,J29,'Planned Maint v6.2 CSV File'!I:I) -> 250 | Q29: 812.5 | U29: 22 | V29: 13 Winscombe Terrace | W29: REPB47886 | X29: SCAFFOLD | Y29: D | Z29: Additional Hire if required - % per week of total scaffolding costs. This is to be applied in the event an agreed programme exceeding the duration set out above. An example would be large low level blocks of 4 storeys requiring a large programme duration | AE29: SC024 | AF29: unit | AH29: 0.0483 | AI29: 0
C30: PROJECT OVERHEADS- Other | D30: D | E30: Fencing/hoarding per site set up | J30: 2.08 | K30: Unit/Month | L30: 23 | M30: 1 | N30: 3.25 | O30: =SUMIF('Planned Maint v6.2 CSV File'!A:A,J30,'Planned Maint v6.2 CSV File'!I:I) -> 129.6 | Q30: 9687.6 | V30: 1-10 Lissenden Mansions | W30: REPB04223 | X30: SCAFFOLD | Y30: D | Z30: Weekly hire. Hoist hire (total number of weeks) | AE30: SC027 | AF30: weeks | AG30: 8 | AH30: =IF($AP$14="",$AP$12,$AP$14) -> 179 | AI30: =AG30*AH30 -> 1432
C31: PROJECT OVERHEADS- Other | D31: D | E31: Power per site set up | J31: 2.09 | K31: Unit/Month | L31: 1 | M31: 1 | N31: 3.25 | O31: =SUMIF('Planned Maint v6.2 CSV File'!A:A,J31,'Planned Maint v6.2 CSV File'!I:I) -> 90 | Q31: 292.5 | V31: 25 Troyes House | W31: REPB11024 | X31: SCAFFOLD | Y31: D | Z31: Weekly hire. Hoist hire (total number of weeks) | AE31: SC027 | AF31: weeks | AG31: 8 | AH31: =IF($AP$14="",$AP$12,$AP$14) -> 179 | AI31: =AG31*AH31 -> 1432
C32: PROJECT OVERHEADS- Other | D32: D | E32: Telephone, communications for remote Office Etc… per site set up | J32: 2.1 | K32: Unit/Month | L32: 1 | M32: 1 | N32: 3.25 | O32: =SUMIF('Planned Maint v6.2 CSV File'!A:A,J32,'Planned Maint v6.2 CSV File'!I:I) -> 80 | Q32: 260 | V32: 11-20 Lissenden Mansions- | W32: REPB04224 | X32: SCAFFOLD | Y32: D | Z32: Weekly hire. Hoist hire (total number of weeks) | AE32: SC027 | AF32: weeks | AH32: 179 | AI32: 0
C33: PROJECT OVERHEADS- Other | D33: D | E33: Site set up safety (health & safety pack, first aid pack, fire extinguishers, etc.) per site set up | J33: 2.11 | K33: Item | L33: 1 | M33: 1 | N33: 3.25 | O33: =SUMIF('Planned Maint v6.2 CSV File'!A:A,J33,'Planned Maint v6.2 CSV File'!I:I) -> 200 | Q33: 650
C34: PROJECT OVERHEADS- Other | D34: D | E34: Set up signage | J34: 2.12 | K34: Item | L34: 1 | M34: 1 | N34: 3.25 | O34: =SUMIF('Planned Maint v6.2 CSV File'!A:A,J34,'Planned Maint v6.2 CSV File'!I:I) -> 300 | Q34: 975
C35: PROJECT OVERHEADS- Other | D35: D | E35: Cleaning per site set up | J35: 2.13 | K35: Unit/Month | L35: 1 | M35: 1 | N35: 3.25 | O35: =SUMIF('Planned Maint v6.2 CSV File'!A:A,J35,'Planned Maint v6.2 CSV File'!I:I) -> 301 | Q35: 978.25
C36: PROJECT OVERHEADS- Other | D36: D | E36: Sundries (office stationery, printers, water, etc) per site set up | J36: 2.14 | K36: Unit/Month | L36: 1 | M36: 1 | N36: 3.25 | O36: =SUMIF('Planned Maint v6.2 CSV File'!A:A,J36,'Planned Maint v6.2 CSV File'!I:I) -> 129 | Q36: 419.25
E37: The Contractor is to set out below costs for any items such a site security; watching the works; lifting, access or debris removal equipment, car parking suspension bay costs, licences hoarding; fencing, power, water, additional staff, resources, etc. and all matters covered by the Works Information Scope of Works and Section A Employers Requirements not allowed for elsewhere. The Contractor is instructed to use the priced rates for builders works as submitted with the framework tender to price for items covered in that schedule
C38: ADDITIONAL COSTs | D38: D | E38: Site Labourer | L38: 2 | M38: 1 | N38: 3.25 | O38: 1760 | Q38: 11440
C39: ADDITIONAL COSTs | D39: D | E39: Building Control | L39: 1 | M39: 1 | N39: 1 | O39: 6000 | Q39: 6000
C40: ADDITIONAL COSTs | D40: D | E40: Safety Officer | L40: 1 | M40: 1 | N40: 1 | O40: 5720 | Q40: 5720
C41: ADDITIONAL COSTs | D41: D | E41: Considerate Constructor | L41: 1 | M41: 1 | N41: 1 | O41: 425 | Q41: 425
C42: ADDITIONAL COSTs | D42: D | E42: Nameboard/signage | L42: 1 | M42: 1 | N42: 1 | O42: 1000 | Q42: 1000
C43: ADDITIONAL COSTs | D43: D | E43: Hoist 1-44 Denyer House | M43: 1 | N43: 1 | O43: 3275.5 | Q43: 0
C44: ADDITIONAL COSTs | D44: D | E44: Transport | L44: 1 | M44: 1 | N44: 1 | O44: 3000 | Q44: 3000
C45: ADDITIONAL COSTs | D45: D | E45: Parking permits and skip licences | L45: 1 | M45: 1 | N45: 1 | O45: 7432.47 | Q45: 7432.47
C46: ADDITIONAL COSTs | D46: D | E46: Additional Scaffold and safety costs associated with wide spread isolated properties | L46: 1 | M46: 1 | N46: 1 | O46: 72716.01 | Q46: 72716.01
C47: ADDITIONAL COSTs | D47: D | E47: Uneconomical Working | L47: 1 | M47: 1 | N47: 1 | O47: 18547.2 | Q47: 18547.2
C48: ADDITIONAL COSTs | D48: D | Q48: 0
C49: ADDITIONAL COSTs | D49: D | Q49: 0
C50: ADDITIONAL COSTs | D50: D | Q50: 0
C51: ADDITIONAL COSTs | D51: D | Q51: 0
C52: ADDITIONAL COSTs | D52: D | Q52: 0
C53: ADDITIONAL COSTs | D53: D | Q53: 0
P55: TOTAL | Q55: =SUM(Q9:Q54) -> 207658.0215
A57: ADDITIONAL RATES (please insert price)
E59: Description | J59: SOR Code | K59: SOR Unit | L59: Rate
E60: Contractor to access and undertake survey of loft space in accordance with the Project Brief in order to assess level of current loft insulation. Including submittion of a survey report supported by photographic evidance to CM/PM. Where insulation levels are less then 200mm, Contractor to provide cost proposal to upgrade insulation in accordance with NHF SoR Planned Maintenance Version 6.2. | J60: ADD001 | K60: ITEM

Sheet Summary
C3: Percentage for Central Overhead & Profit | D3: ='Contractor##'!F57 -> 0.04
C5: Percentage for Central Overhead & Profit (modified)
J7: Check for text containing Provisional sum
B8: Property Order | C8: Property | D8: Cost of Activities | E8: Provisional Sums | F8: Project Overheads | G8: Central Overheads and Profit | H8: TOTAL | J8: Provisional sums | K8: Check property sheet for difference
B9: 0 | C9: =OFFSET(PropertyStart,0,B9) -> 1-44 Denyer House | D9: =IF(C9=0,"",SUM(INDIRECT("'"&C9&"'!T:T"))) -> 181652.9707 | E9: =IF(C9=0,"",SUMIF(INDIRECT("'"&C9&"'!J:J"),"PROV SUM",INDIRECT("'"&C9&"'!T:T"))) -> 4000 | F9: =IF(D9="","",D9/$D$60*$F$60) -> 56865.03387 | G9: =IF(F9="","",(D9+F9)*IF(NOT(ISBLANK($D$5)),$D$5,$D$3)) -> 9540.720184 | H9: =IF(D9="","",D9+F9+G9) -> 248058.7248 | J9: =IF(C9=0,"",SUMIF(INDIRECT("'"&C9&"'!E:E"),"*PROVISIONAL SUM*",INDIRECT("'"&C9&"'!T:T"))) -> 4000 | K9: =IF(J9="","",J9-E9) -> 0
B10: 1 | C10: 1-10 Lissenden Mansions | D10: =IF(C10=0,"",SUM(INDIRECT("'"&C10&"'!T:T"))) -> 75420.79344 | E10: =IF(C10=0,"",SUMIF(INDIRECT("'"&C10&"'!J:J"),"PROV SUM",INDIRECT("'"&C10&"'!T:T"))) -> 30235.16 | F10: 23609.88624 | G10: =IF(F10="","",(D10+F10)*IF(NOT(ISBLANK($D$5)),$D$5,$D$3)) -> 3961.227187 | H10: =IF(D10="","",D10+F10+G10) -> 102991.9069 | J10: =IF(C10=0,"",SUMIF(INDIRECT("'"&C10&"'!E:E"),"*PROVISIONAL SUM*",INDIRECT("'"&C10&"'!T:T"))) -> 650 | K10: =IF(J10="","",J10-E10) -> -29585.16
B11: 2 | C11: 25 Troyes House | D11: 85991.80932 | E11: 68200 | F11: 26919.05962 | G11: 4516.434758 | H11: =IF(D11="","",D11+F11+G11) -> 117427.3037 | J11: 68200 | K11: 0
B12: 3 | C12: 11-20 Lissenden Mansions- | D12: 75381.30745 | E12: 0 | F12: 23597.52546 | G12: 3959.153316 | H12: 102937.9862 | J12: 0 | K12: 0
B13: 4 | C13: 5 Gillies Street | D13: 7001.831651 | E13: 1050 | F13: 2191.868332 | G13: 367.7479993 | H13: 9561.447983 | J13: 1050 | K13: 0
B14: 5 | C14: 8 Dale Road | D14: 10788.96679 | E14: 2150 | F14: 3377.401204 | G14: 566.6547197 | H14: 14733.02271 | J14: 2150 | K14: 0
B15: 6 | C15: 11 Gillies Street A-B | D15: 17176.16033 | E15: 3650 | F15: 5376.86191 | G15: 902.1208898 | H15: 23455.14313 | J15: 3650 | K15: 0
B16: 7 | C16: 30 Grove Terrace Flats A-C | D16: 14003.53468 | E16: 1700 | F16: 4383.6964 | G16: 735.4892431 | H16: 19122.72032 | J16: 1700 | K16: 0
B17: 8 | C17: =OFFSET(PropertyStart,0,B17) -> 25 Elaine Grove | D17: 15466.56218 | E17: 2150 | F17: 4841.685654 | G17: 812.3299135 | H17: 21120.57775 | J17: 2150 | K17: 0
B18: 9 | C18: 130 Prince of Wales Road | D18: 16297.96755 | E18: 8390 | F18: 5101.950565 | G18: 855.9967245 | H18: 22255.91484 | J18: 8390 | K18: 0
B19: 10 | C19: 25 Herbert Street Flats A-B | D19: 8164.863358 | E19: 2550 | F19: 2555.946262 | G19: 428.8323848 | H19: 11149.642 | J19: 2550 | K19: 0
B20: 11 | C20: 128 Prince of Wales | D20: 8106.514747 | E20: 2150 | F20: 2537.680688 | G20: 425.7678174 | H20: 11069.96325 | J20: 2150 | K20: 0
B21: 12 | C21: 10 Gillies Street | D21: 6106.811151 | E21: 0 | F21: 1911.689204 | G21: 320.7400142 | H21: 8339.240369 | J21: 0 | K21: 0
B22: 13 | C22: 17 Ascham Street | D22: 12170.91452 | E22: 2550 | F22: 3810.009071 | G22: 639.2369435 | H22: 16620.16053 | J22: 2550 | K22: 0
B23: 14 | C23: 13 Doynton Street | D23: 7669.402005 | E23: 3066.8 | F23: 2400.845982 | G23: 402.8099195 | H23: 10473.05791 | J23: 2150 | K23: -916.8
B24: 15 | C24: 111 Chetwynd Road | D24: 29788.85042 | E24: 3530 | F24: 9325.165349 | G24: 1564.560631 | H24: 40678.5764 | J24: 3050 | K24: -480
B25: 16 | C25: 19 Ascham Street Flats A-B | D25: 13016.50966 | E25: 5100 | F25: 4074.71598 | G25: 683.6490256 | H25: 17774.87466 | J25: 5100 | K25: 0
B26: 17 | C26: 66LevertonStreet(Flats A-B) | D26: 17284.39264 | E26: 500 | F26: 5410.743181 | G26: 907.8054327 | H26: 23602.94125 | J26: 500 | K26: 0
B27: 18 | C27: 13 Oseney Crescent | D27: 13331.41482 | E27: 6720 | F27: 4173.294563 | G27: 700.1883751 | H27: 18204.89775 | J27: 6720 | K27: 0
B28: 19 | C28: 29 Grove TerraceFlatsA-C- | D28: =IF(C28=0,"",SUM(INDIRECT("'"&C28&"'!T:T"))) -> 13952.16491 | E28: 2100 | F28: =IF(D28="","",D28/$D$60*$F$60) -> 4367.615499 | G28: =IF(F28="","",(D28+F28)*IF(NOT(ISBLANK($D$5)),$D$5,$D$3)) -> 732.7912165 | H28: 19052.57163 | J28: 2100 | K28: 0
B29: 20 | C29: 28 Leighton Road Flats A-B | D29: =IF(C29=0,"",SUM(INDIRECT("'"&C29&"'!T:T"))) -> 17108.69087 | E29: 2750 | F29: =IF(D29="","",D29/$D$60*$F$60) -> 5355.741126 | G29: =IF(F29="","",(D29+F29)*IF(NOT(ISBLANK($D$5)),$D$5,$D$3)) -> 898.5772799 | H29: 23363.00928 | J29: 2750 | K29: 0
B30: 21 | C30: 13 Mortimer Terrace | D30: 9517.274093 | E30: 2150 | F30: 2979.307806 | G30: 499.863276 | H30: 12996.44518 | J30: 2150 | K30: 0
B31: 22 | C31: 13 Winscombe Terrace | D31: 7955.151245 | E31: 2150 | F31: 2490.297534 | G31: 417.8179512 | H31: 10863.26673 | J31: 2150 | K31: 0
B32: 23 | C32: 0 | D32: =IF(C32=0,"",SUM(INDIRECT("'"&C32&"'!T:T"))+E32) -> 
B33: 24 | C33: 0
B34: 25 | C34: 0
B35: 26 | C35: 0
B36: 27 | C36: 0
B37: 28 | C37: 0
B38: 29 | C38: 0
B39: 30 | C39: 0
B40: 31 | C40: 0
B41: 32 | C41: 0
B42: 33 | C42: 0
B43: 34 | C43: 0
B44: 35 | C44: 0
B45: 36 | C45: 0
B46: 37 | C46: 0
B47: 38 | C47: 0
B48: 39 | C48: 0
B49: 40 | C49: 0
B50: 41 | C50: 0
B51: 42 | C51: 0
B52: 43 | C52: 0
B53: 44 | C53: 0
B54: 45 | C54: 0
B55: 46 | C55: 0
B56: 47 | C56: 0
B57: 48 | C57: 0
B58: 49 | C58: 0
B59: 50 | C59: 0
C60: TOTAL | D60: =SUM(D9:D59) -> 663354.8585 | E60: =SUM(E9:E59) -> 156841.96 | F60: ='Project Overheads & Scaffold'!Q55 -> 207658.0215 | G60: =SUM(G9:G59) -> 34840.5152 | H60: =D60+F60+G60 -> 905853.3952 | J60: =SUM(J9:J59) -> 125860 | K60: =SUM(K9:K59) -> -30981.96
C63: Value of Rate Library (excl. prov sums, excl. scaffold ) | D63: =SUM('Packet Rate Library'!T:T) -> 503648.1285
C65: =IF(D65<>0,"ERROR","") -> ERROR | D65: =D60-D63-E60-SUM('Project Overheads & Scaffold'!AI:AI) -> 0.7699999998
C67: =J7 -> Check for text containing Provisional sum | D67: =J60-E60 -> -30981.96

Sheet Packet Rate Library
A1: =LEFT(E1,100)&J1 ->  | B1: Template row | L1: =SUM(V1:BS1) -> 0 | N1: =L1*M1 -> 0 | O1: =VLOOKUP(C1,RateOrderTable,2,FALSE) ->  | P1: =SUMIF('Planned Maint v6.2 CSV File'!A:A,J1,'Planned Maint v6.2 CSV File'!I:I) -> 0 | Q1: =IF(J1="PROV SUM",N1,L1*P1) -> 0 | S1: =IF(R1>0,R1,P1) -> 0 | T1: =IF(J1="PROV SUM",N1,L1*S1) -> 0 | V1: =IF(ISERROR(VLOOKUP($J1,INDIRECT("'"&V$7&"'!J:J"),1,FALSE)),"",SUMIF(INDIRECT("'"&V$7&"'!J:J"),$J1,INDIRECT("'"&V$7&"'!L:L"))) ->  | W1: =IF(ISERROR(VLOOKUP($J1,INDIRECT("'"&W$7&"'!J:J"),1,FALSE)),"",SUMIF(INDIRECT("'"&W$7&"'!J:J"),$J1,INDIRECT("'"&W$7&"'!L:L"))) -> 
A3: BILL OF QUANTITIES - RAPID LOADER
V6: SOR Qtys
A7: Requirement | B7: REPB | C7: Requirement Type | D7: Rowtype (H=Header, D=Detail) | E7: Description | F7: Works Order Commencement Date | G7: Works Order Completion Date | H7: Specification Ref. Item No.'s | I7: Works Order Delivery Date | J7: SOR Code | K7: SOR Unit | L7: SOR Qty | M7: SOR Cost | N7: Total Cost | P7: Rate (max) | Q7: Cost (max) | R7: Modified price | S7: Tendered rate | T7: Tendered total | V7: 1-44 Denyer House | W7: 1-10 Lissenden Mansions | X7: 25 Troyes House | Y7: 11-20 Lissenden Mansions- | Z7: 5 Gillies Street | AA7: 8 Dale Road | AB7: 11 Gillies Street A-B | AC7: 30 Grove Terrace Flats A-C | AD7: 25 Elaine Grove | AE7: 130 Prince of Wales Road | AF7: 25 Herbert Street Flats A-B | AG7: 128 Prince of Wales | AH7: 10 Gillies Street | AI7: 17 Ascham Street | AJ7: 13 Doynton Street | AK7: 111 Chetwynd Road | AL7: 19 Ascham Street Flats A-B | AM7: 66LevertonStreet(Flats A-B) | AN7: 13 Oseney Crescent | AO7: 29 Grove TerraceFlatsA-C- | AP7: 28 Leighton Road Flats A-B | AQ7: 13 Mortimer Terrace | AR7: 13 Winscombe Terrace
B9: REPB14020 | C9: SCAFFOLD | D9: D | E9: Standard Scaffold item: erect; dismantle; basic independent tied working scaffolding; 5 boards wide, including hire period; completely accessible; debris netting to all elevations; double boarded and polythene included as necessary, any fan(s) included as required; rope plus wheel for lifting operations; 3rd handrail included whenever necessary; as per applicable regulations (applies to up to 5 storeys). Measured up to second handrail and by the middle of the scaffold (equidistant from the inside/outside face) including design when required. Rate to include for 12 week hire | H9: 2.1 | J9: SC001 | K9: M2 | L9: =SUM(V9:BS9) -> 13478 | M9: 12.92 | N9: =L9*M9 -> 174135.76 | P9: =SUMIF('Planned Maint v6.2 CSV File'!A:A,J9,'Planned Maint v6.2 CSV File'!I:I) -> 16.4084 | Q9: =IF(J9="PROV SUM",N9,L9*P9) -> 221152.4152 | S9: =IF(R9>0,R9,P9) -> 16.4084 | T9: =IF(J9="PROV SUM",N9,L9*S9) -> 221152.4152 | V9: =IF(ISERROR(VLOOKUP($J9,INDIRECT("'"&V$7&"'!J:J"),1,FALSE)),"",SUMIF(INDIRECT("'"&V$7&"'!J:J"),$J9,INDIRECT("'"&V$7&"'!L:L"))) -> 8850 | W9: 1124 | X9: 40 | Y9: 750 | Z9: 90 | AA9: 140 | AB9: 151 | AC9: 256 | AD9: 170 | AE9: 120 | AF9: =IF(ISERROR(VLOOKUP($J9,INDIRECT("'"&AF$7&"'!J:J"),1,FALSE)),"",SUMIF(INDIRECT("'"&AF$7&"'!J:J"),$J9,INDIRECT("'"&AF$7&"'!L:L"))) -> 99 | AG9: 140 | AH9: 100 | AI9: 106 | AJ9: 70 | AK9: 245 | AL9: 100 | AM9: 117 | AN9: 160 | AO9: 256 | AP9: =IF(ISERROR(VLOOKUP($J9,INDIRECT("'"&AP$7&"'!J:J"),1,FALSE)),"",SUMIF(INDIRECT("'"&AP$7&"'!J:J"),$J9,INDIRECT("'"&AP$7&"'!L:L"))) -> 84 | AQ9: 170 | AR9: 140 | AZ9: =IF(ISERROR(VLOOKUP($J9,INDIRECT("'"&AZ$7&"'!J:J"),1,FALSE)),"",SUMIF(INDIRECT("'"&AZ$7&"'!J:J"),$J9,INDIRECT("'"&AZ$7&"'!L:L"))) ->  | BJ9: =IF(ISERROR(VLOOKUP($J9,INDIRECT("'"&BJ$7&"'!J:J"),1,FALSE)),"",SUMIF(INDIRECT("'"&BJ$7&"'!J:J"),$J9,INDIRECT("'"&BJ$7&"'!L:L"))) -> 
B10: REPB14020 | C10: SCAFFOLD | D10: D | E10: Scaffold alarm - 1 x sounder, 2 x PIR 1 X key pad (Divided by Number of properties if continuous scaffolds) | H10: 2.5 | J10: SC005 | K10: unit | L10: 22 | M10: 420 | N10: 9240 | P10: =SUMIF('Planned Maint v6.2 CSV File'!A:A,J10,'Planned Maint v6.2 CSV File'!I:I) -> 533.4 | Q10: 11734.8 | S10: 533.4 | T10: 11734.8 | V10: 1 | W10: 1 | X10: 1 | Y10: 1 | Z10: 1 | AB10: 1 | AC10: 1 | AD10: 1 | AE10: 1 | AF10: 1 | AG10: 1 | AH10: 1 | AI10: 1 | AJ10: 1 | AK10: 1 | AL10: 1 | AM10: 1 | AN10: 1 | AO10: 1 | AP10: 1 | AQ10: 1 | AR10: 1
B11: REPB14020 | C11: SCAFFOLD | D11: D | E11: E/O for additional PIRS | H11: 2.6 | J11: SC007 | K11: unit | L11: 29 | M11: 50 | N11: 1450 | P11: =SUMIF('Planned Maint v6.2 CSV File'!A:A,J11,'Planned Maint v6.2 CSV File'!I:I) -> 63.5 | Q11: 1841.5 | S11: 63.5 | T11: 1841.5 | V11: 3 | W11: 3 | Y11: 1 | Z11: 1 | AA11: 1 | AB11: 1 | AC11: 2 | AD11: 1 | AE11: 1 | AF11: 1 | AG11: 1 | AH11: 1 | AI11: 1 | AK11: 2 | AL11: 1 | AM11: 1 | AN11: 1 | AO11: 2 | AP11: 2 | AQ11: 1 | AR11: 1
B12: REPB42122 | C12: SCAFFOLD | D12: D | E12: Scaffold to chimney stack n.e. 3.00 girth, n.e. 2.00m high to gable, verge or edge | H12: 2.7 | J12: SC008 | K12: unit | L12: 2 | M12: 383.72 | N12: 767.44 | P12: =SUMIF('Planned Maint v6.2 CSV File'!A:A,J12,'Planned Maint v6.2 CSV File'!I:I) -> 487.3244 | Q12: 974.6488 | S12: 487.3244 | T12: 974.6488 | AA12: 1 | AP12: 1
B13: REPB47024 | C13: SCAFFOLD | D13: D | E13: Up&over boarded walkway bridge (over the roof) boarded and handrails included | H13: 2.15 | J13: SC015 | K13: unit | L13: 1 | M13: 1310 | N13: 1310 | P13: =SUMIF('Planned Maint v6.2 CSV File'!A:A,J13,'Planned Maint v6.2 CSV File'!I:I) -> 1663.7 | Q13: 1663.7 | S13: 1663.7 | T13: 1663.7 | AI13: 1
B14: REPB42150 | C14: SCAFFOLD | D14: D | E14: Scaffold taken through property (protection to surfaces included) | H14: 2.16 | J14: SC016 | K14: unit | L14: 10 | M14: 379.8 | N14: 3798 | P14: =SUMIF('Planned Maint v6.2 CSV File'!A:A,J14,'Planned Maint v6.2 CSV File'!I:I) -> 482.346 | Q14: 4823.46 | S14: 482.346 | T14: 4823.46 | Z14: 1 | AB14: 1 | AC14: 1 | AF14: 1 | AK14: 1 | AL14: 1 | AN14: 1 | AO14: 1 | AP14: 1 | AR14: 1
B15: REPB42122 | C15: SCAFFOLD | D15: D | E15: Scaffold taken up&over the roof | H15: 2.17 | J15: SC017 | K15: unit | L15: 6 | M15: 842 | N15: 5052 | P15: =SUMIF('Planned Maint v6.2 CSV File'!A:A,J15,'Planned Maint v6.2 CSV File'!I:I) -> 1069.34 | Q15: 6416.04 | S15: 1069.34 | T15: 6416.04 | AA15: 1 | AD15: 1 | AE15: 1 | AH15: 1 | AM15: 1 | AN15: 1
B16: REPB04223 | C16: SCAFFOLD | D16: D | E16: Installation of rubbish chute | H16: 2.18 | J16: SC018 | K16: lm | L16: 17 | M16: 45 | N16: 765 | P16: =SUMIF('Planned Maint v6.2 CSV File'!A:A,J16,'Planned Maint v6.2 CSV File'!I:I) -> 57.15 | Q16: 971.55 | S16: 57.15 | T16: 971.55 | W16: 1 | X16: 1 | Y16: 15
B17: REPB42129 | C17: SCAFFOLD | D17: D | E17: Modular Beams (Measured as lm include inside/outside face of scaffold- 1 beam included) | H17: 2.19 | J17: SC019 | K17: lm | L17: 10 | M17: 31.75 | N17: 317.5 | P17: =SUMIF('Planned Maint v6.2 CSV File'!A:A,J17,'Planned Maint v6.2 CSV File'!I:I) -> 40.3225 | Q17: 403.225 | S17: 40.3225 | T17: 403.225 | AD17: 10
B18: REPB11024 | C18: SCAFFOLD | D18: D | E18: Double handrail as edge protection to party walls on mid-terraced property | H18: 2.21 | J18: SC021 | K18: lm | L18: 150 | M18: 16.25 | N18: 2437.5 | P18: =SUMIF('Planned Maint v6.2 CSV File'!A:A,J18,'Planned Maint v6.2 CSV File'!I:I) -> 20.6375 | Q18: 3095.625 | S18: 20.6375 | T18: 3095.625 | X18: 150
B19: REPB14020 | C19: SCAFFOLD | D19: D | E19: Satellite Dish, reposition | H19: 2.22 | J19: SC022 | K19: Nr | L19: 14 | M19: 82.5 | N19: 1155 | P19: =SUMIF('Planned Maint v6.2 CSV File'!A:A,J19,'Planned Maint v6.2 CSV File'!I:I) -> 104.775 | Q19: 1466.85 | S19: 104.775 | T19: 1466.85 | V19: =IF(ISERROR(VLOOKUP($J19,INDIRECT("'"&V$7&"'!J:J"),1,FALSE)),"",SUMIF(INDIRECT("'"&V$7&"'!J:J"),$J19,INDIRECT("'"&V$7&"'!L:L"))) -> 14 | AF19: =IF(ISERROR(VLOOKUP($J19,INDIRECT("'"&AF$7&"'!J:J"),1,FALSE)),"",SUMIF(INDIRECT("'"&AF$7&"'!J:J"),$J19,INDIRECT("'"&AF$7&"'!L:L"))) ->  | AP19: =IF(ISERROR(VLOOKUP($J19,INDIRECT("'"&AP$7&"'!J:J"),1,FALSE)),"",SUMIF(INDIRECT("'"&AP$7&"'!J:J"),$J19,INDIRECT("'"&AP$7&"'!L:L"))) ->  | AZ19: =IF(ISERROR(VLOOKUP($J19,INDIRECT("'"&AZ$7&"'!J:J"),1,FALSE)),"",SUMIF(INDIRECT("'"&AZ$7&"'!J:J"),$J19,INDIRECT("'"&AZ$7&"'!L:L"))) ->  | BJ19: =IF(ISERROR(VLOOKUP($J19,INDIRECT("'"&BJ$7&"'!J:J"),1,FALSE)),"",SUMIF(INDIRECT("'"&BJ$7&"'!J:J"),$J19,INDIRECT("'"&BJ$7&"'!L:L"))) -> 
B20: REPB11024 | C20: SCAFFOLD | D20: D | E20: Construction hoist tower- per storey | H20: 2.25 | J20: SC025 | K20: storey | L20: 6 | M20: 185.64 | N20: 1113.84 | P20: =SUMIF('Planned Maint v6.2 CSV File'!A:A,J20,'Planned Maint v6.2 CSV File'!I:I) -> 235.7628 | Q20: 1414.5768 | S20: 235.7628 | T20: 1414.5768 | X20: 1 | Y20: 5
B21: REPB04223 | C21: SCAFFOLD | D21: D | E21: Erecting hoist mast- per unit- up to 5 storeys (including delivery, dismantle and gates) | H21: 2.26 | J21: SC026 | K21: unit | L21: 2 | M21: 1127.5 | N21: 2255 | P21: =SUMIF('Planned Maint v6.2 CSV File'!A:A,J21,'Planned Maint v6.2 CSV File'!I:I) -> 1431.925 | Q21: 2863.85 | S21: 1431.925 | T21: 2863.85 | W21: 1 | Y21: 1
B22: REPB04223 | C22: SCAFFOLD | D22: D | E22: Parking bay suspensions per 2 bays fee. | H22: 2.28 | J22: SC028 | K22: day | L22: 120 | M22: 77.26 | N22: 9271.2 | P22: =SUMIF('Planned Maint v6.2 CSV File'!A:A,J22,'Planned Maint v6.2 CSV File'!I:I) -> 98.1202 | Q22: 11774.424 | S22: 98.1202 | T22: 11774.424 | W22: 120
B23: REPB04223 | C23: SCAFFOLD | D23: D | E23: Suspension of Parking Bays administration Fee | H23: 2.29 | J23: SC029 | K23: item | L23: 1 | M23: 61.29 | N23: 61.29 | P23: =SUMIF('Planned Maint v6.2 CSV File'!A:A,J23,'Planned Maint v6.2 CSV File'!I:I) -> 77.8383 | Q23: 77.8383 | S23: 77.8383 | T23: 77.8383 | W23: 1
B24: REPB14020 | C24: SCAFFOLD | D24: D | E24: supply cherry picker per day incl delivery and driver | H24: 2.3 | J24: SC030 | L24: 11 | M24: 695 | N24: 7645 | P24: =SUMIF('Planned Maint v6.2 CSV File'!A:A,J24,'Planned Maint v6.2 CSV File'!I:I) -> 882.65 | Q24: 9709.15 | S24: 882.65 | T24: 9709.15 | V24: 1 | X24: 10
B25: REPB47293 | C25: ROOF | D25: D | E25: Chimney: Renew facing bricks in chimney stack in area ne 0.50sm, cut out defective bricks, lay new facing bricks bedded and pointed in mortar to match existing and remove waste and debris. | H25: 3.422 | J25: 1200AN | K25: NO | L25: 1 | M25: 66.79 | N25: 66.79 | P25: =SUMIF('Planned Maint v6.2 CSV File'!A:A,J25,'Planned Maint v6.2 CSV File'!I:I) -> 48.42275 | Q25: 48.42275 | S25: 48.42275 | T25: 48.42275 | AK25: 1
B26: REPB04224 | C26: ROOF | D26: D | E26: Chimney: Rake out joints to brickwork to chimney stack, min 12mm, and repoint in cement lime mortar (1:1:6) to match existing and remove waste and debris. | H26: 3.423 | J26: 1200AO | K26: SM | L26: 30 | M26: 22.29 | N26: 668.7 | P26: =SUMIF('Planned Maint v6.2 CSV File'!A:A,J26,'Planned Maint v6.2 CSV File'!I:I) -> 16.16025 | Q26: 484.8075 | S26: 16.16025 | T26: 484.8075 | Y26: 30
B27: REPB47660 | C27: ROOF | D27: D | E27: Chimney:Renew any thickness of render to chimney, hack off, rake out, prepare and apply 18mm thick two coats cement and sand render trowelled smooth including all labours, and remove waste and debris. | H27: 3.424 | J27: 1200BA | K27: SM | L27: 4 | M27: 33.68 | N27: 134.72 | P27: =SUMIF('Planned Maint v6.2 CSV File'!A:A,J27,'Planned Maint v6.2 CSV File'!I:I) -> 24.418 | Q27: 97.672 | S27: 24.418 | T27: 97.672 | AP27: 4
B28: REPB04224 | C28: ROOF | D28: D | E28: Tile: Remove plain tiles and carefully stack, renew roofing felt and battens and refix tiles (exc 10 No. in one location) and cart away debris to tip. | H28: 3.87 | J28: 2013DA | K28: SM | L28: 90 | M28: 108.19 | N28: 9737.1 | P28: =SUMIF('Planned Maint v6.2 CSV File'!A:A,J28,'Planned Maint v6.2 CSV File'!I:I) -> 86.552 | Q28: 7789.68 | S28: 86.552 | T28: 7789.68 | Y28: 90
B29: REPB14020 | C29: ROOF | D29: D | E29: Tile: Overhaul clay plain tile roof, refix loose tiles, renew broken or missing tiles to match existing, redress, rewedge and repoint all flashings, aprons, chimney gutters etc., cut out and make good cement weather fillets, repoint in cement mortar (1:3) to all hips, ridges and verges, make good, clear away debris. | H29: 3.88 | J29: 2013EA | K29: SM | L29: 670 | M29: 30.56 | N29: 20475.2 | P29: =SUMIF('Planned Maint v6.2 CSV File'!A:A,J29,'Planned Maint v6.2 CSV File'!I:I) -> 24.448 | Q29: 16380.16 | S29: 24.448 | T29: 16380.16 | V29: =IF(ISERROR(VLOOKUP($J29,INDIRECT("'"&V$7&"'!J:J"),1,FALSE)),"",SUMIF(INDIRECT("'"&V$7&"'!J:J"),$J29,INDIRECT("'"&V$7&"'!L:L"))) -> 580 | Y29: 90 | AF29: =IF(ISERROR(VLOOKUP($J29,INDIRECT("'"&AF$7&"'!J:J"),1,FALSE)),"",SUMIF(INDIRECT("'"&AF$7&"'!J:J"),$J29,INDIRECT("'"&AF$7&"'!L:L"))) ->  | AP29: =IF(ISERROR(VLOOKUP($J29,INDIRECT("'"&AP$7&"'!J:J"),1,FALSE)),"",SUMIF(INDIRECT("'"&AP$7&"'!J:J"),$J29,INDIRECT("'"&AP$7&"'!L:L"))) ->  | AZ29: =IF(ISERROR(VLOOKUP($J29,INDIRECT("'"&AZ$7&"'!J:J"),1,FALSE)),"",SUMIF(INDIRECT("'"&AZ$7&"'!J:J"),$J29,INDIRECT("'"&AZ$7&"'!L:L"))) ->  | BJ29: =IF(ISERROR(VLOOKUP($J29,INDIRECT("'"&BJ$7&"'!J:J"),1,FALSE)),"",SUMIF(INDIRECT("'"&BJ$7&"'!J:J"),$J29,INDIRECT("'"&BJ$7&"'!L:L"))) -> 
B30: REPB04223 | C30: ROOF | D30: D | E30: PROVISIONAL SUM: Roof Covering: Extra over any renewal or refixing of plain concrete roof tiles for renew roofing felt and battens. | H30: 3.44 | J30: 2013RR | K30: SM | L30: 90 | M30: 21.88 | N30: 1969.2 | P30: =SUMIF('Planned Maint v6.2 CSV File'!A:A,J30,'Planned Maint v6.2 CSV File'!I:I) -> 17.504 | Q30: 1575.36 | S30: 17.504 | T30: 1575.36 | Y30: 90
B31: REPB47495 | C31: ROOF | D31: D | E31: Slate: Overhaul fibre cement slate roof, refix loose slates, renew broken or missing slates to match existing, redress, rewedge and repoint all flashings, aprons, chimney gutters etc, cut out and make good cement weather fillets, repoint in cement mortar (1:3) to all hips, ridges and verges, make good, and remove waste and debris. | H31: 3.207 | J31: 2031CA | K31: SM | L31: 6 | M31: 30.56 | N31: 183.36 | P31: =SUMIF('Planned Maint v6.2 CSV File'!A:A,J31,'Planned Maint v6.2 CSV File'!I:I) -> 24.448 | Q31: 146.688 | S31: 24.448 | T31: 146.688 | AC31: 3 | AO31: 3
B32: REPB04223 | C32: ROOF | D32: D | E32: PROVISIONAL SUM: Slate: Renew any size natural slates to roof fixed with clips or copper nails including double courses at eaves, verges cuttings, all labours renewing roofing felt and battens, and remove waste and debris. | H32: 3.441 | J32: 2033AA | K32: SM | L32: 0 | M32: 119.76 | N32: 0 | P32: =SUMIF('Planned Maint v6.2 CSV File'!A:A,J32,'Planned Maint v6.2 CSV File'!I:I) -> 95.808 | Q32: 0 | S32: 95.808 | T32: 0
B33: REPB42313 | C33: ROOF | D33: D | E33: Slate: Overhaul natural slate roof, refix loose slates, renew broken or missing slates to match existing, redress, rewedge and repoint all flashings, aprons, chimney gutters etc, cut out and make good cement weather fillets, repoint in cement mortar (1:3) to all hips, ridges and verges, make good, and remove waste and debris. | H33: 3.215 | J33: 2033CA | K33: SM | L33: 55 | M33: 30.56 | N33: 1680.8 | P33: =SUMIF('Planned Maint v6.2 CSV File'!A:A,J33,'Planned Maint v6.2 CSV File'!I:I) -> 24.448 | Q33: 1344.64 | S33: 24.448 | T33: 1344.64 | AF33: 5 | AI33: 50
B34: REPB42154 | C34: ROOF | D34: D | E34: Slate: Renew any size and type of fibre cement roof slates including double course at eaves cloaked verges, ridge, hips and valley tiles, supply and install proprietary ventilation units in roof, renew all code 6 lead flashings, aprons chimney gutters and the like wedged and pointed, renew valley gutter and valley board as necessary including all labours, cutting etc including renew roofing felt and battens, install ‘glidevale’ secret gutter to abutment to adjacent property, and remove waste and debris. | H34: 3.218 | J34: 2034AB | K34: SM | L34: 50 | M34: 134.04 | N34: 6702 | P34: =SUMIF('Planned Maint v6.2 CSV File'!A:A,J34,'Planned Maint v6.2 CSV File'!I:I) -> 107.232 | Q34: 5361.6 | S34: 107.232 | T34: 5361.6 | AB34: 50
B35: REPB42129 | C35: ROOF | D35: D | E35: Slate: Renew any size and type of natural roof slates including double course at eaves cloaked verges, ridge, hips and valley tiles, supply and install proprietary ventilation units in roof, renew all code 6 lead flashings, aprons chimney gutters and the like wedged and pointed, renew valley gutter and valley board as necessary including all labours, cutting etc including renew roofing felt and battens and install restraint straps to gables and elevational gables, and remove waste and debris. | H35: 3.219 | J35: 2034AC | K35: SM | L35: 40 | M35: 133.3 | N35: 5332 | P35: =SUMIF('Planned Maint v6.2 CSV File'!A:A,J35,'Planned Maint v6.2 CSV File'!I:I) -> 106.64 | Q35: 4265.6 | S35: 106.64 | T35: 4265.6 | AD35: 40
B36: REPB47684 | C36: ROOF | D36: D | E36: Slate:Renew any size and type of natural roof slates including double course at eaves cloaked verges, ridge, hips and valley tiles, supply and install proprietary ventilation units in roof, renew all code 6 lead flashings, aprons chimney gutters and the like wedged and pointed, renew valley gutter and valley board as necessary including all labours, cutting etc including renew roofing felt and battens and install restraint straps togables and elevational gables, install ‘glidevale’ secret gutter to abutment to adjacent property, and remove waste and debris. | H36: 3.22 | J36: 2034AD | K36: SM | L36: 40 | M36: 138.28 | N36: 5531.2 | P36: =SUMIF('Planned Maint v6.2 CSV File'!A:A,J36,'Planned Maint v6.2 CSV File'!I:I) -> 110.624 | Q36: 4424.96 | S36: 110.624 | T36: 4424.96 | AM36: 40
B37: REPB42154 | C37: ROOF | D37: D | E37: Ridge: Renew half round ridge or hip tile fixed with galvanised steel clips and roofing screws with plastic washers including bedding in mastic as per manufacturers instructions, and remove waste and debris. | H37: 3.221 | J37: 2035AA | K37: LM | L37: 5 | M37: 61.15 | N37: 305.75 | P37: =SUMIF('Planned Maint v6.2 CSV File'!A:A,J37,'Planned Maint v6.2 CSV File'!I:I) -> 48.92 | Q37: 244.6 | S37: 48.92 | T37: 244.6 | AB37: 5
B38: REPB14020 | C38: ROOF | D38: D | E38: Moss: Carefully remove moss/lichen growth on roof covering of any kind and dispose of debris off site, reistate all disturbed surfaces, replace broken tiles, slates and the like, thoroughly clean out valleys, gutters, downpipes, hoppers etc, prepare and treat the complete roof area with a diluted fungicide solution AKZO or other equal and approved applied strictly in accordance with the manufacturer’s instructions, thoroughly clean out all gutters and the like to remove all chemical residue arising upon completion of the works, and remove waste and debris. | H38: 3.18 | J38: 2115AA | K38: SM | L38: 818 | M38: 10.17 | N38: 8319.06 | P38: =SUMIF('Planned Maint v6.2 CSV File'!A:A,J38,'Planned Maint v6.2 CSV File'!I:I) -> 8.136 | Q38: 6655.248 | S38: 8.136 | T38: 6655.248 | V38: 580 | Z38: 50 | AA38: 6 | AC38: 55 | AH38: 2 | AL38: 70 | AO38: 55
B39: REPB47495 | C39: ROOF | D39: D | E39: Roofing: Apply sealing compound to cracks to roof or leadwork. | H39: 3.182 | J39: 2150AB | K39: LM | L39: 16 | M39: 5.4 | N39: 86.4 | P39: =SUMIF('Planned Maint v6.2 CSV File'!A:A,J39,'Planned Maint v6.2 CSV File'!I:I) -> 4.32 | Q39: 69.12 | S39: 4.32 | T39: 69.12 | V39: =IF(ISERROR(VLOOKUP($J39,INDIRECT("'"&V$7&"'!J:J"),1,FALSE)),"",SUMIF(INDIRECT("'"&V$7&"'!J:J"),$J39,INDIRECT("'"&V$7&"'!L:L"))) ->  | AC39: 8 | AF39: =IF(ISERROR(VLOOKUP($J39,INDIRECT("'"&AF$7&"'!J:J"),1,FALSE)),"",SUMIF(INDIRECT("'"&AF$7&"'!J:J"),$J39,INDIRECT("'"&AF$7&"'!L:L"))) ->  | AO39: 8 | AP39: =IF(ISERROR(VLOOKUP($J39,INDIRECT("'"&AP$7&"'!J:J"),1,FALSE)),"",SUMIF(INDIRECT("'"&AP$7&"'!J:J"),$J39,INDIRECT("'"&AP$7&"'!L:L"))) ->  | AZ39: =IF(ISERROR(VLOOKUP($J39,INDIRECT("'"&AZ$7&"'!J:J"),1,FALSE)),"",SUMIF(INDIRECT("'"&AZ$7&"'!J:J"),$J39,INDIRECT("'"&AZ$7&"'!L:L"))) ->  | BJ39: =IF(ISERROR(VLOOKUP($J39,INDIRECT("'"&BJ$7&"'!J:J"),1,FALSE)),"",SUMIF(INDIRECT("'"&BJ$7&"'!J:J"),$J39,INDIRECT("'"&BJ$7&"'!L:L"))) -> 
B40: REPB42150 | C40: ROOF | D40: D | E40: Gutter:Clean out gutter, rake out and apply sealant to joints and prepare and apply two coats of proprietary waterproof sealing compound to inside surfaces of finlock gutter, and remove waste and debris. | H40: 3.186 | J40: 2150EA | K40: LM | L40: 10 | M40: 17.43 | N40: 174.3 | P40: =SUMIF('Planned Maint v6.2 CSV File'!A:A,J40,'Planned Maint v6.2 CSV File'!I:I) -> 13.944 | Q40: 139.44 | S40: 13.944 | T40: 139.44 | Z40: 10
B41: REPB42313 | C41: ROOF | D41: D | E41: Felt: Renew two layer felt to any girth gutter including remove defective felt and lay new felt bedded in hot bitumen, and remove waste and debris. | H41: 3.14 | J41: 2170EA | K41: LM | L41: =SUM(V41:BS41) -> 4 | M41: 22.84 | N41: =L41*M41 -> 91.36 | P41: =SUMIF('Planned Maint v6.2 CSV File'!A:A,J41,'Planned Maint v6.2 CSV File'!I:I) -> 18.272 | Q41: =IF(J41="PROV SUM",N41,L41*P41) -> 73.088 | S41: =IF(R41>0,R41,P41) -> 18.272 | T41: =IF(J41="PROV SUM",N41,L41*S41) -> 73.088 | AF41: 4
B42: REPB04223 | C42: ROOF | D42: D | E42: PROVISIONAL SUM: Asphalt: Renew 20mm asphalt roof finish comprising isolating membrane, asphalt laid in two layers and bond to existing asphalt and finish smooth to match existing levels, and remove waste and debris. | H42: 3.438 | J42: 2190AA | K42: SM | L42: 6 | M42: 85.24 | N42: 511.44 | P42: =SUMIF('Planned Maint v6.2 CSV File'!A:A,J42,'Planned Maint v6.2 CSV File'!I:I) -> 68.192 | Q42: 409.152 | S42: 68.192 | T42: 409.152 | AA42: 6
B43: REPB04224 | C43: ROOF | D43: D | E43: Asphalt: Renew 20mm asphalt lining to sole and sides of rainwater outlet opening through one brick wall including internal angle fillets, lead dressing into hopper head and any necessary expanded metal lathing reinforcement, and remove waste and debris. | H43: 3.71 | J43: 2190EA | K43: SM | L43: 10 | M43: 149.09 | N43: 1490.9 | P43: =SUMIF('Planned Maint v6.2 CSV File'!A:A,J43,'Planned Maint v6.2 CSV File'!I:I) -> 119.272 | Q43: 1192.72 | S43: 119.272 | T43: 1192.72 | Y43: 10
B44: REPB04224 | C44: ROOF | D44: D | E44: Asphalt: Prepare and apply solar reflective paint to asphalt roofing (per coat). | H44: 3.72 | J44: 2190FA | K44: SM | L44: 450 | M44: 10.6 | N44: 4770 | P44: =SUMIF('Planned Maint v6.2 CSV File'!A:A,J44,'Planned Maint v6.2 CSV File'!I:I) -> 8.48 | Q44: 3816 | S44: 8.48 | T44: 3816 | Y44: 450
B45: REPB42122 | C45: ROOF | D45: D | E45: Asphalt: Overhaul asphalt roofing to flat roof area, Including sweep and remove moss, algae and other debris, cut out blisters, cracks and make good in asphalt, prepare and apply two coats of solar reflective paint as necessary, rewedge and redress flashings, clear associated gutters and outlets, and remove waste and debris. | H45: 3.74 | J45: 2190GA | K45: SM | L45: 72 | M45: 30.56 | N45: 2200.32 | P45: =SUMIF('Planned Maint v6.2 CSV File'!A:A,J45,'Planned Maint v6.2 CSV File'!I:I) -> 24.448 | Q45: 1760.256 | S45: 24.448 | T45: 1760.256 | AA45: 30 | AP45: 42
B46: REPB04224 | C46: ROOF | D46: D | E46: Roof: Renew asphalt and boarding complete, strip off existing roof covering and boarding, clear away to tip, fix 19mm WBP plywood boarding to roof joist, including 50x50mm softwood noggins, tape joints lay one layer of vapour barrier, lay 100mm insulation board, lay isolating membrane, fix galvanised eml to and including tanalised softwood kerbs etc., lay 20mm asphalt in two equal layers dress over and form kerbs, upstands, downstands, drips, angles, dressing into outlets, around pipes etc., supply and fix new code 4 lead cover flashing to wall abutments, and remove waste and debris. | H46: 3.75 | J46: 2191AA | K46: SM | L46: 210 | M46: 140.96 | N46: 29601.6 | P46: =SUMIF('Planned Maint v6.2 CSV File'!A:A,J46,'Planned Maint v6.2 CSV File'!I:I) -> 112.768 | Q46: 23681.28 | S46: 112.768 | T46: 23681.28 | Y46: 210
B47: REPB42122 | C47: ROOF | D47: D | E47: Secret Gutter: Clear debris and clean down large secret lead or copper gutter or valley, remove waste and debis | H47: 3.189 | J47: 2250CA | K47: LM | L47: 20 | M47: 5.58 | N47: 111.6 | P47: =SUMIF('Planned Maint v6.2 CSV File'!A:A,J47,'Planned Maint v6.2 CSV File'!I:I) -> 4.464 | Q47: 89.28 | S47: 4.464 | T47: 89.28 | AA47: 10 | AL47: 10
B48: REPB42313 | C48: ROOF | D48: D | E48: Valley: Renew lead valley gutter not exceeding 800mm girth, remove and refix roof tiles or slates and battens as required, including all necessary labours and remove waste and debris. | H48: 3.171 | J48: 2310CC | K48: LM | L48: 2 | M48: 91.63 | N48: 183.26 | P48: =SUMIF('Planned Maint v6.2 CSV File'!A:A,J48,'Planned Maint v6.2 CSV File'!I:I) -> 73.304 | Q48: 146.608 | S48: 73.304 | T48: 146.608 | AF48: 2
B49: REPB04224 | C49: ROOF | D49: D | E49: Dormers: Renew lead covering to dormers including remove old lead, cut, fit and dress new covering including all nailing and caps, drips, welted edges, bossed ends and intersections and all labours and remove waste and debris. | H49: 3.176 | J49: 2310EC | K49: SM | L49: 25 | M49: 156.5 | N49: 3912.5 | P49: =SUMIF('Planned Maint v6.2 CSV File'!A:A,J49,'Planned Maint v6.2 CSV File'!I:I) -> 125.2 | Q49: 3130 | S49: 125.2 | T49: 3130 | V49: =IF(ISERROR(VLOOKUP($J49,INDIRECT("'"&V$7&"'!J:J"),1,FALSE)),"",SUMIF(INDIRECT("'"&V$7&"'!J:J"),$J49,INDIRECT("'"&V$7&"'!L:L"))) ->  | Y49: 25 | AF49: =IF(ISERROR(VLOOKUP($J49,INDIRECT("'"&AF$7&"'!J:J"),1,FALSE)),"",SUMIF(INDIRECT("'"&AF$7&"'!J:J"),$J49,INDIRECT("'"&AF$7&"'!L:L"))) ->  | AP49: =IF(ISERROR(VLOOKUP($J49,INDIRECT("'"&AP$7&"'!J:J"),1,FALSE)),"",SUMIF(INDIRECT("'"&AP$7&"'!J:J"),$J49,INDIRECT("'"&AP$7&"'!L:L"))) ->  | AZ49: =IF(ISERROR(VLOOKUP($J49,INDIRECT("'"&AZ$7&"'!J:J"),1,FALSE)),"",SUMIF(INDIRECT("'"&AZ$7&"'!J:J"),$J49,INDIRECT("'"&AZ$7&"'!L:L"))) ->  | BJ49: =IF(ISERROR(VLOOKUP($J49,INDIRECT("'"&BJ$7&"'!J:J"),1,FALSE)),"",SUMIF(INDIRECT("'"&BJ$7&"'!J:J"),$J49,INDIRECT("'"&BJ$7&"'!L:L"))) -> 
B50: REPB04224 | C50: ROOF | D50: D | E50: Canopy: Renew lead covering to canopies (measured on plan) including remove old lead, cut, fit and dress new covering including all nailing and caps, drips, welted edges, bossed ends and intersections, dressing to upstands and kerbs, clean out/reform grooves and wedge upstands with lead and repoint in mastic, cut and dress lead around rainwater outlets. | H50: 3.179 | J50: 2310GA | K50: SM | L50: 10 | M50: 147.56 | N50: 1475.6 | P50: =SUMIF('Planned Maint v6.2 CSV File'!A:A,J50,'Planned Maint v6.2 CSV File'!I:I) -> 118.048 | Q50: 1180.48 | S50: 118.048 | T50: 1180.48 | Y50: 10
B51: REPB42154 | C51: ROOF | D51: D | E51: Fascia/Barge: Renew fascia or barge with preservative treated softwood, ne 300mm wide, fixed to roof timbers, apply preservative to cut ends, remove/refix rainwater goods and any cabling, adjust roof tiles and felt, renewal of any support battens and all mitred joints and prepare for redecoration. | H51: 3.44 | J51: 3030AA | K51: LM | L51: 10 | M51: 21.94 | N51: 219.4 | P51: =SUMIF('Planned Maint v6.2 CSV File'!A:A,J51,'Planned Maint v6.2 CSV File'!I:I) -> 19.44981 | Q51: 194.4981 | S51: 19.44981 | T51: 194.4981 | AB51: 10
B52: REPB47025 | C52: ROOF | D52: D | E52: Fascia/Soffit/Barge: Refix any size fascia, soffit or bargeboard to existing roof timbers including remove/refix rainwater goods and cabling as necessary, renewal of support battens, all cutting and packing and prepare for redecoration. | H52: 3.63 | J52: 3030HA | K52: LM | L52: 4 | M52: 11.87 | N52: 47.48 | P52: =SUMIF('Planned Maint v6.2 CSV File'!A:A,J52,'Planned Maint v6.2 CSV File'!I:I) -> 10.522755 | Q52: 42.09102 | S52: 10.522755 | T52: 42.09102 | AL52: 4
B53: REPB47495 | C53: ROOF | D53: D | E53: Downpipe: Take down any PVCu downpipe, remove and refix pipe brackets, plugged and screwed to brickwork and refix downpipes including all hopperheads offsets, shoes and remake all joints, make good to structure and finishes, and remove waste and debris. | H53: 3.293 | J53: 6011CA | K53: LM | L53: 24 | M53: 13.68 | N53: 328.32 | P53: =SUMIF('Planned Maint v6.2 CSV File'!A:A,J53,'Planned Maint v6.2 CSV File'!I:I) -> 10.138248 | Q53: 243.317952 | S53: 10.138248 | T53: 243.317952 | AC53: 24
B54: REPB47025 | C54: ROOF | D54: D | E54: Downpipe: Renew ne 76.5mm cast aluminium downpipe complete to ne 2 storey dwelling with new brackets plugged and screwed to brickwork and all necessary branches, offset projections, hopperheads, shoe, terminal and slate if necessary, cut and make all joints, make good to structure and finishes and prepare for redecoration, and remove waste and debris. | H54: 3.298 | J54: 6013AA | K54: IT | L54: 1 | M54: 148.48 | N54: 148.48 | P54: =SUMIF('Planned Maint v6.2 CSV File'!A:A,J54,'Planned Maint v6.2 CSV File'!I:I) -> 110.038528 | Q54: 110.038528 | S54: 110.038528 | T54: 110.038528 | AL54: 1
B55: REPB47495 | C55: ROOF | D55: D | E55: Gutter: Take down any PVCu gutter, remove and refix brackets to fascia and refix gutter to brackets to line and level including all angles, outlets and stop ends and remake all joints. | H55: 3.324 | J55: 6031CA | K55: LM | L55: 17 | M55: 7.33 | N55: 124.61 | P55: =SUMIF('Planned Maint v6.2 CSV File'!A:A,J55,'Planned Maint v6.2 CSV File'!I:I) -> 5.432263 | Q55: 92.348471 | S55: 5.432263 | T55: 92.348471 | AC55: 12 | AL55: 5
B56: REPB42154 | C56: ROOF | D56: D | E56: Gutter: Renew ne 112mm PVCu gutter outlet of any profile, including remaking joints and line and level, and remove waste and debris. | H56: 3.326 | J56: 6031CC | K56: NO | L56: 2 | M56: 10.41 | N56: 20.82 | P56: =SUMIF('Planned Maint v6.2 CSV File'!A:A,J56,'Planned Maint v6.2 CSV File'!I:I) -> 7.714851 | Q56: 15.429702 | S56: 7.714851 | T56: 15.429702 | AB56: 2
B57: REPB42150 | C57: ROOF | D57: D | E57: Gutter:Take down any PVCu gutter outlet and refix and remake joints. | H57: 3.33 | J57: 6031CG | K57: NO | L57: 1 | M57: 6.76 | N57: 6.76 | P57: =SUMIF('Planned Maint v6.2 CSV File'!A:A,J57,'Planned Maint v6.2 CSV File'!I:I) -> 5.009836 | Q57: 5.009836 | S57: 5.009836 | T57: 5.009836 | Z57: 1
B58: REPB47660 | C58: ROOF | D58: D | E58: Gutter: Renew ne 125mm cast iron gutter of any profile including support brackets fixed to fascia including cutting, making joints, line and level, and connections to existing guttering, and rub down, prepare for redecoration to outside of gutter and apply one coat of bitumastic paint to inside of gutter, and remove waste and debris. | H58: 3.333 | J58: 6033AB | K58: LM | L58: 6 | M58: 53.05 | N58: 318.3 | P58: =SUMIF('Planned Maint v6.2 CSV File'!A:A,J58,'Planned Maint v6.2 CSV File'!I:I) -> 39.315355 | Q58: 235.89213 | S58: 39.315355 | T58: 235.89213 | AP58: 6
B59: REPB47660 | C59: ROOF | D59: D | E59: Hopper: Clear out blocked hopperhead including rod if necessary, flush out and test and remove debris from site on completion, and remove waste and debris. | H59: 3.361 | J59: 6039AB | K59: NO | L59: 1 | M59: 8.05 | N59: 8.05 | P59: =SUMIF('Planned Maint v6.2 CSV File'!A:A,J59,'Planned Maint v6.2 CSV File'!I:I) -> 5.965855 | Q59: 5.965855 | S59: 5.965855 | T59: 5.965855 | V59: =IF(ISERROR(VLOOKUP($J59,INDIRECT("'"&V$7&"'!J:J"),1,FALSE)),"",SUMIF(INDIRECT("'"&V$7&"'!J:J"),$J59,INDIRECT("'"&V$7&"'!L:L"))) ->  | AF59: =IF(ISERROR(VLOOKUP($J59,INDIRECT("'"&AF$7&"'!J:J"),1,FALSE)),"",SUMIF(INDIRECT("'"&AF$7&"'!J:J"),$J59,INDIRECT("'"&AF$7&"'!L:L"))) ->  | AP59: =IF(ISERROR(VLOOKUP($J59,INDIRECT("'"&AP$7&"'!J:J"),1,FALSE)),"",SUMIF(INDIRECT("'"&AP$7&"'!J:J"),$J59,INDIRECT("'"&AP$7&"'!L:L"))) -> 1 | AZ59: =IF(ISERROR(VLOOKUP($J59,INDIRECT("'"&AZ$7&"'!J:J"),1,FALSE)),"",SUMIF(INDIRECT("'"&AZ$7&"'!J:J"),$J59,INDIRECT("'"&AZ$7&"'!L:L"))) ->  | BJ59: =IF(ISERROR(VLOOKUP($J59,INDIRECT("'"&BJ$7&"'!J:J"),1,FALSE)),"",SUMIF(INDIRECT("'"&BJ$7&"'!J:J"),$J59,INDIRECT("'"&BJ$7&"'!L:L"))) -> 
B60: REPB04224 | C60: ROOF | D60: D | E60: Flat Roof Outlet: Clear out blocked flat roof outlet including rod if necessary, flush out and test and remove debris from site on completion, and remove waste and debris. | H60: 3.362 | J60: 6039AC | K60: IT | L60: 10 | M60: 11.18 | N60: 111.8 | P60: =SUMIF('Planned Maint v6.2 CSV File'!A:A,J60,'Planned Maint v6.2 CSV File'!I:I) -> 8.285498 | Q60: 82.85498 | S60: 8.285498 | T60: 82.85498 | Y60: 10
B61: REPB42129 | C61: ROOF | D61: D | E61: Downpipe: Clear blockage from downpipe any 2 to 4 storey including gain access, rod, flush out and test including clean out gulley and remove debris from site on completion (not to be claimed with 6039BA). | H61: 3.363 | J61: 6039AD | K61: IT | L61: 2 | M61: 20.13 | N61: 40.26 | P61: =SUMIF('Planned Maint v6.2 CSV File'!A:A,J61,'Planned Maint v6.2 CSV File'!I:I) -> 14.918343 | Q61: 29.836686 | S61: 14.918343 | T61: 29.836686 | AD61: 2
B62: REPB04224 | C62: ROOF | D62: D | E62: Gutter: Clean out debris from gutters to any type of property including flush out and test, rod downpipe including clean out gulley and remove debris from site on completion (per elevation). | H62: 3.364 | J62: 6039BA | K62: IT | L62: 56 | M62: 20.13 | N62: 1127.28 | P62: =SUMIF('Planned Maint v6.2 CSV File'!A:A,J62,'Planned Maint v6.2 CSV File'!I:I) -> 14.918343 | Q62: 835.427208 | S62: 14.918343 | T62: 835.427208 | Y62: 30 | AD62: 20 | AH62: 2 | AK62: 3 | AO62: 1
B63: REPB47660 | C63: ROOF | D63: D | E63: Stack: Renew up to 150mm diameter cast iron soil stack length ne 2m long with existing or new clips or ears including all cutting, remake joints, make good and prepare for redecoration, and remove waste and debris.. | H63: 3.384 | J63: 6105AA | K63: NO | L63: 6 | M63: 108.64 | N63: 651.84 | P63: =SUMIF('Planned Maint v6.2 CSV File'!A:A,J63,'Planned Maint v6.2 CSV File'!I:I) -> 80.513104 | Q63: 483.078624 | S63: 80.513104 | T63: 483.078624 | AP63: 6
B64: REPB04223 | C64: ROOF | D64: D | E64: PROVISIONAL SUM: Overlay with BAUDER Bauderflex System or equivalent inclusive of 15 year guarantee. Voids 1m2 to be deducted Overlay existing mineral surfaced felt with 2 layer torch-on built up felt roofing (including preparation). Up to 200 m2* | H64: 3.434 | J64: RF154 | K64: M2 | L64: 0 | M64: 52 | N64: 0 | P64: =SUMIF('Planned Maint v6.2 CSV File'!A:A,J64,'Planned Maint v6.2 CSV File'!I:I) -> 40.196 | Q64: 0 | S64: 40.196 | T64: 0
B65: REPB04223 | C65: ROOF | D65: D | E65: PROVISIONAL SUM: Supply & lay vapour barrier felt incl enveloping insulation board Up to 200 m2* | H65: 3.435 | J65: RF171 | K65: M2 | L65: 0 | M65: 17 | N65: 0 | P65: =SUMIF('Planned Maint v6.2 CSV File'!A:A,J65,'Planned Maint v6.2 CSV File'!I:I) -> 13.141 | Q65: 0 | S65: 13.141 | T65: 0
B66: REPB04223 | C66: ROOF | D66: D | E66: PROVISIONAL SUM: Supply & lay 120mm thick PIR insulation bonded to vapour barrier (in line with current building regulations) Up to 200 m2* | H66: 3.436 | J66: RF175 | K66: M2 | L66: 0 | M66: 32 | N66: 0 | P66: =SUMIF('Planned Maint v6.2 CSV File'!A:A,J66,'Planned Maint v6.2 CSV File'!I:I) -> 24.736 | Q66: 0 | S66: 24.736 | T66: 0
B67: REPB04224 | C67: ROOF | D67: D | E67: Supply & lay 2 lay built up felt roofing to insulation board (to BR standards) Up to 100 m2* | H67: 3.26 | J67: RF178 | K67: m2 | L67: 210 | M67: 34.5 | N67: 7245 | P67: =SUMIF('Planned Maint v6.2 CSV File'!A:A,J67,'Planned Maint v6.2 CSV File'!I:I) -> 26.6685 | Q67: 5600.385 | S67: 26.6685 | T67: 5600.385 | Y67: 210
B68: REPB04223 | C68: ROOF | D68: D | E68: PROVISIONAL SUM: Prepare & clean existing Rainwater Outlet and dress to same | H68: 3.437 | J68: RF181 | K68: Nr | L68: 0 | M68: 35 | N68: 0 | P68: =SUMIF('Planned Maint v6.2 CSV File'!A:A,J68,'Planned Maint v6.2 CSV File'!I:I) -> 27.055 | Q68: 0 | S68: 27.055 | T68: 0
B69: REPB04224 | C69: ROOF | D69: D | E69: Remove existing cable tray, lower to ground level and dispose. Supply and install new 0 - 150mm cable tray including cable ties. Including electrical work. | H69: 3.42 | J69: RF194 | K69: l/m | L69: 50 | M69: 21 | N69: 1050 | P69: =SUMIF('Planned Maint v6.2 CSV File'!A:A,J69,'Planned Maint v6.2 CSV File'!I:I) -> 16.233 | Q69: 811.65 | S69: 16.233 | T69: 811.65 | V69: =IF(ISERROR(VLOOKUP($J69,INDIRECT("'"&V$7&"'!J:J"),1,FALSE)),"",SUMIF(INDIRECT("'"&V$7&"'!J:J"),$J69,INDIRECT("'"&V$7&"'!L:L"))) ->  | Y69: 50 | AF69: =IF(ISERROR(VLOOKUP($J69,INDIRECT("'"&AF$7&"'!J:J"),1,FALSE)),"",SUMIF(INDIRECT("'"&AF$7&"'!J:J"),$J69,INDIRECT("'"&AF$7&"'!L:L"))) ->  | AP69: =IF(ISERROR(VLOOKUP($J69,INDIRECT("'"&AP$7&"'!J:J"),1,FALSE)),"",SUMIF(INDIRECT("'"&AP$7&"'!J:J"),$J69,INDIRECT("'"&AP$7&"'!L:L"))) ->  | AZ69: =IF(ISERROR(VLOOKUP($J69,INDIRECT("'"&AZ$7&"'!J:J"),1,FALSE)),"",SUMIF(INDIRECT("'"&AZ$7&"'!J:J"),$J69,INDIRECT("'"&AZ$7&"'!L:L"))) ->  | BJ69: =IF(ISERROR(VLOOKUP($J69,INDIRECT("'"&BJ$7&"'!J:J"),1,FALSE)),"",SUMIF(INDIRECT("'"&BJ$7&"'!J:J"),$J69,INDIRECT("'"&BJ$7&"'!L:L"))) -> 
B70: REPB42154 | C70: WINDOWS | D70: D | E70: Window: Renew window with purpose made softwood double hung cased box frame and sashes complete with 2 sashes, factory applied base stain or primer finish, compressible weatherstripping, glazing beads, ironmongery, remove existing and fix new into prepared opening, bed in mortar, point with sealant, double glazed and make good all finishes, decorate to match existing internally and prepare for redecoration externally, and remove waste and debris. | H70: 4.28 | J70: 3105AC | K70: SM | L70: 5 | M70: 434.56 | N70: 2172.8 | P70: =SUMIF('Planned Maint v6.2 CSV File'!A:A,J70,'Planned Maint v6.2 CSV File'!I:I) -> 385.23744 | Q70: 1926.1872 | S70: 385.23744 | T70: 1926.1872 | AB70: 2 | AP70: 3
B71: REPB47293 | C71: WINDOWS | D71: D | E71: Window: Renew window with purpose made hardwood double hung cased box frame and sashes complete with 2 sashes, factory applied base stain, compressible weatherstripping, glazing beads, ironmongery, remove existing and fix new into prepared opening, bed in mortar, point with sealant, double glazed and make good all finishes, decorate to match existing internally and prepare for redecoration externally, and remove waste and debris. | H71: 4.42 | J71: 3115AA | K71: SM | L71: 24 | M71: 698.79 | N71: 16770.96 | P71: =SUMIF('Planned Maint v6.2 CSV File'!A:A,J71,'Planned Maint v6.2 CSV File'!I:I) -> 619.477335 | Q71: 14867.45604 | S71: 619.477335 | T71: 14867.45604 | AK71: 21 | AM71: 3
B72: REPB42150 | C72: WINDOWS | D72: D | E72: Window: Overhaul timber casement window, dismantle as necessary and subsequently reassemble including freeing, easing and adjusting casements to give correct operation, renew sealing gaskets, renew fixing screws, remove, refit or renew ironmongery as necessary, rake out and renew defective putty and mastic, touch up decorations internally to match existing and prepare for redecoration externally, and remove waste and debris. | H72: 4.89 | J72: 3150BA | K72: NO | L72: 32 | M72: 29.05 | N72: 929.6 | P72: =SUMIF('Planned Maint v6.2 CSV File'!A:A,J72,'Planned Maint v6.2 CSV File'!I:I) -> 25.752825 | Q72: 824.0904 | S72: 25.752825 | T72: 824.0904 | Z72: 2 | AA72: 1 | AC72: 4 | AG72: 1 | AH72: 6 | AJ72: 2 | AL72: 5 | AO72: 4 | AQ72: 5 | AR72: 2
B73: REPB04223 | C73: WINDOWS | D73: D | E73: Window: Overhaul timber sash window, renew staff and parting beads, take out sashes and later rehang on appropriate sized new undyed plaited nylon sash cords, renew pocket pieces, wedge and cramp loose sash frames, oil pulleys, ease and adjust sashes, remove, refit or renew ironmongery, rake out and renew defective putty and mastic, touch up decorations internally to match existing and prepare for redecoration externally, and remove waste and debris. | H73: 4.9 | J73: 3150CA | K73: NO | L73: =SUM(V73:BS73) -> 198 | M73: 35.61 | N73: =L73*M73 -> 7050.78 | P73: =SUMIF('Planned Maint v6.2 CSV File'!A:A,J73,'Planned Maint v6.2 CSV File'!I:I) -> 31.568265 | Q73: =IF(J73="PROV SUM",N73,L73*P73) -> 6250.51647 | S73: =IF(R73>0,R73,P73) -> 31.568265 | T73: =IF(J73="PROV SUM",N73,L73*S73) -> 6250.51647 | W73: 19 | Y73: 12 | Z73: 9 | AB73: 9 | AC73: 26 | AD73: 6 | AE73: 6 | AF73: 6 | AG73: 5 | AI73: 40 | AJ73: 10 | AL73: 10 | AN73: 3 | AO73: 26 | AQ73: 6 | AR73: 5
B74: REPB42122 | C74: WINDOWS | D74: D | E74: Window: Overhaul sash window, renew staff and parting beads, take out sashes and later rehang on spiral sash balances, renew pocket pieces, wedge and cramp loose sash frames, ease and adjust sashes, remove, refit or renew ironmongery, rake out and renew defective putty and mastic, touch up decorations internally to match existing and prepare for redecoration externally, and remove waste and debris. | H74: 4.91 | J74: 3150CB | K74: NO | L74: 28 | M74: 98.99 | N74: 2771.72 | P74: =SUMIF('Planned Maint v6.2 CSV File'!A:A,J74,'Planned Maint v6.2 CSV File'!I:I) -> 87.754635 | Q74: 2457.12978 | S74: 87.754635 | T74: 2457.12978 | AA74: 8 | AF74: 3 | AH74: 5 | AM74: 7 | AP74: 5
B75: REPB47684 | C75: WINDOWS | D75: D | E75: Window: Check operation of all fittings and operating mechanisms to PVCu window complete including lubricate and adjust as necessary. | H75: 4.115 | J75: 3181AH | K75: IT | L75: 2 | M75: 4.81 | N75: 9.62 | P75: =SUMIF('Planned Maint v6.2 CSV File'!A:A,J75,'Planned Maint v6.2 CSV File'!I:I) -> 4.264065 | Q75: 8.52813 | S75: 4.264065 | T75: 8.52813 | AM75: 2
B76: REPB47684 | C76: WINDOWS | D76: D | E76: Window: Overhaul any type of PVCu window, dismantle as necessary and subsequently reassemble including freeing, easing and adjusting casements to give correct operation, renew fixing screws, remove, refit or renew ironmongery as necessary, check, lubricate operating mechanism, renew gaskets, make good and test. | H76: 4.129 | J76: 3181BA | K76: NO | L76: 2 | M76: 28.43 | N76: 56.86 | P76: =SUMIF('Planned Maint v6.2 CSV File'!A:A,J76,'Planned Maint v6.2 CSV File'!I:I) -> 25.203195 | Q76: 50.40639 | S76: 25.203195 | T76: 50.40639 | AM76: 2
B77: REPB42129 | C77: WINDOWS | D77: D | E77: Pane: Reglaze single pane in 4mm clear or obscure glass, over 1.00sm, hack out and glaze with putty, sprigs, clips or beads at any level, touch up paintwork to match existing, and remove waste and debris. | H77: 4.231 | J77: 5150AD | K77: SM | L77: 2 | M77: 67.93 | N77: 135.86 | P77: =SUMIF('Planned Maint v6.2 CSV File'!A:A,J77,'Planned Maint v6.2 CSV File'!I:I) -> 55.797702 | Q77: 111.595404 | S77: 55.797702 | T77: 111.595404 | AD77: 1 | AE77: 1
B78: REPB14020 | C78: WINDOWS | D78: D | E78: Double Glazed Unit: Reglaze unit upto 1.00sm, hermatically sealed with 4mm obscure low emissity (Low E) glass flush edge unit, including remove beads etc. hack out glass and glaze new unit to wood, metal or PVCu frames. | H78: 4.184 | J78: 5501AC | K78: NO | L78: 2 | M78: 81.08 | N78: 162.16 | P78: =SUMIF('Planned Maint v6.2 CSV File'!A:A,J78,'Planned Maint v6.2 CSV File'!I:I) -> 66.599112 | Q78: 133.198224 | S78: 66.599112 | T78: 133.198224 | V78: 2
B79: REPB04223 | C79: WINDOWS | D79: D | E79: Soft wood timber splice with resin; face splice repair method no. 5. Remove old and loose paint as necessary. Cut out decayed timber from windows and frames, piecing in or frame in new wrought softwood with resin to match existing. Leave ready to decorate. Splice not exc 500 to 1000mm | H79: 4.11 | J79: WIND017 | K79: Nr | L79: 50 | M79: 36.75 | N79: 1837.5 | P79: =SUMIF('Planned Maint v6.2 CSV File'!A:A,J79,'Planned Maint v6.2 CSV File'!I:I) -> 34.9125 | Q79: 1745.625 | S79: 34.9125 | T79: 1745.625 | V79: =IF(ISERROR(VLOOKUP($J79,INDIRECT("'"&V$7&"'!J:J"),1,FALSE)),"",SUMIF(INDIRECT("'"&V$7&"'!J:J"),$J79,INDIRECT("'"&V$7&"'!L:L"))) ->  | W79: 22 | Y79: 16 | AD79: 5 | AE79: 5 | AF79: =IF(ISERROR(VLOOKUP($J79,INDIRECT("'"&AF$7&"'!J:J"),1,FALSE)),"",SUMIF(INDIRECT("'"&AF$7&"'!J:J"),$J79,INDIRECT("'"&AF$7&"'!L:L"))) ->  | AN79: 2 | AP79: =IF(ISERROR(VLOOKUP($J79,INDIRECT("'"&AP$7&"'!J:J"),1,FALSE)),"",SUMIF(INDIRECT("'"&AP$7&"'!J:J"),$J79,INDIRECT("'"&AP$7&"'!L:L"))) ->  | AZ79: =IF(ISERROR(VLOOKUP($J79,INDIRECT("'"&AZ$7&"'!J:J"),1,FALSE)),"",SUMIF(INDIRECT("'"&AZ$7&"'!J:J"),$J79,INDIRECT("'"&AZ$7&"'!L:L"))) ->  | BJ79: =IF(ISERROR(VLOOKUP($J79,INDIRECT("'"&BJ$7&"'!J:J"),1,FALSE)),"",SUMIF(INDIRECT("'"&BJ$7&"'!J:J"),$J79,INDIRECT("'"&BJ$7&"'!L:L"))) -> 
B80: REPB04223 | C80: WINDOWS | D80: D | E80: 7. Timber repair system; using window care dry fix/dry flex RP; Conservation Joint; Up to 50mm | H80: 4.13 | J80: WIND022 | K80: Nr | L80: 430 | M80: 4.25 | N80: 1827.5 | P80: =SUMIF('Planned Maint v6.2 CSV File'!A:A,J80,'Planned Maint v6.2 CSV File'!I:I) -> 4.0375 | Q80: 1736.125 | S80: 4.0375 | T80: 1736.125 | W80: 170 | Y80: 100 | AD80: 70 | AE80: 60 | AN80: 30
B81: REPB04223 | C81: WINDOWS | D81: D | E81: 7. Timber repair system; using window care dry fix/dry flex RP; Conservation Joint; up to 100mm | H81: 4.14 | J81: WIND023 | K81: Nr | L81: 154 | M81: 6.75 | N81: 1039.5 | P81: =SUMIF('Planned Maint v6.2 CSV File'!A:A,J81,'Planned Maint v6.2 CSV File'!I:I) -> 6.4125 | Q81: 987.525 | S81: 6.4125 | T81: 987.525 | W81: 28 | Y81: 16 | Z81: 10 | AC81: 30 | AD81: 10 | AE81: 10 | AL81: 15 | AN81: 5 | AO81: 30
B82: REPB04223 | C82: EXTREP | D82: D | E82: Fracture: Remove any applied finish and cut out bricks as necessary to either side of fracture, one face only, stitch in new bricks, bed and point to match existing in cement lime mortar (1:1:6), and make good any applied finishes, and remove waste and debris (measured over mean general line of fracture). | H82: 6.82 | J82: 1019AA | K82: LM | L82: 197 | M82: 44.12 | N82: 8691.64 | P82: =SUMIF('Planned Maint v6.2 CSV File'!A:A,J82,'Planned Maint v6.2 CSV File'!I:I) -> 31.987 | Q82: 6301.439 | S82: 31.987 | T82: 6301.439 | W82: 3 | Z82: 8 | AC82: 58 | AI82: 4 | AK82: 41 | AL82: 29 | AO82: 54
B83: REPB42122 | C83: EXTREP | D83: D | E83: Wall: Cut out bricks from face of wall, clean and clear away, lay upto 15 No. new common bricks in cement lime mortar (1:1:6), bond, bed and point to match existing and remove waste and debris. | H83: 6.83 | J83: 1019AB | K83: IT | L83: 16 | M83: 18.93 | N83: 302.88 | P83: =SUMIF('Planned Maint v6.2 CSV File'!A:A,J83,'Planned Maint v6.2 CSV File'!I:I) -> 13.72425 | Q83: 219.588 | S83: 13.72425 | T83: 219.588 | AA83: 3 | AK83: 13
B84: REPB04223 | C84: EXTREP | D84: D | E84: Wall: Cut out bricks from face of wall, clean and clear away, lay upto 15 No. new facing bricks in cement lime mortar (1:1:6), bond, bed and point to match existing and remove waste and debris. | H84: 6.85 | J84: 1019BA | K84: IT | L84: 17 | M84: 21.92 | N84: 372.64 | P84: =SUMIF('Planned Maint v6.2 CSV File'!A:A,J84,'Planned Maint v6.2 CSV File'!I:I) -> 15.892 | Q84: 270.164 | S84: 15.892 | T84: 270.164 | W84: 12 | Y84: 5
B85: REPB47660 | C85: EXTREP | D85: D | E85: Lintel: Cut out and remove existing lintol from brick wall, prepare to receive new including all necessary propping and temporary supports, and supply and fix 75x150mm precast concrete lintol reinforced with 2 No. 16mm diameter mild steel bars, bed ends in cement lime mortar (1:1:6), renew dpc and make good brickwork, plasterwork and sealant and or cement fillets, and clear away debris on completion. | H85: 6.103 | J85: 1029AA | K85: LM | L85: 1 | M85: 59.11 | N85: 59.11 | P85: =SUMIF('Planned Maint v6.2 CSV File'!A:A,J85,'Planned Maint v6.2 CSV File'!I:I) -> 42.85475 | Q85: 42.85475 | S85: 42.85475 | T85: 42.85475 | AP85: 1
B86: REPB04223 | C86: EXTREP | D86: D | E86: Cill: Hack off defective area of concrete cill clean and treat any exposed reinforcement, drill into cill and insert 6mm diameter reinforcing bars at 150mm centres, apply bonding agent and reform cill with fine concrete to match existing profiles including all necessary formwork, make good to structure and all finishes and fillets and remove waste and debris. | H86: 6.116 | J86: 1031BA | K86: NO | L86: 20 | M86: 38.74 | N86: 774.8 | P86: =SUMIF('Planned Maint v6.2 CSV File'!A:A,J86,'Planned Maint v6.2 CSV File'!I:I) -> 28.0865 | Q86: 561.73 | S86: 28.0865 | T86: 561.73 | W86: 12 | Y86: 8
B87: REPB47344 | C87: EXTREP | D87: D | E87: Cill: Cut out and remove existing cill from brick wall, prepare and lay precast concrete splay rebated twice grooved, finished fair cill with stooled ends reinforced with 2 No. 6mm diameter bars bedded in cement lime mortar (1:1:6) renew dpc and make good brickwork, plasterwork, sealant and or cement fillets and remove waste and debris. | H87: 6.117 | J87: 1031CA | K87: LM | L87: 4 | M87: 38.38 | N87: 153.52 | P87: =SUMIF('Planned Maint v6.2 CSV File'!A:A,J87,'Planned Maint v6.2 CSV File'!I:I) -> 27.8255 | Q87: 111.302 | S87: 27.8255 | T87: 111.302 | AJ87: 4
B88: REPB42129 | C88: EXTREP | D88: D | E88: Coping: Take off precast coping ne 300mm wide, clean mortar from top of wall and coping, bed and point in cement lime mortar (1:1:6) with bonding agent and remove waste and debris. | H88: 6.127 | J88: 1033CA | K88: LM | L88: 27 | M88: 6.04 | N88: 163.08 | P88: =SUMIF('Planned Maint v6.2 CSV File'!A:A,J88,'Planned Maint v6.2 CSV File'!I:I) -> 4.379 | Q88: 118.233 | S88: 4.379 | T88: 118.233 | AD88: 12 | AE88: 12 | AP88: 3
B89: REPB14020 | C89: EXTREP | D89: D | E89: Cills: Prepare, clean off all dust and debris, fill in or resurface cracks or spalled surfaces of concrete with epoxy mortar in surfaces of cills, not exceeding 300mm girth, repair over 5 and ne 10mm deep, and remove waste and debris. | H89: 6.161 | J89: 1460AF | K89: LM | L89: 174 | M89: 38.25 | N89: 6655.5 | P89: =SUMIF('Planned Maint v6.2 CSV File'!A:A,J89,'Planned Maint v6.2 CSV File'!I:I) -> 27.73125 | Q89: 4825.2375 | S89: 27.73125 | T89: 4825.2375 | V89: =IF(ISERROR(VLOOKUP($J89,INDIRECT("'"&V$7&"'!J:J"),1,FALSE)),"",SUMIF(INDIRECT("'"&V$7&"'!J:J"),$J89,INDIRECT("'"&V$7&"'!L:L"))) -> 100 | Z89: 10 | AC89: 12 | AF89: =IF(ISERROR(VLOOKUP($J89,INDIRECT("'"&AF$7&"'!J:J"),1,FALSE)),"",SUMIF(INDIRECT("'"&AF$7&"'!J:J"),$J89,INDIRECT("'"&AF$7&"'!L:L"))) ->  | AK89: 22 | AL89: 10 | AO89: 12 | AP89: =IF(ISERROR(VLOOKUP($J89,INDIRECT("'"&AP$7&"'!J:J"),1,FALSE)),"",SUMIF(INDIRECT("'"&AP$7&"'!J:J"),$J89,INDIRECT("'"&AP$7&"'!L:L"))) -> 8 | AZ89: =IF(ISERROR(VLOOKUP($J89,INDIRECT("'"&AZ$7&"'!J:J"),1,FALSE)),"",SUMIF(INDIRECT("'"&AZ$7&"'!J:J"),$J89,INDIRECT("'"&AZ$7&"'!L:L"))) ->  | BJ89: =IF(ISERROR(VLOOKUP($J89,INDIRECT("'"&BJ$7&"'!J:J"),1,FALSE)),"",SUMIF(INDIRECT("'"&BJ$7&"'!J:J"),$J89,INDIRECT("'"&BJ$7&"'!L:L"))) -> 
B90: REPB47660 | C90: EXTREP | D90: D | E90: Wall: Apply 12mm cement and sand render (1:3) with waterproofing agent to external walls including ‘Decorative’ finish, dub out as necessary with cement and sand and all labours and remove waste and debris. | H90: 5.177 | J90: 4210AE | K90: SM | L90: 106 | M90: 31.33 | N90: 3320.98 | P90: =SUMIF('Planned Maint v6.2 CSV File'!A:A,J90,'Planned Maint v6.2 CSV File'!I:I) -> 22.71425 | Q90: 2407.7105 | S90: 22.71425 | T90: 2407.7105 | AP90: 106
B91: REPB42129 | C91: EXTREP | D91: D | E91: Wall: Apply 12mm cement and sand render (1:3) with waterproofing agent to external walls including ‘Rough Sandtex’ finish, dub out as necessary with cement and sand and all labours and remove waste and debris. | H91: 6.305 | J91: 4210AF | K91: SM | L91: 3 | M91: 33.5 | N91: 100.5 | P91: =SUMIF('Planned Maint v6.2 CSV File'!A:A,J91,'Planned Maint v6.2 CSV File'!I:I) -> 24.2875 | Q91: 72.8625 | S91: 24.2875 | T91: 72.8625 | AD91: 1 | AE91: 2
B92: REPB42150 | C92: EXTREP | D92: D | E92: Render Repairs:Repair crack in any external render including carefully hack out and make good with cement and sand including applying finish to match existing, and remove waste and debris. | H92: 6.306 | J92: 4230ZA | K92: LM | L92: 62 | M92: 6.87 | N92: 425.94 | P92: =SUMIF('Planned Maint v6.2 CSV File'!A:A,J92,'Planned Maint v6.2 CSV File'!I:I) -> 4.98075 | Q92: 308.8065 | S92: 4.98075 | T92: 308.8065 | Z92: 35 | AE92: 2 | AL92: 25
B93: REPB42313 | C93: EXTREP | D93: D | E93: Walls: Prepare and apply two coats smooth or textured masonry paint to external rendered surfaces of walls. | H93: 6.179 | J93: 4356AA | K93: SM | L93: 107 | M93: 10.36 | N93: 1108.52 | P93: =SUMIF('Planned Maint v6.2 CSV File'!A:A,J93,'Planned Maint v6.2 CSV File'!I:I) -> 8.806 | Q93: 942.242 | S93: 8.806 | T93: 942.242 | AF93: 1 | AP93: 106
B94: REPB14020 | C94: EXTREP | D94: D | E94: Walls:Wash down, fill in cracks and holes, sand down and apply two coats of smooth or textured masonry paint to rendered or concrete walls. | H94: 6.181 | J94: 4356AC | K94: SM | L94: 28 | M94: 9.55 | N94: 267.4 | P94: =SUMIF('Planned Maint v6.2 CSV File'!A:A,J94,'Planned Maint v6.2 CSV File'!I:I) -> 8.1175 | Q94: 227.29 | S94: 8.1175 | T94: 227.29 | V94: 28
B95: REPB47024 | C95: EXTREP | D95: D | E95: Walls: Wash down, fill in cracks and holes, sand down and apply two coats of smooth or textured masonry paint to brickwork surfaces of walls. | H95: 6.182 | J95: 4356AD | K95: SM | L95: 6 | M95: 10.17 | N95: 61.02 | P95: =SUMIF('Planned Maint v6.2 CSV File'!A:A,J95,'Planned Maint v6.2 CSV File'!I:I) -> 8.6445 | Q95: 51.867 | S95: 8.6445 | T95: 51.867 | AI95: 6
B96: REPB42150 | C96: EXTREP | D96: D | E96: Walls:Wash down, fill in cracks and holes, sand down and apply one coat of stabilising solution and two coats of smooth or textured masonry paint to rendered or concrete walls. | H96: 6.185 | J96: 4356BC | K96: SM | L96: 60 | M96: 11.01 | N96: 660.6 | P96: =SUMIF('Planned Maint v6.2 CSV File'!A:A,J96,'Planned Maint v6.2 CSV File'!I:I) -> 9.3585 | Q96: 561.51 | S96: 9.3585 | T96: 561.51 | Z96: 35 | AL96: 25
B97: REPB04223 | C97: EXTREP | D97: D | E97: Walls: Wash down, fill in cracks and holes, sand down and apply one coat of stabilising solution and two coats of smooth or textured masonry paint to brickwork surfaces of walls. | H97: 6.186 | J97: 4356BD | K97: SM | L97: 366 | M97: 11.63 | N97: 4256.58 | P97: =SUMIF('Planned Maint v6.2 CSV File'!A:A,J97,'Planned Maint v6.2 CSV File'!I:I) -> 9.8855 | Q97: 3618.093 | S97: 9.8855 | T97: 3618.093 | W97: 315 | Y97: 25 | AA97: 8 | AM97: 6 | AQ97: 12
B98: REPB11024 | C98: EXTREP | D98: D | E98: Soffit:Wash down, fill in cracks and holes, sand smooth and apply two coats of smooth or textured masonry paint to rendered or concrete canopies or soffits. | H98: 6.187 | J98: 4356CA | K98: SM | L98: 20 | M98: 8.58 | N98: 171.6 | P98: =SUMIF('Planned Maint v6.2 CSV File'!A:A,J98,'Planned Maint v6.2 CSV File'!I:I) -> 7.293 | Q98: 145.86 | S98: 7.293 | T98: 145.86 | X98: 20
B99: REPB04223 | C99: EXTREP | D99: D | E99: Soffit: Wash down, fill in cracks and holes, sand smooth and apply one coat of sealer and two coats of smooth or textured masonry paint to rendered or concrete soffits. | H99: 6.188 | J99: 4356CB | K99: SM | L99: 52 | M99: 9.82 | N99: 510.64 | P99: =SUMIF('Planned Maint v6.2 CSV File'!A:A,J99,'Planned Maint v6.2 CSV File'!I:I) -> 8.347 | Q99: 434.044 | S99: 8.347 | T99: 434.044 | V99: =IF(ISERROR(VLOOKUP($J99,INDIRECT("'"&V$7&"'!J:J"),1,FALSE)),"",SUMIF(INDIRECT("'"&V$7&"'!J:J"),$J99,INDIRECT("'"&V$7&"'!L:L"))) ->  | W99: 12 | Y99: 40 | AF99: =IF(ISERROR(VLOOKUP($J99,INDIRECT("'"&AF$7&"'!J:J"),1,FALSE)),"",SUMIF(INDIRECT("'"&AF$7&"'!J:J"),$J99,INDIRECT("'"&AF$7&"'!L:L"))) ->  | AP99: =IF(ISERROR(VLOOKUP($J99,INDIRECT("'"&AP$7&"'!J:J"),1,FALSE)),"",SUMIF(INDIRECT("'"&AP$7&"'!J:J"),$J99,INDIRECT("'"&AP$7&"'!L:L"))) ->  | AZ99: =IF(ISERROR(VLOOKUP($J99,INDIRECT("'"&AZ$7&"'!J:J"),1,FALSE)),"",SUMIF(INDIRECT("'"&AZ$7&"'!J:J"),$J99,INDIRECT("'"&AZ$7&"'!L:L"))) ->  | BJ99: =IF(ISERROR(VLOOKUP($J99,INDIRECT("'"&BJ$7&"'!J:J"),1,FALSE)),"",SUMIF(INDIRECT("'"&BJ$7&"'!J:J"),$J99,INDIRECT("'"&BJ$7&"'!L:L"))) -> 
B100: REPB47495 | C100: EXTREP | D100: D | E100: Walls: Wash down, fill in cracks and holes, sand smooth and apply two coats of smooth finish masonry paint to rendered or concrete surfaces of walls. | H100: 6.194 | J100: 4360BA | K100: SM | L100: 306 | M100: 7.02 | N100: 2148.12 | P100: =SUMIF('Planned Maint v6.2 CSV File'!A:A,J100,'Planned Maint v6.2 CSV File'!I:I) -> 5.967 | Q100: 1825.902 | S100: 5.967 | T100: 1825.902 | AC100: 33 | AD100: 50 | AE100: 110 | AK100: 25 | AN100: 60 | AO100: 28
B101: REPB42457 | C101: EXTREP | D101: D | E101: Walls:Wash down, fill in cracks and holes, sand down and apply one undercoat and one coat of gloss paint to rendered or concrete walls. | H101: 6.197 | J101: 4361AB | K101: SM | L101: 34 | M101: 15.71 | N101: 534.14 | P101: =SUMIF('Planned Maint v6.2 CSV File'!A:A,J101,'Planned Maint v6.2 CSV File'!I:I) -> 13.3535 | Q101: 454.019 | S101: 13.3535 | T101: 454.019 | AG101: 8 | AJ101: 20 | AR101: 6
B102: REPB14020 | C102: EXTREP | D102: D | E102: Gates: Wire brush, prepare for, and apply one coat primer, one undercoat, two coats of gloss paint to both sides of any size type single metal gate including all edges and all surfaces of posts. | H102: 6.203 | J102: 4362DA | K102: IT | L102: 5 | M102: 21.61 | N102: 108.05 | P102: =SUMIF('Planned Maint v6.2 CSV File'!A:A,J102,'Planned Maint v6.2 CSV File'!I:I) -> 18.3685 | Q102: 91.8425 | S102: 18.3685 | T102: 91.8425 | V102: 2 | AF102: 1 | AG102: 1 | AH102: 1
B103: REPB47495 | C103: EXTREP | D103: D | E103: Balustrading: Wire brush, prepare for and apply one coat of primer, one undercoat, two coats of gloss paint on ornamental metal balustrading, railings or gates (measured both sides). | H103: 6.204 | J103: 4362EA | K103: SM | L103: 51 | M103: 20.51 | N103: 1046.01 | P103: =SUMIF('Planned Maint v6.2 CSV File'!A:A,J103,'Planned Maint v6.2 CSV File'!I:I) -> 17.4335 | Q103: 889.1085 | S103: 17.4335 | T103: 889.1085 | AC103: 12 | AG103: 8 | AJ103: 8 | AO103: 12 | AQ103: 6 | AR103: 5
B104: REPB42154 | C104: EXTREP | D104: D | E104: Gates: Wire brush, prepare for and apply one undercoat and two coats of gloss paint to both sides of existing painted surface of any size/type single metal gate including all edges and all surfaces of posts. | H104: 6.214 | J104: 4363DA | K104: IT | L104: 4 | M104: 16.98 | N104: 67.92 | P104: =SUMIF('Planned Maint v6.2 CSV File'!A:A,J104,'Planned Maint v6.2 CSV File'!I:I) -> 14.433 | Q104: 57.732 | S104: 14.433 | T104: 57.732 | AB104: 1 | AI104: 1 | AN104: 1 | AP104: 1
B105: REPB14020 | C105: EXTREP | D105: D | E105: Balustrading: Wire brush, prepare for and apply one undercoat and two coats of gloss paint on existing painted surfaces ornamental metal balustrading, railings or gates (measured both sides). | H105: 6.215 | J105: 4363EA | K105: SM | L105: =SUM(V105:BS105) -> 616 | M105: 16.08 | N105: =L105*M105 -> 9905.28 | P105: =SUMIF('Planned Maint v6.2 CSV File'!A:A,J105,'Planned Maint v6.2 CSV File'!I:I) -> 13.668 | Q105: =IF(J105="PROV SUM",N105,L105*P105) -> 8419.488 | S105: =IF(R105>0,R105,P105) -> 13.668 | T105: =IF(J105="PROV SUM",N105,L105*S105) -> 8419.488 | V105: 425 | X105: 160 | AE105: 18 | AN105: 1 | AP105: 12
B106: REPB47025 | C106: EXTREP | D106: D | E106: Pipework: Wire brush, prepare for and apply one undercoat and two coats of gloss paint to existing painted surfaces of external pipework ne 300mm girth including brackets. | H106: 6.218 | J106: 4363HA | K106: LM | L106: 27 | M106: 1.73 | N106: 46.71 | P106: =SUMIF('Planned Maint v6.2 CSV File'!A:A,J106,'Planned Maint v6.2 CSV File'!I:I) -> 1.4705 | Q106: 39.7035 | S106: 1.4705 | T106: 39.7035 | AL106: 15 | AN106: 12
B107: REPB47293 | C107: EXTREP | D107: D | E107: Gates: Wire brush, prepare for and apply one undercoat, one coat of gloss paint to both sides of existing painted any size/type single metal gate including all edges and all surfaces of posts. | H107: 6.224 | J107: 4364CA | K107: IT | L107: 1 | M107: 12.36 | N107: 12.36 | P107: =SUMIF('Planned Maint v6.2 CSV File'!A:A,J107,'Planned Maint v6.2 CSV File'!I:I) -> 10.506 | Q107: 10.506 | S107: 10.506 | T107: 10.506 | AK107: 1
B108: REPB04223 | C108: EXTREP | D108: D | E108: Balustrading: Wire brush, prepare for and apply one undercoat, one coat of gloss paint on existing painted surfaces of ornamental metal balustrading, railings or gates (measured both sides). | H108: 6.225 | J108: 4364DA | K108: SM | L108: 48 | M108: 11.66 | N108: 559.68 | P108: =SUMIF('Planned Maint v6.2 CSV File'!A:A,J108,'Planned Maint v6.2 CSV File'!I:I) -> 9.911 | Q108: 475.728 | S108: 9.911 | T108: 475.728 | W108: 12 | Y108: 36
B109: REPB14020 | C109: EXTREP | D109: D | E109: Pipework: Wire brush, prepare for and apply one undercoat and one coat of gloss paint to existing painted surfaces of external pipework ne 300mm girth including brackets. | H109: 6.228 | J109: 4364GA | K109: LM | L109: 192 | M109: 1.21 | N109: 232.32 | P109: =SUMIF('Planned Maint v6.2 CSV File'!A:A,J109,'Planned Maint v6.2 CSV File'!I:I) -> 1.0285 | Q109: 197.472 | S109: 1.0285 | T109: 197.472 | V109: =IF(ISERROR(VLOOKUP($J109,INDIRECT("'"&V$7&"'!J:J"),1,FALSE)),"",SUMIF(INDIRECT("'"&V$7&"'!J:J"),$J109,INDIRECT("'"&V$7&"'!L:L"))) -> 192 | AF109: =IF(ISERROR(VLOOKUP($J109,INDIRECT("'"&AF$7&"'!J:J"),1,FALSE)),"",SUMIF(INDIRECT("'"&AF$7&"'!J:J"),$J109,INDIRECT("'"&AF$7&"'!L:L"))) ->  | AP109: =IF(ISERROR(VLOOKUP($J109,INDIRECT("'"&AP$7&"'!J:J"),1,FALSE)),"",SUMIF(INDIRECT("'"&AP$7&"'!J:J"),$J109,INDIRECT("'"&AP$7&"'!L:L"))) ->  | AZ109: =IF(ISERROR(VLOOKUP($J109,INDIRECT("'"&AZ$7&"'!J:J"),1,FALSE)),"",SUMIF(INDIRECT("'"&AZ$7&"'!J:J"),$J109,INDIRECT("'"&AZ$7&"'!L:L"))) ->  | BJ109: =IF(ISERROR(VLOOKUP($J109,INDIRECT("'"&BJ$7&"'!J:J"),1,FALSE)),"",SUMIF(INDIRECT("'"&BJ$7&"'!J:J"),$J109,INDIRECT("'"&BJ$7&"'!L:L"))) -> 
B110: REPB42129 | C110: EXTREP | D110: D | E110: Fascias, soffits, Bargeboards and the like: Rub down, prepare for, and apply one coat primer, one undercoat, two coats of gloss paint on surfaces of facias, soffits, bargeboards and the like ne 300mm girth. | H110: 6.235 | J110: 4380AB | K110: LM | L110: 28 | M110: 5.28 | N110: 147.84 | P110: =SUMIF('Planned Maint v6.2 CSV File'!A:A,J110,'Planned Maint v6.2 CSV File'!I:I) -> 4.488 | Q110: 125.664 | S110: 4.488 | T110: 125.664 | AD110: 28
B111: REPB04223 | C111: EXTREP | D111: D | E111: Window:Rub down, prepare and apply one coat of primer, one undercoat and two coats of gloss paint on surfaces of wooden windowsl (one side and edges). | H111: 6.236 | J111: 4380BA | K111: SM | L111: 535 | M111: 25.87 | N111: 13840.45 | P111: =SUMIF('Planned Maint v6.2 CSV File'!A:A,J111,'Planned Maint v6.2 CSV File'!I:I) -> 21.9895 | Q111: 11764.3825 | S111: 21.9895 | T111: 11764.3825 | W111: 177 | Y111: 165 | AA111: 20 | AB111: 28 | AD111: 19 | AE111: 18 | AF111: 22 | AG111: 10 | AJ111: 24 | AN111: 18 | AP111: 24 | AR111: 10
B112: REPB04223 | C112: EXTREP | D112: D | E112: Frame:Rub down, prepare and apply one coat of primer, one undercoat and two coats of gloss paint on timber frame ne 300mm girth. | H112: 6.237 | J112: 4380CA | K112: LM | L112: 234 | M112: 6.28 | N112: 1469.52 | P112: =SUMIF('Planned Maint v6.2 CSV File'!A:A,J112,'Planned Maint v6.2 CSV File'!I:I) -> 5.338 | Q112: 1249.092 | S112: 5.338 | T112: 1249.092 | W112: 50 | Y112: 12 | AA112: 15 | AB112: 6 | AD112: 30 | AE112: 30 | AF112: 6 | AG112: 14 | AI112: 6 | AJ112: 28 | AN112: 6 | AP112: 17 | AR112: 14
B113: REPB04223 | C113: EXTREP | D113: D | E113: Door:Rub down, prepare for and apply one coat of primer, one undercoat and two coats of gloss paint to all surfaces of any size or type of single glazed timber door. (one sides and edges). | H113: 6.238 | J113: 4380DA | K113: IT | L113: 37 | M113: 20.71 | N113: 766.27 | P113: =SUMIF('Planned Maint v6.2 CSV File'!A:A,J113,'Planned Maint v6.2 CSV File'!I:I) -> 17.6035 | Q113: 651.3295 | S113: 17.6035 | T113: 651.3295 | W113: 9 | Y113: 1 | AA113: 2 | AD113: 5 | AE113: 5 | AG113: 3 | AJ113: 4 | AN113: 1 | AP113: 4 | AR113: 3
B114: REPB47024 | C114: EXTREP | D114: D | E114: Door: Rub down, prepare for and apply one coat of primer, one undercoat and two coats of gloss paint to all surfaces of any size or type of single glazed timber door (both sides and edges). | H114: 6.239 | J114: 4380DB | K114: IT | L114: 2 | M114: 39.28 | N114: 78.56 | P114: =SUMIF('Planned Maint v6.2 CSV File'!A:A,J114,'Planned Maint v6.2 CSV File'!I:I) -> 33.388 | Q114: 66.776 | S114: 33.388 | T114: 66.776 | AI114: 2
B115: REPB42154 | C115: EXTREP | D115: D | E115: Door: Rub down, prepare for and apply one coat of primer, one undercoat and two coats of gloss paint to all surfaces of any type or size of single timber door. (both sides and edges). | H115: 6.241 | J115: 4380DD | K115: IT | L115: 2 | M115: 45.53 | N115: 91.06 | P115: =SUMIF('Planned Maint v6.2 CSV File'!A:A,J115,'Planned Maint v6.2 CSV File'!I:I) -> 38.7005 | Q115: 77.401 | S115: 38.7005 | T115: 77.401 | AB115: 2
B116: REPB47715 | C116: EXTREP | D116: D | E116: Window: Rub down, prepare and apply one undercoat and two coats of gloss paint on existing painted surfaces of wooden windows. (one side and edges). | H116: 6.249 | J116: 4381BB | K116: SM | L116: 22 | M116: 24.54 | N116: 539.88 | P116: =SUMIF('Planned Maint v6.2 CSV File'!A:A,J116,'Planned Maint v6.2 CSV File'!I:I) -> 20.859 | Q116: 458.898 | S116: 20.859 | T116: 458.898 | AQ116: 22
B117: REPB47715 | C117: EXTREP | D117: D | E117: Frame: Rub down, prepare and apply one undercoat and two coats of gloss paint on existing painted timber frame ne 300mm girth. | H117: 6.25 | J117: 4381CA | K117: LM | L117: 30 | M117: 5.84 | N117: 175.2 | P117: =SUMIF('Planned Maint v6.2 CSV File'!A:A,J117,'Planned Maint v6.2 CSV File'!I:I) -> 4.964 | Q117: 148.92 | S117: 4.964 | T117: 148.92 | AQ117: 30
B118: REPB04223 | C118: EXTREP | D118: D | E118: Gates: Rub down, prepare for, and apply one undercoat, two coats of gloss paint on existing painted surfaces of gates and posts (measured both sides). | H118: 6.258 | J118: 4381FA | K118: SM | L118: 5 | M118: 12.41 | N118: 62.05 | P118: =SUMIF('Planned Maint v6.2 CSV File'!A:A,J118,'Planned Maint v6.2 CSV File'!I:I) -> 10.5485 | Q118: 52.7425 | S118: 10.5485 | T118: 52.7425 | W118: 2 | Y118: 2 | AM118: 1
B119: REPB04223 | C119: EXTREP | D119: D | E119: Fascias, soffits, Bargeboards and the like:Rub down, prepare for, and apply one undercoat, two coats of gloss paint on existing painted surfaces of facias, soffits, bargeboards and the like ne 300mm girth. | H119: 6.26 | J119: 4381HB | K119: LM | L119: 63 | M119: 3.74 | N119: 235.62 | P119: =SUMIF('Planned Maint v6.2 CSV File'!A:A,J119,'Planned Maint v6.2 CSV File'!I:I) -> 3.179 | Q119: 200.277 | S119: 3.179 | T119: 200.277 | V119: =IF(ISERROR(VLOOKUP($J119,INDIRECT("'"&V$7&"'!J:J"),1,FALSE)),"",SUMIF(INDIRECT("'"&V$7&"'!J:J"),$J119,INDIRECT("'"&V$7&"'!L:L"))) ->  | W119: 12 | Y119: 12 | AF119: =IF(ISERROR(VLOOKUP($J119,INDIRECT("'"&AF$7&"'!J:J"),1,FALSE)),"",SUMIF(INDIRECT("'"&AF$7&"'!J:J"),$J119,INDIRECT("'"&AF$7&"'!L:L"))) ->  | AK119: 29 | AL119: 4 | AN119: 6 | AP119: =IF(ISERROR(VLOOKUP($J119,INDIRECT("'"&AP$7&"'!J:J"),1,FALSE)),"",SUMIF(INDIRECT("'"&AP$7&"'!J:J"),$J119,INDIRECT("'"&AP$7&"'!L:L"))) ->  | AZ119: =IF(ISERROR(VLOOKUP($J119,INDIRECT("'"&AZ$7&"'!J:J"),1,FALSE)),"",SUMIF(INDIRECT("'"&AZ$7&"'!J:J"),$J119,INDIRECT("'"&AZ$7&"'!L:L"))) ->  | BJ119: =IF(ISERROR(VLOOKUP($J119,INDIRECT("'"&BJ$7&"'!J:J"),1,FALSE)),"",SUMIF(INDIRECT("'"&BJ$7&"'!J:J"),$J119,INDIRECT("'"&BJ$7&"'!L:L"))) -> 
B120: REPB42150 | C120: EXTREP | D120: D | E120: Window:Rub down, prepare and apply one undercoat and one coat of gloss paint on existing painted surfaces of wooden windows (one side and edges). | H120: 6.262 | J120: 4381JB | K120: SM | L120: 182 | M120: 16.86 | N120: 3068.52 | P120: =SUMIF('Planned Maint v6.2 CSV File'!A:A,J120,'Planned Maint v6.2 CSV File'!I:I) -> 14.331 | Q120: 2608.242 | S120: 14.331 | T120: 2608.242 | Z120: 10 | AC120: 34 | AH120: 22 | AI120: 16 | AK120: 31 | AL120: 15 | AM120: 20 | AO120: 34
B121: REPB42153 | C121: EXTREP | D121: D | E121: Frame:Rub down, prepare and apply one undercoat and one coat of gloss paint on existing painted timber frame ne 300mm girth. | H121: 6.263 | J121: 4381KA | K121: LM | L121: 86 | M121: 3.81 | N121: 327.66 | P121: =SUMIF('Planned Maint v6.2 CSV File'!A:A,J121,'Planned Maint v6.2 CSV File'!I:I) -> 3.2385 | Q121: 278.511 | S121: 3.2385 | T121: 278.511 | AH121: 44 | AM121: 42
B122: REPB42153 | C122: EXTREP | D122: D | E122: Door:Rub down, prepare for and apply one undercoat and one coat of gloss paint to all existing painted surfaces of any size or type of single glazed timber door (one sides and edges). | H122: 6.264 | J122: 4381LA | K122: IT | L122: 4 | M122: 9.67 | N122: 38.68 | P122: =SUMIF('Planned Maint v6.2 CSV File'!A:A,J122,'Planned Maint v6.2 CSV File'!I:I) -> 8.2195 | Q122: 32.878 | S122: 8.2195 | T122: 32.878 | AH122: 2 | AM122: 2
B123: REPB47495 | C123: EXTREP | D123: D | E123: Door: Rub down, prepare for and apply one undercoat and one coat of gloss paint to all existing painted surfaces of any size or type of single glazed timber door (both sides and edges). | H123: 6.265 | J123: 4381LB | K123: IT | L123: 4 | M123: 19.34 | N123: 77.36 | P123: =SUMIF('Planned Maint v6.2 CSV File'!A:A,J123,'Planned Maint v6.2 CSV File'!I:I) -> 16.439 | Q123: 65.756 | S123: 16.439 | T123: 65.756 | AC123: 1 | AL123: 2 | AO123: 1
B124: REPB42150 | C124: EXTREP | D124: D | E124: Gates:Rub down, prepare for, and apply one undercoat, one coat of gloss paint on existing painted surfaces of gates and posts (measured both sides). | H124: 6.271 | J124: 4381NA | K124: SM | L124: 1 | M124: 8.17 | N124: 8.17 | P124: =SUMIF('Planned Maint v6.2 CSV File'!A:A,J124,'Planned Maint v6.2 CSV File'!I:I) -> 6.9445 | Q124: 6.9445 | S124: 6.9445 | T124: 6.9445 | Z124: 1
B125: REPB42150 | C125: EXTREP | D125: D | E125: Door:Rub down, prepare for, and apply three coats decorative wood stain on external surfaces of any size/type of single door(both sides and edges) | H125: 6.276 | J125: 4382DB | K125: IT | L125: 3 | M125: 33.52 | N125: 100.56 | P125: =SUMIF('Planned Maint v6.2 CSV File'!A:A,J125,'Planned Maint v6.2 CSV File'!I:I) -> 28.492 | Q125: 85.476 | S125: 28.492 | T125: 85.476 | Z125: 1 | AL125: 1 | AQ125: 1
B126: REPB42150 | C126: EXTREP | D126: D | E126: Moulding Repairs 0-5no. per property Fosroc repair mortar or equivalent Insitu repairs using straight edge to form moulding repair. (Girth NE300mm Length NE300mm) | H126: 6.11 | J126: FAB071 | K126: no | L126: 13 | M126: 79.14 | N126: 1028.82 | P126: =SUMIF('Planned Maint v6.2 CSV File'!A:A,J126,'Planned Maint v6.2 CSV File'!I:I) -> 63.312 | Q126: 823.056 | S126: 63.312 | T126: 823.056 | Z126: 1 | AC126: 5 | AK126: 1 | AL126: 1 | AO126: 5
B127: REPB47293 | C127: COMMUNAL WORKS | D127: D | E127: Door: Renew front door with any size 44mm hardwood panelled, glazed or part glazed door prepared for glazing, hang on 1.5 pair butts, fix new mortice lock, furniture, keep, pair of bolts, cylinder latch and pull, security restraint device, letter plate including cutting mortice in door to suit, numerals, hardwood weathermould, adjust stops, ease rebates, cut out and make good to frame to suit new position of butts, weathermould, lock and latch, rebate door bottom as necessary and fit new waterbar if required, double glazed and decorate to match existing internally and prepare for redecoration externally, and remove waste and debris. | H127: 5.326 | J127: 3211BA | K127: NO | L127: 1 | M127: 461.13 | N127: 461.13 | P127: =SUMIF('Planned Maint v6.2 CSV File'!A:A,J127,'Planned Maint v6.2 CSV File'!I:I) -> 408.791745 | Q127: 408.791745 | S127: 408.791745 | T127: 408.791745 | AK127: 1
B128: REPB47715 | C128: COMMUNAL WORKS | D128: D | E128: Frame: Renew external door frame with softwood door frame, rebated and with fanlight over, to suit any size single door, remove existing door and set aside, remove existing frame and bed new frame in mortar, plugged and screwed to brickwork and point with sealant, rehang door including ease and adjust, refix lock keep including housing out, make good all works disturbed including refix or renew internal beads, architraves etc., glaze to fanlight and decorate to match existing internally and prepare for redecoration externally, and remove waste and debris. | H128: 5.295 | J128: 3411AC | K128: NO | L128: 1 | M128: 197.62 | N128: 197.62 | P128: =SUMIF('Planned Maint v6.2 CSV File'!A:A,J128,'Planned Maint v6.2 CSV File'!I:I) -> 175.19013 | Q128: 175.19013 | S128: 175.19013 | T128: 175.19013 | AQ128: 1
B129: REPB42154 | C129: COMMUNAL WORKS | D129: D | E129: Skirting: Renew any size softwood plain, moulded or chamfered skirting plugged to brickwork, including all ends and angles and prepare for redecoration, and remove waste and debris. | H129: 5.91 | J129: 3810AA | K129: LM | L129: 2 | M129: 14.7 | N129: 29.4 | P129: =SUMIF('Planned Maint v6.2 CSV File'!A:A,J129,'Planned Maint v6.2 CSV File'!I:I) -> 13.03155 | Q129: 26.0631 | S129: 13.03155 | T129: 26.0631 | V129: =IF(ISERROR(VLOOKUP($J129,INDIRECT("'"&V$7&"'!J:J"),1,FALSE)),"",SUMIF(INDIRECT("'"&V$7&"'!J:J"),$J129,INDIRECT("'"&V$7&"'!L:L"))) ->  | AB129: 2 | AF129: =IF(ISERROR(VLOOKUP($J129,INDIRECT("'"&AF$7&"'!J:J"),1,FALSE)),"",SUMIF(INDIRECT("'"&AF$7&"'!J:J"),$J129,INDIRECT("'"&AF$7&"'!L:L"))) ->  | AP129: =IF(ISERROR(VLOOKUP($J129,INDIRECT("'"&AP$7&"'!J:J"),1,FALSE)),"",SUMIF(INDIRECT("'"&AP$7&"'!J:J"),$J129,INDIRECT("'"&AP$7&"'!L:L"))) ->  | AZ129: =IF(ISERROR(VLOOKUP($J129,INDIRECT("'"&AZ$7&"'!J:J"),1,FALSE)),"",SUMIF(INDIRECT("'"&AZ$7&"'!J:J"),$J129,INDIRECT("'"&AZ$7&"'!L:L"))) ->  | BJ129: =IF(ISERROR(VLOOKUP($J129,INDIRECT("'"&BJ$7&"'!J:J"),1,FALSE)),"",SUMIF(INDIRECT("'"&BJ$7&"'!J:J"),$J129,INDIRECT("'"&BJ$7&"'!L:L"))) -> 
B130: REPB42154 | C130: COMMUNAL WORKS | D130: D | E130: Wall: Hack off any thickness of render from walls, rake out and prepare brickwork or blockwork to receive rendering and remove waste and debris. | H130: 5.173 | J130: 4210AA | K130: SM | L130: 109 | M130: 12.5 | N130: 1362.5 | P130: =SUMIF('Planned Maint v6.2 CSV File'!A:A,J130,'Planned Maint v6.2 CSV File'!I:I) -> 9.0625 | Q130: 987.8125 | S130: 9.0625 | T130: 987.8125 | AB130: 1 | AF130: 2 | AP130: 106
B131: REPB42313 | C131: COMMUNAL WORKS | D131: D | E131: Wall: Apply 12mm cement and sand render (1:3) with waterproofing agent to external walls trowelled smooth, dub out as necessary with cement and sand, including all labours and remove waste and debris. | H131: 5.174 | J131: 4210AB | K131: SM | L131: 2 | M131: 20.44 | N131: 40.88 | P131: =SUMIF('Planned Maint v6.2 CSV File'!A:A,J131,'Planned Maint v6.2 CSV File'!I:I) -> 14.819 | Q131: 29.638 | S131: 14.819 | T131: 29.638 | AF131: 2
B132: REPB47684 | C132: COMMUNAL WORKS | D132: D | E132: Floor Tiles: Hack off vinyl floor tiles, supply and lay new ne 300x300x2.00mm vinyl tiles with adhesive in patch including all necessary cutting of tiles and clean off and remove waste and debris. | H132: 5.135 | J132: 4323BA | K132: SM | L132: 4 | M132: 21.11 | N132: 84.44 | P132: =SUMIF('Planned Maint v6.2 CSV File'!A:A,J132,'Planned Maint v6.2 CSV File'!I:I) -> 17.783064 | Q132: 71.132256 | S132: 17.783064 | T132: 71.132256 | AM132: 4
B133: REPB47025 | C133: COMMUNAL WORKS | D133: D | E133: Flooring: Take up any covering, clear away, supply and lay minimum 2.0mm felt backed vinyl sheet flooring with adhesive to cement and sand screed, or hardboard including all necessary cutting, all labours and clean off, and remove waste and debris. | H133: 5.14 | J133: 4325AA | K133: SM | L133: 4 | M133: 27.96 | N133: 111.84 | P133: =SUMIF('Planned Maint v6.2 CSV File'!A:A,J133,'Planned Maint v6.2 CSV File'!I:I) -> 23.553504 | Q133: 94.214016 | S133: 23.553504 | T133: 94.214016 | AL133: 4
B134: REPB42457 | C134: COMMUNAL WORKS | D134: D | E134: Sheet Flooring: Supply and lay 'Polysafe' or other equal and approved proprietary safety flooring with adhesive to and including supply and lay approved sheet sub base, including all necessary cutting, all labours, upstands and clean off, and remove waste and debris. | H134: 5.148 | J134: 4326BB | K134: SM | L134: 2 | M134: 40.94 | N134: 81.88 | P134: =SUMIF('Planned Maint v6.2 CSV File'!A:A,J134,'Planned Maint v6.2 CSV File'!I:I) -> 34.487856 | Q134: 68.975712 | S134: 34.487856 | T134: 68.975712 | AG134: 2
B135: REPB42154 | C135: COMMUNAL WORKS | D135: D | E135: Carpet: Renew tight woven medium contract grade carpet to domestic areas, take up existing and dispose to tip, prepare sub-base, lay underlay secure all edges with gripper or proprietary adhesive tape, cut and fit around pipes, into alcoves, door openings and the like including all necessary door strips etc., and remove waste and debris. | H135: 5.154 | J135: 4328AC | K135: SM | L135: 38 | M135: 16.28 | N135: 618.64 | P135: =SUMIF('Planned Maint v6.2 CSV File'!A:A,J135,'Planned Maint v6.2 CSV File'!I:I) -> 13.714272 | Q135: 521.142336 | S135: 13.714272 | T135: 521.142336 | AB135: 6 | AI135: 6 | AP135: 6 | AQ135: 20
B136: REPB42313 | C136: COMMUNAL WORKS | D136: D | E136: Carpet: Renew or supply and fit new tight woven heavy contract grade carpet tile flooring, take up existing and dispose to tip, prepare sub-base, and lay carpet tiles, including cut and fit around pipes, into alcoves, door openings and the like including all necessary door strips etc., and remove waste and debris. | H136: 5.165 | J136: 4328BC | K136: SM | L136: 4 | M136: 38.13 | N136: 152.52 | P136: =SUMIF('Planned Maint v6.2 CSV File'!A:A,J136,'Planned Maint v6.2 CSV File'!I:I) -> 32.120712 | Q136: 128.482848 | S136: 32.120712 | T136: 128.482848 | AF136: 4
B137: REPB47715 | C137: COMMUNAL WORKS | D137: D | E137: Nosing: Take off and refix any size or type of nosing to step including drilling and plugging as necessary. | H137: 5.157 | J137: 4329CA | K137: NO | L137: =SUM(V137:BS137) -> 16 | M137: 9.62 | N137: =L137*M137 -> 153.92 | P137: =SUMIF('Planned Maint v6.2 CSV File'!A:A,J137,'Planned Maint v6.2 CSV File'!I:I) -> 8.103888 | Q137: =IF(J137="PROV SUM",N137,L137*P137) -> 129.662208 | S137: =IF(R137>0,R137,P137) -> 8.103888 | T137: =IF(J137="PROV SUM",N137,L137*S137) -> 129.662208 | AQ137: 16
B138: REPB47025 | C138: COMMUNAL WORKS | D138: D | E138: Hall Stairs: Rub down, prepare for and apply two coats of emulsion to ceilings of hall, landing and staircase area complete (3 storey) (classified as a single area). | H138: 5.24 | J138: 4506AB | K138: IT | L138: 1 | M138: 140.12 | N138: 140.12 | P138: =SUMIF('Planned Maint v6.2 CSV File'!A:A,J138,'Planned Maint v6.2 CSV File'!I:I) -> 119.102 | Q138: 119.102 | S138: 119.102 | T138: 119.102 | AL138: 1
B139: REPB14020 | C139: COMMUNAL WORKS | D139: D | E139: Hall: Thoroughly clean down all wall and ceiling surfaces to common areas to remove dirt, grease and surface containments, scrape and remove all loose and defective coatings, prime bare areas with one coat of fire retardant primer and apply two coats of Class ‘O’ fire retardant matt paint, prepare and apply two coats of polyurethane lacquer or one undercoat and one gloss coat to all previously decorated timber surfaces to lobby, hall or corridor over 3.00sm ceiling area complete (classified as a single area). | H139: 5.1 | J139: 4540AC | K139: IT | L139: 13 | M139: 480 | N139: 6240 | P139: =SUMIF('Planned Maint v6.2 CSV File'!A:A,J139,'Planned Maint v6.2 CSV File'!I:I) -> 408 | Q139: 5304 | S139: 408 | T139: 5304 | V139: =IF(ISERROR(VLOOKUP($J139,INDIRECT("'"&V$7&"'!J:J"),1,FALSE)),"",SUMIF(INDIRECT("'"&V$7&"'!J:J"),$J139,INDIRECT("'"&V$7&"'!L:L"))) -> 2 | AB139: 1 | AC139: 1 | AF139: =IF(ISERROR(VLOOKUP($J139,INDIRECT("'"&AF$7&"'!J:J"),1,FALSE)),"",SUMIF(INDIRECT("'"&AF$7&"'!J:J"),$J139,INDIRECT("'"&AF$7&"'!L:L"))) -> 1 | AG139: 1 | AI139: 1 | AL139: 1 | AM139: 1 | AO139: 1 | AP139: =IF(ISERROR(VLOOKUP($J139,INDIRECT("'"&AP$7&"'!J:J"),1,FALSE)),"",SUMIF(INDIRECT("'"&AP$7&"'!J:J"),$J139,INDIRECT("'"&AP$7&"'!L:L"))) -> 1 | AQ139: 1 | AR139: 1 | AZ139: =IF(ISERROR(VLOOKUP($J139,INDIRECT("'"&AZ$7&"'!J:J"),1,FALSE)),"",SUMIF(INDIRECT("'"&AZ$7&"'!J:J"),$J139,INDIRECT("'"&AZ$7&"'!L:L"))) ->  | BJ139: =IF(ISERROR(VLOOKUP($J139,INDIRECT("'"&BJ$7&"'!J:J"),1,FALSE)),"",SUMIF(INDIRECT("'"&BJ$7&"'!J:J"),$J139,INDIRECT("'"&BJ$7&"'!L:L"))) -> 
B140: REPB14020 | C140: ASBESTOS | D140: D | E140: Refurbishment and Demolition Survey to Full Property (with upto 5 Nr samples) , flat or house any size | H140: 1.3 | J140: A003 | K140: Item | L140: 26 | M140: 234 | N140: 6084 | P140: =SUMIF('Planned Maint v6.2 CSV File'!A:A,J140,'Planned Maint v6.2 CSV File'!I:I) -> 222.3 | Q140: 5779.8 | S140: 222.3 | T140: 5779.8 | V140: 2 | W140: 2 | X140: 1 | Y140: 2 | Z140: 1 | AA140: 1 | AB140: 1 | AC140: 1 | AD140: 1 | AE140: 1 | AF140: 1 | AG140: 1 | AH140: 1 | AI140: 1 | AJ140: 1 | AK140: 1 | AL140: 1 | AM140: 1 | AN140: 1 | AO140: 1 | AP140: 1 | AQ140: 1 | AR140: 1
B141: REPB42153 | C141: ESTATE WORKS | D141: D | E141: Path:Excavate 250mm below required finished level, remove waste and debris, level and compact bottoms of excavations and fill, 150mm hardcore bed, blinded and ne 100mm concrete trowelled smooth including dishing to gullies and the like and all formwork. | H141: 7.4 | J141: 0030AA | K141: SM | L141: 54 | M141: 58.8 | N141: 3175.2 | P141: =SUMIF('Planned Maint v6.2 CSV File'!A:A,J141,'Planned Maint v6.2 CSV File'!I:I) -> 48.35124 | Q141: 2610.96696 | S141: 48.35124 | T141: 2610.96696 | AH141: 18 | AK141: 20 | AM141: 16
B142: REPB42129 | C142: ESTATE WORKS | D142: D | E142: Flag: Lift any size existing precast concrete paving flag, fill and compact hardcore to soft spots and rebed existing flag on 25mm bed of cement mortar (1:4) and point up joints. | H142: 7.55 | J142: 0070BF | K142: NO | L142: 15 | M142: 6.68 | N142: 100.2 | P142: =SUMIF('Planned Maint v6.2 CSV File'!A:A,J142,'Planned Maint v6.2 CSV File'!I:I) -> 5.492964 | Q142: 82.39446 | S142: 5.492964 | T142: 82.39446 | AD142: 15
B143: REPB42150 | C143: ESTATE WORKS | D143: D | E143: Fencing:Renew or provide new 1.65m tanalised timber vertical board fencing including for taking down remnants of existing fence and posts set in concrete, remove from site to approved tip, and set 125x125mm x 2.65m long softwood posts in concrete at ne 1.80m centres with three 69x44mm softwood rails bolted to posts and 144x20mm vertical boards nailed to rails, softwood gravel board with centre prop (measured per metre run of fencing). | H143: 7.79 | J143: 0171AD | K143: LM | L143: 21 | M143: 93.18 | N143: 1956.78 | P143: =SUMIF('Planned Maint v6.2 CSV File'!A:A,J143,'Planned Maint v6.2 CSV File'!I:I) -> 76.50078 | Q143: 1606.51638 | S143: 76.50078 | T143: 1606.51638 | Z143: 7 | AC143: 7 | AO143: 7
B144: REPB47293 | C144: ESTATE WORKS | D144: D | E144: Chainlink: Renew chainlink fencing 0.9m high on existing posts, including removal of old and remove from site to approved tip, supply and fix new galvanised or plastic coated steel chainlink wire fencing including three 2.50mm diameter galvanised mild steel line wires and all fittings, ties etc. (measured per metre run of fencing). | H144: 7.121 | J144: 0174AA | K144: LM | L144: 10 | M144: 8.39 | N144: 83.9 | P144: =SUMIF('Planned Maint v6.2 CSV File'!A:A,J144,'Planned Maint v6.2 CSV File'!I:I) -> 6.88819 | Q144: 68.8819 | S144: 6.88819 | T144: 68.8819 | AK144: 10
B145: REPB42122 | C145: ESTATE WORKS | D145: D | E145: Gates:Install tanalised softwood two leaved gate ne 2.5sm overall, each leaf comprising two 144x27mm ledges, six 144x20mm vertical boards at 175mm centres and one 144x27mm diagonal brace, including steel strap hinges and hangers fixed to and including precaste concrete posts, galvanised mild steel auto catch, prepare for and decorate, posts set in concrete including all excavation, concrete, backfill and remove waste and debris, reinstate paving, gardens and like as necessary. | H145: 7.163 | J145: 0210BC | K145: NO | L145: 1 | M145: 259.88 | N145: 259.88 | P145: =SUMIF('Planned Maint v6.2 CSV File'!A:A,J145,'Planned Maint v6.2 CSV File'!I:I) -> 213.36148 | Q145: 213.36148 | S145: 213.36148 | T145: 213.36148 | AA145: 1
B146: REPB42150 | C146: ESTATE WORKS | D146: D | E146: Gate Post and Gate:Renew or repair any single fitting to post or timber or metal gate including any gate hinge, gudgeon, band, pivot plate or pivot socket, spring, any post or gate catch or bolt, remove waste and debris (measured per complete fitting). | H146: 7.186 | J146: 0250FA | K146: NO | L146: 1 | M146: 12.05 | N146: 12.05 | P146: =SUMIF('Planned Maint v6.2 CSV File'!A:A,J146,'Planned Maint v6.2 CSV File'!I:I) -> 9.89305 | Q146: 9.89305 | S146: 9.89305 | T146: 9.89305 | Z146: 1
B147: REPB47024 | C147: ESTATE WORKS | D147: D | E147: Wall: Take down one and a half brick wall and remove waste and debris. | H147: 7.19 | J147: 1011AC | K147: SM | L147: 7 | M147: 39.57 | N147: 276.99 | P147: =SUMIF('Planned Maint v6.2 CSV File'!A:A,J147,'Planned Maint v6.2 CSV File'!I:I) -> 28.68825 | Q147: 200.81775 | S147: 28.68825 | T147: 200.81775 | AI147: 4 | AP147: 3
B148: REPB42122 | C148: ESTATE WORKS | D148: D | E148: Wall: Supply and lay new common bricks in one and a half brick wall in cement lime mortar (1:1:6). | H148: 7.199 | J148: 1013AC | K148: SM | L148: 6 | M148: 133.42 | N148: 800.52 | P148: =SUMIF('Planned Maint v6.2 CSV File'!A:A,J148,'Planned Maint v6.2 CSV File'!I:I) -> 96.7295 | Q148: 580.377 | S148: 96.7295 | T148: 580.377 | AA148: 1 | AP148: 5
B149: REPB47024 | C149: ESTATE WORKS | D149: D | E149: Wall: Supply and lay new facing bricks in one brick wall bedded and pointed in cement lime mortar (1:1:6) as the work proceeds. | H149: 7.202 | J149: 1013BB | K149: SM | L149: 6 | M149: 133.12 | N149: 798.72 | P149: =SUMIF('Planned Maint v6.2 CSV File'!A:A,J149,'Planned Maint v6.2 CSV File'!I:I) -> 96.512 | Q149: 579.072 | S149: 96.512 | T149: 579.072 | V149: =IF(ISERROR(VLOOKUP($J149,INDIRECT("'"&V$7&"'!J:J"),1,FALSE)),"",SUMIF(INDIRECT("'"&V$7&"'!J:J"),$J149,INDIRECT("'"&V$7&"'!L:L"))) ->  | AF149: =IF(ISERROR(VLOOKUP($J149,INDIRECT("'"&AF$7&"'!J:J"),1,FALSE)),"",SUMIF(INDIRECT("'"&AF$7&"'!J:J"),$J149,INDIRECT("'"&AF$7&"'!L:L"))) ->  | AI149: 6 | AP149: =IF(ISERROR(VLOOKUP($J149,INDIRECT("'"&AP$7&"'!J:J"),1,FALSE)),"",SUMIF(INDIRECT("'"&AP$7&"'!J:J"),$J149,INDIRECT("'"&AP$7&"'!L:L"))) ->  | AZ149: =IF(ISERROR(VLOOKUP($J149,INDIRECT("'"&AZ$7&"'!J:J"),1,FALSE)),"",SUMIF(INDIRECT("'"&AZ$7&"'!J:J"),$J149,INDIRECT("'"&AZ$7&"'!L:L"))) ->  | BJ149: =IF(ISERROR(VLOOKUP($J149,INDIRECT("'"&BJ$7&"'!J:J"),1,FALSE)),"",SUMIF(INDIRECT("'"&BJ$7&"'!J:J"),$J149,INDIRECT("'"&BJ$7&"'!L:L"))) -> 
B150: REPB47684 | C150: ESTATE WORKS | D150: D | E150: Wall: Demolish as necessary, clean off and clear away, rebuild one and a half brick wall in common bricks, bed and point in cement lime mortar (1:1:6) to match existing and remove waste and debris. | H150: 7.217 | J150: 1015AC | K150: SM | L150: 31 | M150: 169.05 | N150: 5240.55 | P150: =SUMIF('Planned Maint v6.2 CSV File'!A:A,J150,'Planned Maint v6.2 CSV File'!I:I) -> 122.56125 | Q150: 3799.39875 | S150: 122.56125 | T150: 3799.39875 | AM150: 31
B151: REPB47024 | C151: ESTATE WORKS | D151: D | E151: Pier: Demolish as necessary, clean off and clear away, rebuild attached pier in common bricks, one brick wide x half brick projection, bedded and pointed in cement lime mortar (1:1:6) to match existing and remove waste and debris. | H151: 7.236 | J151: 1017AA | K151: LM | L151: 1 | M151: 21.51 | N151: 21.51 | P151: =SUMIF('Planned Maint v6.2 CSV File'!A:A,J151,'Planned Maint v6.2 CSV File'!I:I) -> 15.59475 | Q151: 15.59475 | S151: 15.59475 | T151: 15.59475 | AI151: 1
B152: REPB47293 | C152: ESTATE WORKS | D152: D | E152: Wall: Cut out bricks from face of wall, clean and clear away, lay over 15 No. new facing bricks up to 2sm in area in cement lime mortar (1:1:6), bond, bed and point to match existing and remove waste and debris. | H152: 7.248 | J152: 1019BB | K152: IT | L152: 1 | M152: 114.45 | N152: 114.45 | P152: =SUMIF('Planned Maint v6.2 CSV File'!A:A,J152,'Planned Maint v6.2 CSV File'!I:I) -> 82.97625 | Q152: 82.97625 | S152: 82.97625 | T152: 82.97625 | AK152: 1
B153: REPB14020 | C153: ESTATE WORKS | D153: D | E153: Wall: Rake out existing joints of brickwork min 12mm and repoint brickwork in mortar to match existing and remove waste and debris. | H153: 7.253 | J153: 1021AA | K153: SM | L153: 107 | M153: 20.13 | N153: 2153.91 | P153: =SUMIF('Planned Maint v6.2 CSV File'!A:A,J153,'Planned Maint v6.2 CSV File'!I:I) -> 14.59425 | Q153: 1561.58475 | S153: 14.59425 | T153: 1561.58475 | V153: 2 | W153: 16 | Y153: 8 | AA153: 2 | AB153: 5 | AD153: 6 | AE153: 10 | AF153: 3 | AG153: 2 | AH153: 12 | AI153: 8 | AJ153: 2 | AK153: 20 | AM153: 4 | AN153: 2 | AQ153: 3 | AR153: 2
B154: REPB47660 | C154: ESTATE WORKS | D154: D | E154: Coping: Supply and lay new precast concrete coping ne 300mm wide in section to match existing, bedded and pointed in cement lime mortar (1:1:6) with bonding agent. | H154: 7.3 | J154: 1033CC | K154: LM | L154: 3 | M154: 14.27 | N154: 42.81 | P154: =SUMIF('Planned Maint v6.2 CSV File'!A:A,J154,'Planned Maint v6.2 CSV File'!I:I) -> 10.34575 | Q154: 31.03725 | S154: 10.34575 | T154: 31.03725 | AP154: 3
B155: REPB42122 | C155: FRA WORKS | D155: D | E155: Partition:Supply and erect or renew stud partition comprising ne 50x100mm sole and head plate, noggins and studs fixed with nails or plugged and screwed to walls, and pack out and scribe, 12.5mm butt jointed plasterboard and 3mm plaster skim coat and all labours to both faces. | H155: 180 | J155: 3013AB | K155: Item | L155: 10 | M155: 62.11 | N155: 621.1 | P155: =SUMIF('Planned Maint v6.2 CSV File'!A:A,J155,'Planned Maint v6.2 CSV File'!I:I) -> 55.060515 | Q155: 550.60515 | S155: 55.060515 | T155: 550.60515 | AA155: 1 | AB155: 1 | AD155: 1 | AE155: 1 | AG155: 1 | AI155: 1 | AK155: 1 | AL155: 1 | AP155: 1 | AQ155: 1
B156: REPB47293 | C156: FRA WORKS | D156: D | E156: Door:Renew front door with any size panelled, glazed or partially glazed or similar proprietary high performance GRP door, prefinished, preglazed, and prehung to and including proprietary door frame and cill, including new mortice lock, door furniture, keeps, pair of bolts, cylinder nightlatch and pull, security restraint device, proprietary letter plate, numerals, proprietary weathermould, fix frame and cill to struycture, seal around frame and cill, make good and remove waste and debris. | H156: 11 | J156: 3221CB | K156: Item | L156: 1 | M156: 1212.5 | N156: 1212.5 | P156: =SUMIF('Planned Maint v6.2 CSV File'!A:A,J156,'Planned Maint v6.2 CSV File'!I:I) -> 1074.88125 | Q156: 1074.88125 | S156: 1074.88125 | T156: 1074.88125 | AK156: 1
B157: REPB47715 | C157: FRA WORKS | D157: D | E157: Door:Renew internal door with any size single half-hour fire check glazed door having 3.2mm luan, white Meranti or other approved plywood facing both sides and 9mm hardwood lipping on long edges, including remove existing door and hinges, remove and refit door stops as necessary, fit and hang new door on 1.50 pairs of 100mm steel butt hinges, make good or alter recesses on frame, door complete with all ironmongery, intumescent strips and smoke seals, glass, make good and prepare door for decoration and make good decorations to frame, and remove waste and debris. | H157: 13 | J157: 3300BD | K157: Item | L157: 2 | M157: 180.78 | N157: 361.56 | P157: =SUMIF('Planned Maint v6.2 CSV File'!A:A,J157,'Planned Maint v6.2 CSV File'!I:I) -> 160.26147 | Q157: 320.52294 | S157: 160.26147 | T157: 320.52294 | AQ157: 2
B158: REPB42313 | C158: FRA WORKS | D158: D | E158: Door and Frame:Renew internal door and frincluding remove existing door, hinges and frame, install 32mm door frame with 25x32mm stops, fit and hang new any size FD30S plywood faced fire check flush door on 1.5 pairs of 100mm steel hinges, make good or alter recesses on frame, door complete with all ironmongery, intumescent strips and smoke seals, make good and prepare door and frame for decoration and remove waste and debris. | H158: 189 | J158: 3300DA | K158: Item | L158: 2 | M158: 152.85 | N158: 305.7 | P158: =SUMIF('Planned Maint v6.2 CSV File'!A:A,J158,'Planned Maint v6.2 CSV File'!I:I) -> 135.501525 | Q158: 271.00305 | S158: 135.501525 | T158: 271.00305 | AF158: 1 | AK158: 1
B159: REPB42122 | C159: FRA WORKS | D159: D | E159: Door:Renew internal door with any size single half-hour fire check glazed door having 3.2mm luan, white Meranti or other approved plywood facing both sides and 9mm hardwood lipping on long edges, including remove existing door and hinges, remove and refit door stops as necessary, fit and hang new door on 1.50 pairs of 100mm steel butt hinges, make good or alter recesses on frame, door complete with all ironmongery, intumescent strips and smoke seals, glazed, redecorate to match existing and remove waste and debris. | H159: 13 | J159: 3300FC | K159: Item | L159: 18 | M159: 222.2 | N159: 3999.6 | P159: =SUMIF('Planned Maint v6.2 CSV File'!A:A,J159,'Planned Maint v6.2 CSV File'!I:I) -> 196.9803 | Q159: 3545.6454 | S159: 196.9803 | T159: 3545.6454 | V159: =IF(ISERROR(VLOOKUP($J159,INDIRECT("'"&V$7&"'!J:J"),1,FALSE)),"",SUMIF(INDIRECT("'"&V$7&"'!J:J"),$J159,INDIRECT("'"&V$7&"'!L:L"))) ->  | AA159: 2 | AB159: 2 | AD159: 2 | AE159: 2 | AF159: =IF(ISERROR(VLOOKUP($J159,INDIRECT("'"&AF$7&"'!J:J"),1,FALSE)),"",SUMIF(INDIRECT("'"&AF$7&"'!J:J"),$J159,INDIRECT("'"&AF$7&"'!L:L"))) ->  | AG159: 2 | AI159: 2 | AK159: 2 | AL159: 2 | AP159: =IF(ISERROR(VLOOKUP($J159,INDIRECT("'"&AP$7&"'!J:J"),1,FALSE)),"",SUMIF(INDIRECT("'"&AP$7&"'!J:J"),$J159,INDIRECT("'"&AP$7&"'!L:L"))) -> 2 | AZ159: =IF(ISERROR(VLOOKUP($J159,INDIRECT("'"&AZ$7&"'!J:J"),1,FALSE)),"",SUMIF(INDIRECT("'"&AZ$7&"'!J:J"),$J159,INDIRECT("'"&AZ$7&"'!L:L"))) ->  | BJ159: =IF(ISERROR(VLOOKUP($J159,INDIRECT("'"&BJ$7&"'!J:J"),1,FALSE)),"",SUMIF(INDIRECT("'"&BJ$7&"'!J:J"),$J159,INDIRECT("'"&BJ$7&"'!L:L"))) -> 
B160: REPB42122 | C160: FRA WORKS | D160: D | E160: Intumescent Strip:Renew or supply and fix new 22x4mm intumescent strip, half hour application, with integral cold smoke seal and setting into groove in timber frame or door. | H160: 104 | J160: 3431AC | K160: Item | L160: 25 | M160: 3.44 | N160: 86 | P160: =SUMIF('Planned Maint v6.2 CSV File'!A:A,J160,'Planned Maint v6.2 CSV File'!I:I) -> 3.04956 | Q160: 76.239 | S160: 3.04956 | T160: 76.239 | AA160: 2 | AB160: 2 | AD160: 2 | AE160: 2 | AF160: 2 | AG160: 2 | AJ160: 2 | AK160: 2 | AL160: 2 | AP160: 2 | AQ160: 3 | AR160: 2
B161: REPB42154 | C161: FRA WORKS | D161: D | E161: Closer:Renew or supply and fix Perko type concealed door closer screwed to door and frame, including remove and refix door or door stop as necessary. | H161: 175 | J161: 3905BA | K161: Item | L161: 16 | M161: 9.81 | N161: 156.96 | P161: =SUMIF('Planned Maint v6.2 CSV File'!A:A,J161,'Planned Maint v6.2 CSV File'!I:I) -> 8.696565 | Q161: 139.14504 | S161: 8.696565 | T161: 139.14504 | AB161: 2 | AD161: 2 | AG161: 2 | AJ161: 1 | AK161: 2 | AP161: 2 | AQ161: 3 | AR161: 2
B162: REPB42122 | C162: FRA WORKS | D162: D | E162: Fire Upgrading Coating:Remove all existing defective paint to plastered or rendered wall surfaces back to a solid edge, feather off and repair any defective areas with a high quality filler as necessary, spot prime filled or bare areas with afire upgrading primer, remove any existing graffiti with a graffiti removal system, wash down, rinse, clean off and apply one full coat of fire upgrading primer at a coverage rate of 10sm per litre, apply two full coats of fire upgrading finish at a coverage rate of 10sm per litre. | H162: 27 | J162: 4801AB | K162: Item | L162: 10 | M162: 22.53 | N162: 225.3 | P162: =SUMIF('Planned Maint v6.2 CSV File'!A:A,J162,'Planned Maint v6.2 CSV File'!I:I) -> 19.1505 | Q162: 191.505 | S162: 19.1505 | T162: 191.505 | AA162: 1 | AB162: 1 | AD162: 1 | AE162: 1 | AG162: 1 | AI162: 1 | AK162: 1 | AL162: 1 | AP162: 1 | AQ162: 1
B163: REPB42122 | C163: FRA WORKS | D163: D | E163: Fire Upgrading Coating:Strip off existing multi layer paint coatings to existing plastered or rendered soffits with a proprietary paint stripper, scrape off or remove with a proprietary paint scraper, wash down,rinse, spot prime filled or bare areas with afire upgrading primer, remove any existing graffiti with a graffiti removal system, clean off and apply one full coat of primer at a coverage rate of 10sm per litre, apply one full coats of colourcoat complete with decorative flakes, and apply one full coat of gloss or satin lacquer finish at a coverage rate of 10sm per litre. | H163: 41 | J163: 4804AD | K163: Item | L163: 10 | M163: 29.34 | N163: 293.4 | P163: =SUMIF('Planned Maint v6.2 CSV File'!A:A,J163,'Planned Maint v6.2 CSV File'!I:I) -> 24.939 | Q163: 249.39 | S163: 24.939 | T163: 249.39 | AA163: 1 | AB163: 1 | AD163: 1 | AE163: 1 | AG163: 1 | AI163: 1 | AK163: 1 | AL163: 1 | AP163: 1 | AQ163: 1
B164: REPB47293 | C164: FRA WORKS | D164: D | E164: Fire Upgrading Coating:Remove all existing defective paint to general surfaces of woodwork not exceeding 300mm girth, back to a solid edge, feather off and repair any defective areas with a high quality filler as necessary, spot prime filled or bare areas with afire upgrading primer, remove any existing graffiti with a graffiti removal system, wash down, rinse, clean off and apply one full coat of fire upgrading primer at a coverage rate of 10sm per litre, apply two full coats of fire upgrading finish at a coverage rate of 10sm per litre. | H164: 43 | J164: 4805AB | K164: Item | L164: 3 | M164: 20.4 | N164: 61.2 | P164: =SUMIF('Planned Maint v6.2 CSV File'!A:A,J164,'Planned Maint v6.2 CSV File'!I:I) -> 17.34 | Q164: 52.02 | S164: 17.34 | T164: 52.02 | AK164: 1 | AP164: 1 | AQ164: 1
B165: REPB47293 | C165: FRA WORKS | D165: D | E165: Fire Upgrading Coating:Remove all existing defective paint to general surfaces of timber doors back to a solid edge, feather off and repair any defective areas with a high quality filler as necessary, spot prime filled or bare areas with afire upgrading primer, remove any existing graffiti with a graffiti removal system, wash down, rinse, clean off and apply one full coat of fire upgrading primer at a coverage rate of 10sm per litre, apply two full coats of fire upgrading finish at a coverage rate of 10sm per litre. | H165: 44 | J165: 4805AC | K165: Item | L165: 2 | M165: 35.86 | N165: 71.72 | P165: =SUMIF('Planned Maint v6.2 CSV File'!A:A,J165,'Planned Maint v6.2 CSV File'!I:I) -> 30.481 | Q165: 60.962 | S165: 30.481 | T165: 60.962 | AK165: 1 | AP165: 1
B166: REPB42122 | C166: FRA WORKS | D166: D | E166: Fire Alarm:Install L2 type fire alarm installation complete to BS5839:Part6 1995, control panel, circuits, call points, automatic detectors and sounders, builders work, make good, test, commission, and remove waste and debris. | H166: 93 | J166: 8711GA | K166: Item | L166: 9 | M166: 550 | N166: 4950 | P166: =SUMIF('Planned Maint v6.2 CSV File'!A:A,J166,'Planned Maint v6.2 CSV File'!I:I) -> 440 | Q166: 3960 | S166: 440 | T166: 3960 | AA166: 1 | AB166: 1 | AD166: 1 | AE166: 1 | AG166: 1 | AJ166: 1 | AK166: 1 | AQ166: 1 | AR166: 1
B167: REPB42122 | C167: FRA WORKS | D167: D | E167: Smoke Detector:Renew existing with mains operated optical smoke detector with rechargeable DC battery or condensor back up self contained type to BS 5446 kitemark certified with hush button, including back plate and all necessary connections to existing wiring, test and make good on completion, where interlinked detectors are replaced new detectors must be compatible with existing, and remove waste and debris. | H167: 115 | J167: 8720FA | K167: Item | L167: 28 | M167: 70.11 | N167: 1963.08 | P167: =SUMIF('Planned Maint v6.2 CSV File'!A:A,J167,'Planned Maint v6.2 CSV File'!I:I) -> 56.088 | Q167: 1570.464 | S167: 56.088 | T167: 1570.464 | AA167: 2 | AB167: 2 | AD167: 2 | AE167: 2 | AF167: 2 | AG167: 2 | AI167: 2 | AJ167: 2 | AK167: 3 | AL167: 2 | AP167: 2 | AQ167: 3 | AR167: 2
B168: REPB47293 | C168: FRA WORKS | D168: D | E168: Emergency Lighting:Install emergency lighting installation to block of dwellings or scheme, strip out any existing installation and equipment, supply and install self contained non-maintained emergency uminaries and emergency exit signs, connect by specified cable to local lighting circuit, all builders work and make good all works disturbed, test and commission, and remove waste and debris (Per Dwelling in Scheme) | H168: 126 | J168: 8810XA | K168: Item | L168: 1 | M168: 300 | N168: 300 | P168: =SUMIF('Planned Maint v6.2 CSV File'!A:A,J168,'Planned Maint v6.2 CSV File'!I:I) -> 240 | Q168: 240 | S168: 240 | T168: 240 | AK168: 1
B169: REPB42122 | C169: FRA WORKS | D169: D | E169: Test:Carry out test of domestic installation to occupied property complete comprising continuity, insulation resistance, polarity, earth fault loop impedance and operation of residual current operated device, disconnect, repair and renew as necessary after removal of illegal wiring and components, and provide report and NICEIC/ECA test certificate to the Client’s Representative, and remove waste and debris. | H169: 186 | J169: 8950AA | K169: Item | L169: 13 | M169: 86.88 | N169: =L169*M169 -> 1129.44 | P169: =SUMIF('Planned Maint v6.2 CSV File'!A:A,J169,'Planned Maint v6.2 CSV File'!I:I) -> 69.504 | Q169: =IF(J169="PROV SUM",N169,L169*P169) -> 903.552 | S169: =IF(R169>0,R169,P169) -> 69.504 | T169: =IF(J169="PROV SUM",N169,L169*S169) -> 903.552 | AA169: 1 | AB169: 1 | AD169: 1 | AE169: 1 | AF169: 1 | AG169: 1 | AI169: 1 | AJ169: 1 | AK169: 1 | AL169: 1 | AP169: 1 | AQ169: 1 | AR169: 1
B170: REPB11024 | C170: ENERGY EFFICIENY | D170: D | E170: Insulation:Supply and lay ne 270mm thick insulation quilt to loft area including gain access and moving/replacing contents within loft area in order to undertake work. Item 2270AA | H170: 9.2 | J170: 2270AA | K170: SM | L170: 920.8 | M170: 10.86 | N170: 9999.888 | P170: =SUMIF('Planned Maint v6.2 CSV File'!A:A,J170,'Planned Maint v6.2 CSV File'!I:I) -> 8.688 | Q170: 7999.9104 | S170: 8.688 | T170: 7999.9104 | X170: 46.04 | Z170: 46.04 | AA170: 46.04 | AB170: 46.04 | AC170: 46.04 | AD170: 46.04 | AE170: 46.04 | AF170: 46.04 | AG170: 46.04 | AH170: 46.04 | AI170: 46.04 | AJ170: 46.04 | AK170: 46.04 | AL170: 46.04 | AM170: 46.04 | AN170: 46.04 | AO170: 46.04 | AP170: 46.04 | AQ170: 46.04 | AR170: 46.04
B171: REPB11024 | C171: ENERGY EFFICIENY | D171: D | E171: Contractor to access and undertake survey of loft space in accordance with the Project Brief in order to assess level of current loft insulation. Including submittion of a survey report supported by photographic evidance to CM/PM. Where insulation levels are less then 200mm, Contractor to provide cost proposal to upgrade insulation in accordance with NHF SoR Planned Maintenance Version 6.2. | H171: 9.1 | J171: ADD001 | K171: IT | L171: 20 | N171: 0 | P171: =SUMIF('Planned Maint v6.2 CSV File'!A:A,J171,'Planned Maint v6.2 CSV File'!I:I) -> 0 | Q171: 0 | S171: 0 | T171: 0 | X171: 1 | Z171: 1 | AA171: 1 | AB171: 1 | AC171: 1 | AD171: 1 | AE171: 1 | AF171: 1 | AG171: 1 | AH171: 1 | AI171: 1 | AJ171: 1 | AK171: 1 | AL171: 1 | AM171: 1 | AN171: 1 | AO171: 1 | AP171: 1 | AQ171: 1 | AR171: 1

Sheet 1-44 Denyer House
P1: =SUMIF('Planned Maint v6.2 CSV File'!A:A,J1,'Planned Maint v6.2 CSV File'!I:I) -> 0 | Q1: =IF(J1="PROV SUM",N1,L1*P1) -> 0 | R1: =IF(J1="Prov Sum","",IF(MATCH(J1,'Packet Rate Library'!J:J,0),VLOOKUP(J1,'Packet Rate Library'!J:T,9,FALSE),"")) ->  | S1: =IF(R1>0,R1,P1) ->  | T1: =IF(J1="SC024",N1,IF(ISERROR(S1),"",IF(J1="PROV SUM",N1,L1*S1))) -> 
A4: 1-44 DENYER HOUSE (CONS)
A6: Requirement | B6: REPB14020 | C6: Requirement Type | D6: Rowtype (H=Header, D=Detail) | E6: Description | F6: Works Order Commencement Date | G6: Works Order Completion Date | H6: Specification Ref. Item No.'s | I6: Works Order Delivery Date | J6: SOR Code | K6: SOR Unit | L6: SOR Qty | M6: SOR Cost | N6: Total Cost | P6: Rate (max) | Q6: Cost (max) | R6: Modified price | S6: Tendered rate | T6: Tendered total
B8: REPB14020 | C8: ASBESTOS | D8: H
B9: REPB14020 | C9: ASBESTOS | D9: D | E9: Refurbishment and Demolition Survey to Full Property (with upto 5 Nr samples) , flat or house any size | H9: 1.3 | J9: A003 | K9: Item | L9: 2 | M9: 234 | N9: 468 | P9: =SUMIF('Planned Maint v6.2 CSV File'!A:A,J9,'Planned Maint v6.2 CSV File'!I:I) -> 222.3 | Q9: =IF(J9="PROV SUM",N9,L9*P9) -> 444.6 | R9: =IF(J9="Prov Sum","",IF(MATCH(J9,'Packet Rate Library'!J:J,0),VLOOKUP(J9,'Packet Rate Library'!J:T,9,FALSE),"")) -> 0 | S9: =IF(R9>0,R9,P9) -> 222.3 | T9: =IF(J9="SC024",N9,IF(ISERROR(S9),"",IF(J9="PROV SUM",N9,L9*S9))) -> 444.6
B10: REPB14020 | C10: COMMUNAL WORKS | D10: H
B11: REPB14020 | C11: COMMUNAL WORKS | D11: D | E11: Hall: Thoroughly clean down all wall and ceiling surfaces to common areas to remove dirt, grease and surface containments, scrape and remove all loose and defective coatings, prime bare areas with one coat of fire retardant primer and apply two coats of Class ‘O’ fire retardant matt paint, prepare and apply two coats of polyurethane lacquer or one undercoat and one gloss coat to all previously decorated timber surfaces to lobby, hall or corridor over 3.00sm ceiling area complete (classified as a single area). | H11: 5.1 | J11: 4540AC | K11: IT | L11: 2 | M11: 480 | N11: 960 | P11: =SUMIF('Planned Maint v6.2 CSV File'!A:A,J11,'Planned Maint v6.2 CSV File'!I:I) -> 408 | Q11: =IF(J11="PROV SUM",N11,L11*P11) -> 816 | R11: =IF(J11="Prov Sum","",IF(MATCH(J11,'Packet Rate Library'!J:J,0),VLOOKUP(J11,'Packet Rate Library'!J:T,9,FALSE),"")) -> 0 | S11: =IF(R11>0,R11,P11) -> 408 | T11: =IF(J11="SC024",N11,IF(ISERROR(S11),"",IF(J11="PROV SUM",N11,L11*S11))) -> 816
B12: REPB14020 | C12: COMMUNAL WORKS | D12: D | E12: PROVISIONAL SUM: Replace or install post boxes with new vandal-resistant lockable post boxes. | H12: 5.386 | J12: PROV SUM | K12: SUM | L12: 1 | M12: 200 | N12: 200 | P12: =SUMIF('Planned Maint v6.2 CSV File'!A:A,J12,'Planned Maint v6.2 CSV File'!I:I) -> 0 | Q12: =IF(J12="PROV SUM",N12,L12*P12) -> 200 | R12: =IF(J12="Prov Sum","",IF(MATCH(J12,'Packet Rate Library'!J:J,0),VLOOKUP(J12,'Packet Rate Library'!J:T,9,FALSE),"")) ->  | S12: =IF(R12>0,R12,P12) ->  | T12: =IF(J12="SC024",N12,IF(ISERROR(S12),"",IF(J12="PROV SUM",N12,L12*S12))) -> 200
B13: REPB14020 | C13: COMMUNAL WORKS | D13: D | E13: PROVISIONAL SUM: Secure storage area for bicycles (bike stands). | H13: 5.387 | J13: PROV SUM | K13: SUM | L13: 1 | M13: 500 | N13: 500 | P13: =SUMIF('Planned Maint v6.2 CSV File'!A:A,J13,'Planned Maint v6.2 CSV File'!I:I) -> 0 | Q13: =IF(J13="PROV SUM",N13,L13*P13) -> 500 | R13: =IF(J13="Prov Sum","",IF(MATCH(J13,'Packet Rate Library'!J:J,0),VLOOKUP(J13,'Packet Rate Library'!J:T,9,FALSE),"")) ->  | S13: =IF(R13>0,R13,P13) ->  | T13: =IF(J13="SC024",N13,IF(ISERROR(S13),"",IF(J13="PROV SUM",N13,L13*S13))) -> 500
B14: REPB14020 | C14: EXTREP | D14: H
B15: REPB14020 | C15: EXTREP | D15: D | E15: Cills: Prepare, clean off all dust and debris, fill in or resurface cracks or spalled surfaces of concrete with epoxy mortar in surfaces of cills, not exceeding 300mm girth, repair over 5 and ne 10mm deep, and remove waste and debris. | H15: 6.161 | J15: 1460AF | K15: LM | L15: 100 | M15: 38.25 | N15: 3825 | P15: =SUMIF('Planned Maint v6.2 CSV File'!A:A,J15,'Planned Maint v6.2 CSV File'!I:I) -> 27.73125 | Q15: =IF(J15="PROV SUM",N15,L15*P15) -> 2773.125 | R15: =IF(J15="Prov Sum","",IF(MATCH(J15,'Packet Rate Library'!J:J,0),VLOOKUP(J15,'Packet Rate Library'!J:T,9,FALSE),"")) -> 0 | S15: =IF(R15>0,R15,P15) -> 27.73125 | T15: =IF(J15="SC024",N15,IF(ISERROR(S15),"",IF(J15="PROV SUM",N15,L15*S15))) -> 2773.125
B16: REPB14020 | C16: EXTREP | D16: D | E16: Walls:Wash down, fill in cracks and holes, sand down and apply two coats of smooth or textured masonry paint to rendered or concrete walls. | H16: 6.181 | J16: 4356AC | K16: SM | L16: 28 | M16: 9.55 | N16: 267.4 | P16: =SUMIF('Planned Maint v6.2 CSV File'!A:A,J16,'Planned Maint v6.2 CSV File'!I:I) -> 8.1175 | Q16: =IF(J16="PROV SUM",N16,L16*P16) -> 227.29 | R16: =IF(J16="Prov Sum","",IF(MATCH(J16,'Packet Rate Library'!J:J,0),VLOOKUP(J16,'Packet Rate Library'!J:T,9,FALSE),"")) -> 0 | S16: =IF(R16>0,R16,P16) -> 8.1175 | T16: =IF(J16="SC024",N16,IF(ISERROR(S16),"",IF(J16="PROV SUM",N16,L16*S16))) -> 227.29
B17: REPB14020 | C17: EXTREP | D17: D | E17: Gates: Wire brush, prepare for, and apply one coat primer, one undercoat, two coats of gloss paint to both sides of any size type single metal gate including all edges and all surfaces of posts. | H17: 6.203 | J17: 4362DA | K17: IT | L17: 2 | M17: 21.61 | N17: 43.22 | P17: =SUMIF('Planned Maint v6.2 CSV File'!A:A,J17,'Planned Maint v6.2 CSV File'!I:I) -> 18.3685 | Q17: =IF(J17="PROV SUM",N17,L17*P17) -> 36.737 | R17: =IF(J17="Prov Sum","",IF(MATCH(J17,'Packet Rate Library'!J:J,0),VLOOKUP(J17,'Packet Rate Library'!J:T,9,FALSE),"")) -> 0 | S17: =IF(R17>0,R17,P17) -> 18.3685 | T17: =IF(J17="SC024",N17,IF(ISERROR(S17),"",IF(J17="PROV SUM",N17,L17*S17))) -> 36.737
B18: REPB14020 | C18: EXTREP | D18: D | E18: Balustrading: Wire brush, prepare for and apply one undercoat and two coats of gloss paint on existing painted surfaces ornamental metal balustrading, railings or gates (measured both sides). | H18: 6.215 | J18: 4363EA | K18: SM | L18: 425 | M18: 16.08 | N18: 6834 | P18: =SUMIF('Planned Maint v6.2 CSV File'!A:A,J18,'Planned Maint v6.2 CSV File'!I:I) -> 13.668 | Q18: =IF(J18="PROV SUM",N18,L18*P18) -> 5808.9 | R18: =IF(J18="Prov Sum","",IF(MATCH(J18,'Packet Rate Library'!J:J,0),VLOOKUP(J18,'Packet Rate Library'!J:T,9,FALSE),"")) -> 0 | S18: =IF(R18>0,R18,P18) -> 13.668 | T18: =IF(J18="SC024",N18,IF(ISERROR(S18),"",IF(J18="PROV SUM",N18,L18*S18))) -> 5808.9
B19: REPB14020 | C19: EXTREP | D19: D | E19: Pipework: Wire brush, prepare for and apply one undercoat and one coat of gloss paint to existing painted surfaces of external pipework ne 300mm girth including brackets. | H19: 6.228 | J19: 4364GA | K19: LM | L19: 192 | M19: 1.21 | N19: 232.32 | P19: =SUMIF('Planned Maint v6.2 CSV File'!A:A,J19,'Planned Maint v6.2 CSV File'!I:I) -> 1.0285 | Q19: =IF(J19="PROV SUM",N19,L19*P19) -> 197.472 | R19: =IF(J19="Prov Sum","",IF(MATCH(J19,'Packet Rate Library'!J:J,0),VLOOKUP(J19,'Packet Rate Library'!J:T,9,FALSE),"")) -> 0 | S19: =IF(R19>0,R19,P19) -> 1.0285 | T19: =IF(J19="SC024",N19,IF(ISERROR(S19),"",IF(J19="PROV SUM",N19,L19*S19))) -> 197.472
B20: REPB14020 | C20: ROOF | D20: H
B21: REPB14020 | C21: ROOF | D21: D | E21: Tile: Overhaul clay plain tile roof, refix loose tiles, renew broken or missing tiles to match existing, redress, rewedge and repoint all flashings, aprons, chimney gutters etc., cut out and make good cement weather fillets, repoint in cement mortar (1:3) to all hips, ridges and verges, make good, clear away debris. | H21: 3.88 | J21: 2013EA | K21: SM | L21: 580 | M21: 30.56 | N21: 17724.8 | P21: =SUMIF('Planned Maint v6.2 CSV File'!A:A,J21,'Planned Maint v6.2 CSV File'!I:I) -> 24.448 | Q21: =IF(J21="PROV SUM",N21,L21*P21) -> 14179.84 | R21: =IF(J21="Prov Sum","",IF(MATCH(J21,'Packet Rate Library'!J:J,0),VLOOKUP(J21,'Packet Rate Library'!J:T,9,FALSE),"")) -> 0 | S21: =IF(R21>0,R21,P21) -> 24.448 | T21: =IF(J21="SC024",N21,IF(ISERROR(S21),"",IF(J21="PROV SUM",N21,L21*S21))) -> 14179.84
B22: REPB14020 | C22: ROOF | D22: D | E22: Moss: Carefully remove moss/lichen growth on roof covering of any kind and dispose of debris off site, reistate all disturbed surfaces, replace broken tiles, slates and the like, thoroughly clean out valleys, gutters, downpipes, hoppers etc, prepare and treat the complete roof area with a diluted fungicide solution AKZO or other equal and approved applied strictly in accordance with the manufacturer’s instructions, thoroughly clean out all gutters and the like to remove all chemical residue arising upon completion of the works, and remove waste and debris. | H22: 3.18 | J22: 2115AA | K22: SM | L22: 580 | M22: 10.17 | N22: 5898.6 | P22: =SUMIF('Planned Maint v6.2 CSV File'!A:A,J22,'Planned Maint v6.2 CSV File'!I:I) -> 8.136 | Q22: =IF(J22="PROV SUM",N22,L22*P22) -> 4718.88 | R22: =IF(J22="Prov Sum","",IF(MATCH(J22,'Packet Rate Library'!J:J,0),VLOOKUP(J22,'Packet Rate Library'!J:T,9,FALSE),"")) -> 0 | S22: =IF(R22>0,R22,P22) -> 8.136 | T22: =IF(J22="SC024",N22,IF(ISERROR(S22),"",IF(J22="PROV SUM",N22,L22*S22))) -> 4718.88
B23: REPB14020 | C23: WINDOWS | D23: H
B24: REPB14020 | C24: WINDOWS | D24: D | E24: Double Glazed Unit: Reglaze unit upto 1.00sm, hermatically sealed with 4mm obscure low emissity (Low E) glass flush edge unit, including remove beads etc. hack out glass and glaze new unit to wood, metal or PVCu frames. | H24: 4.184 | J24: 5501AC | K24: NO | L24: 2 | M24: 81.08 | N24: 162.16 | P24: =SUMIF('Planned Maint v6.2 CSV File'!A:A,J24,'Planned Maint v6.2 CSV File'!I:I) -> 66.599112 | Q24: =IF(J24="PROV SUM",N24,L24*P24) -> 133.198224 | R24: =IF(J24="Prov Sum","",IF(MATCH(J24,'Packet Rate Library'!J:J,0),VLOOKUP(J24,'Packet Rate Library'!J:T,9,FALSE),"")) -> 0 | S24: =IF(R24>0,R24,P24) -> 66.599112 | T24: =IF(J24="SC024",N24,IF(ISERROR(S24),"",IF(J24="PROV SUM",N24,L24*S24))) -> 133.198224
B25: REPB14020 | C25: WINDOWS | D25: D | E25: PROVISIONAL SUM: Windows Pvcu: Washdown windows at rear and flank elevations (No 175). | H25: 4.293 | J25: PROV SUM | K25: SUM | L25: 1 | M25: 1500 | N25: 1500 | P25: =SUMIF('Planned Maint v6.2 CSV File'!A:A,J25,'Planned Maint v6.2 CSV File'!I:I) -> 0 | Q25: =IF(J25="PROV SUM",N25,L25*P25) -> 1500 | R25: =IF(J25="Prov Sum","",IF(MATCH(J25,'Packet Rate Library'!J:J,0),VLOOKUP(J25,'Packet Rate Library'!J:T,9,FALSE),"")) ->  | S25: =IF(R25>0,R25,P25) ->  | T25: =IF(J25="SC024",N25,IF(ISERROR(S25),"",IF(J25="PROV SUM",N25,L25*S25))) -> 1500
B26: REPB14020 | C26: SCAFFOLD | D26: H
B27: REPB14020 | C27: SCAFFOLD | D27: D | E27: Standard Scaffold item: erect; dismantle; basic independent tied working scaffolding; 5 boards wide, including hire period; completely accessible; debris netting to all elevations; double boarded and polythene included as necessary, any fan(s) included as required; rope plus wheel for lifting operations; 3rd handrail included whenever necessary; as per applicable regulations (applies to up to 5 storeys). Measured up to second handrail and by the middle of the scaffold (equidistant from the inside/outside face) including design when required. Rate to include for 12 week hire | H27: 2.1 | J27: SC001 | K27: M2 | L27: 8850 | M27: 12.92 | N27: 114342 | P27: =SUMIF('Planned Maint v6.2 CSV File'!A:A,J27,'Planned Maint v6.2 CSV File'!I:I) -> 16.4084 | Q27: =IF(J27="PROV SUM",N27,L27*P27) -> 145214.34 | R27: =IF(J27="Prov Sum","",IF(MATCH(J27,'Packet Rate Library'!J:J,0),VLOOKUP(J27,'Packet Rate Library'!J:T,9,FALSE),"")) -> 0 | S27: =IF(R27>0,R27,P27) -> 16.4084 | T27: =IF(J27="SC024",N27,IF(ISERROR(S27),"",IF(J27="PROV SUM",N27,L27*S27))) -> 145214.34
B28: REPB14020 | C28: SCAFFOLD | D28: D | E28: Scaffold alarm - 1 x sounder, 2 x PIR 1 X key pad (Divided by Number of properties if continuous scaffolds) | H28: 2.5 | J28: SC005 | K28: unit | L28: 1 | M28: 420 | N28: 420 | P28: =SUMIF('Planned Maint v6.2 CSV File'!A:A,J28,'Planned Maint v6.2 CSV File'!I:I) -> 533.4 | Q28: 533.4 | R28: =IF(J28="Prov Sum","",IF(MATCH(J28,'Packet Rate Library'!J:J,0),VLOOKUP(J28,'Packet Rate Library'!J:T,9,FALSE),"")) -> 0 | S28: 533.4 | T28: 533.4
B29: REPB14020 | C29: SCAFFOLD | D29: D | E29: E/O for additional PIRS | H29: 2.6 | J29: SC007 | K29: unit | L29: 3 | M29: 50 | N29: 150 | P29: =SUMIF('Planned Maint v6.2 CSV File'!A:A,J29,'Planned Maint v6.2 CSV File'!I:I) -> 63.5 | Q29: 190.5 | R29: =IF(J29="Prov Sum","",IF(MATCH(J29,'Packet Rate Library'!J:J,0),VLOOKUP(J29,'Packet Rate Library'!J:T,9,FALSE),"")) -> 0 | S29: 63.5 | T29: 190.5
B30: REPB14020 | C30: SCAFFOLD | D30: D | E30: Satellite Dish, reposition | H30: 2.22 | J30: SC022 | K30: Nr | L30: 14 | M30: 82.5 | N30: 1155 | P30: =SUMIF('Planned Maint v6.2 CSV File'!A:A,J30,'Planned Maint v6.2 CSV File'!I:I) -> 104.775 | Q30: 1466.85 | R30: =IF(J30="Prov Sum","",IF(MATCH(J30,'Packet Rate Library'!J:J,0),VLOOKUP(J30,'Packet Rate Library'!J:T,9,FALSE),"")) -> 0 | S30: 104.775 | T30: 1466.85
B31: REPB14020 | C31: SCAFFOLD | D31: D | E31: supply cherry picker per day incl delivery and driver | H31: 2.3 | J31: SC030 | L31: 1 | M31: 695 | N31: 695 | P31: =SUMIF('Planned Maint v6.2 CSV File'!A:A,J31,'Planned Maint v6.2 CSV File'!I:I) -> 882.65 | Q31: 882.65 | R31: =IF(J31="Prov Sum","",IF(MATCH(J31,'Packet Rate Library'!J:J,0),VLOOKUP(J31,'Packet Rate Library'!J:T,9,FALSE),"")) -> 0 | S31: 882.65 | T31: 882.65
B32: REPB14020 | C32: SCAFFOLD | D32: D | E32: Additional Hire if required - % per week of total scaffolding costs. This is to be applied in the event an agreed programme exceeding the duration set out above. An example would be large low level blocks of 4 storeys requiring a large programme duration | J32: SC024 | K32: unit | M32: 0.0483 | N32: =VLOOKUP(B32,'Project Overheads & Scaffold'!$W:$AI,13,FALSE) -> 0 | P32: =SUMIF('Planned Maint v6.2 CSV File'!A:A,J32,'Planned Maint v6.2 CSV File'!I:I) -> 0.0483 | Q32: 0 | R32: =IF(J32="Prov Sum","",IF(MATCH(J32,'Packet Rate Library'!J:J,0),VLOOKUP(J32,'Packet Rate Library'!J:T,9,FALSE),"")) ->  | T32: 0
B33: REPB14020 | C33: ESTATE WORKS | D33: H
B34: REPB14020 | C34: ESTATE WORKS | D34: D | E34: Wall: Rake out existing joints of brickwork min 12mm and repoint brickwork in mortar to match existing and remove waste and debris. | H34: 7.253 | J34: 1021AA | K34: SM | L34: 2 | M34: 20.13 | N34: 40.26 | P34: =SUMIF('Planned Maint v6.2 CSV File'!A:A,J34,'Planned Maint v6.2 CSV File'!I:I) -> 14.59425 | Q34: =IF(J34="PROV SUM",N34,L34*P34) -> 29.1885 | R34: =IF(J34="Prov Sum","",IF(MATCH(J34,'Packet Rate Library'!J:J,0),VLOOKUP(J34,'Packet Rate Library'!J:T,9,FALSE),"")) -> 0 | S34: =IF(R34>0,R34,P34) -> 14.59425 | T34: =IF(J34="SC024",N34,IF(ISERROR(S34),"",IF(J34="PROV SUM",N34,L34*S34))) -> 29.1885
B35: REPB14020 | C35: ESTATE WORKS | D35: D | E35: PROVISIONAL SUM: Renew gates to external sheds (NO 35). | H35: 7.316 | J35: PROV SUM | K35: SUM | L35: 1 | M35: 1800 | N35: 1800 | P35: =SUMIF('Planned Maint v6.2 CSV File'!A:A,J35,'Planned Maint v6.2 CSV File'!I:I) -> 0 | Q35: =IF(J35="PROV SUM",N35,L35*P35) -> 1800 | R35: =IF(J35="Prov Sum","",IF(MATCH(J35,'Packet Rate Library'!J:J,0),VLOOKUP(J35,'Packet Rate Library'!J:T,9,FALSE),"")) ->  | S35: =IF(R35>0,R35,P35) ->  | T35: =IF(J35="SC024",N35,IF(ISERROR(S35),"",IF(J35="PROV SUM",N35,L35*S35))) -> 1800

Sheet 1-10 Lissenden Mansions
P1: =SUMIF('Planned Maint v6.2 CSV File'!A:A,J1,'Planned Maint v6.2 CSV File'!I:I) -> 0 | Q1: =IF(J1="PROV SUM",N1,L1*P1) -> 0 | R1: =IF(J1="Prov Sum","",IF(MATCH(J1,'Packet Rate Library'!J:J,0),VLOOKUP(J1,'Packet Rate Library'!J:T,9,FALSE),"")) ->  | S1: =IF(R1>0,R1,P1) ->  | T1: =IF(J1="SC024",N1,IF(ISERROR(S1),"",IF(J1="PROV SUM",N1,L1*S1))) -> 
A4: 1-10 LISSENDEN MANSIONS
A6: Requirement | B6: REPB04223 | C6: Requirement Type | D6: Rowtype (H=Header, D=Detail) | E6: Description | F6: Works Order Commencement Date | G6: Works Order Completion Date | H6: Specification Ref. Item No.'s | I6: Works Order Delivery Date | J6: SOR Code | K6: SOR Unit | L6: SOR Qty | M6: SOR Cost | N6: Total Cost | P6: Rate (max) | Q6: Cost (max) | R6: Modified price | S6: Tendered rate | T6: Tendered total
B8: REPB04223 | C8: ASBESTOS | D8: H
B9: REPB04223 | C9: ASBESTOS | D9: D | E9: Refurbishment and Demolition Survey to Full Property (with upto 5 Nr samples) , flat or house any size | H9: 1.3 | J9: A003 | K9: Item | L9: 2 | M9: 234 | N9: 468 | P9: =SUMIF('Planned Maint v6.2 CSV File'!A:A,J9,'Planned Maint v6.2 CSV File'!I:I) -> 222.3 | Q9: =IF(J9="PROV SUM",N9,L9*P9) -> 444.6 | R9: =IF(J9="Prov Sum","",IF(MATCH(J9,'Packet Rate Library'!J:J,0),VLOOKUP(J9,'Packet Rate Library'!J:T,9,FALSE),"")) -> 0 | S9: =IF(R9>0,R9,P9) -> 222.3 | T9: =IF(J9="SC024",N9,IF(ISERROR(S9),"",IF(J9="PROV SUM",N9,L9*S9))) -> 444.6
B10: REPB04223 | C10: COMMUNAL WORKS | D10: H
B11: REPB04223 | C11: COMMUNAL WORKS | D11: D | E11: PROVISIONAL SUM: Replace or install post boxes with new vandal-resistant lockable post boxes. | H11: 5.386 | J11: PROV SUM | K11: SUM | L11: 1 | M11: 100 | N11: 100 | P11: =SUMIF('Planned Maint v6.2 CSV File'!A:A,J11,'Planned Maint v6.2 CSV File'!I:I) -> 0 | Q11: =IF(J11="PROV SUM",N11,L11*P11) -> 100 | R11: =IF(J11="Prov Sum","",IF(MATCH(J11,'Packet Rate Library'!J:J,0),VLOOKUP(J11,'Packet Rate Library'!J:T,9,FALSE),"")) ->  | S11: =IF(R11>0,R11,P11) ->  | T11: =IF(J11="SC024",N11,IF(ISERROR(S11),"",IF(J11="PROV SUM",N11,L11*S11))) -> 100
B12: REPB04223 | C12: COMMUNAL WORKS | D12: D | E12: PROVISIONAL SUM: Secure storage area for bicycles (bike stands). | H12: 5.387 | J12: PROV SUM | K12: SUM | L12: 1 | M12: 500 | N12: 500 | P12: =SUMIF('Planned Maint v6.2 CSV File'!A:A,J12,'Planned Maint v6.2 CSV File'!I:I) -> 0 | Q12: =IF(J12="PROV SUM",N12,L12*P12) -> 500 | R12: =IF(J12="Prov Sum","",IF(MATCH(J12,'Packet Rate Library'!J:J,0),VLOOKUP(J12,'Packet Rate Library'!J:T,9,FALSE),"")) ->  | S12: =IF(R12>0,R12,P12) ->  | T12: =IF(J12="SC024",N12,IF(ISERROR(S12),"",IF(J12="PROV SUM",N12,L12*S12))) -> 500
B13: REPB04223 | C13: EXTREP | D13: H
B14: REPB04223 | C14: EXTREP | D14: D | E14: Fracture: Remove any applied finish and cut out bricks as necessary to either side of fracture, one face only, stitch in new bricks, bed and point to match existing in cement lime mortar (1:1:6), and make good any applied finishes, and remove waste and debris (measured over mean general line of fracture). | H14: 6.82 | J14: 1019AA | K14: LM | L14: 3 | M14: 44.12 | N14: 132.36 | P14: =SUMIF('Planned Maint v6.2 CSV File'!A:A,J14,'Planned Maint v6.2 CSV File'!I:I) -> 31.987 | Q14: =IF(J14="PROV SUM",N14,L14*P14) -> 95.961 | R14: =IF(J14="Prov Sum","",IF(MATCH(J14,'Packet Rate Library'!J:J,0),VLOOKUP(J14,'Packet Rate Library'!J:T,9,FALSE),"")) -> 0 | S14: =IF(R14>0,R14,P14) -> 31.987 | T14: =IF(J14="SC024",N14,IF(ISERROR(S14),"",IF(J14="PROV SUM",N14,L14*S14))) -> 95.961
B15: REPB04223 | C15: EXTREP | D15: D | E15: Wall: Cut out bricks from face of wall, clean and clear away, lay upto 15 No. new facing bricks in cement lime mortar (1:1:6), bond, bed and point to match existing and remove waste and debris. | H15: 6.85 | J15: 1019BA | K15: IT | L15: 12 | M15: 21.92 | N15: 263.04 | P15: =SUMIF('Planned Maint v6.2 CSV File'!A:A,J15,'Planned Maint v6.2 CSV File'!I:I) -> 15.892 | Q15: 190.704 | R15: =IF(J15="Prov Sum","",IF(MATCH(J15,'Packet Rate Library'!J:J,0),VLOOKUP(J15,'Packet Rate Library'!J:T,9,FALSE),"")) -> 0 | S15: 15.892 | T15: 190.704
B16: REPB04223 | C16: EXTREP | D16: D | E16: Wall: Rake out existing joints of brickwork min 12mm and repoint brickwork in mortar to match existing and remove waste and debris. | H16: 6.91 | J16: 1021AA | K16: SM | L16: 16 | M16: 20.13 | N16: 322.08 | P16: =SUMIF('Planned Maint v6.2 CSV File'!A:A,J16,'Planned Maint v6.2 CSV File'!I:I) -> 14.59425 | Q16: 233.508 | R16: =IF(J16="Prov Sum","",IF(MATCH(J16,'Packet Rate Library'!J:J,0),VLOOKUP(J16,'Packet Rate Library'!J:T,9,FALSE),"")) -> 0 | S16: 14.59425 | T16: 233.508
B17: REPB04223 | C17: EXTREP | D17: D | E17: Cill: Hack off defective area of concrete cill clean and treat any exposed reinforcement, drill into cill and insert 6mm diameter reinforcing bars at 150mm centres, apply bonding agent and reform cill with fine concrete to match existing profiles including all necessary formwork, make good to structure and all finishes and fillets and remove waste and debris. | H17: 6.116 | J17: 1031BA | K17: NO | L17: 12 | M17: 38.74 | N17: 464.88 | P17: =SUMIF('Planned Maint v6.2 CSV File'!A:A,J17,'Planned Maint v6.2 CSV File'!I:I) -> 28.0865 | Q17: 337.038 | R17: =IF(J17="Prov Sum","",IF(MATCH(J17,'Packet Rate Library'!J:J,0),VLOOKUP(J17,'Packet Rate Library'!J:T,9,FALSE),"")) -> 0 | S17: 28.0865 | T17: 337.038
B18: REPB04223 | C18: EXTREP | D18: D | E18: Walls: Wash down, fill in cracks and holes, sand down and apply one coat of stabilising solution and two coats of smooth or textured masonry paint to brickwork surfaces of walls. | H18: 6.186 | J18: 4356BD | K18: SM | L18: 315 | M18: 11.63 | N18: 3663.45 | P18: =SUMIF('Planned Maint v6.2 CSV File'!A:A,J18,'Planned Maint v6.2 CSV File'!I:I) -> 9.8855 | Q18: 3113.9325 | R18: =IF(J18="Prov Sum","",IF(MATCH(J18,'Packet Rate Library'!J:J,0),VLOOKUP(J18,'Packet Rate Library'!J:T,9,FALSE),"")) -> 0 | S18: 9.8855 | T18: 3113.9325
B19: REPB04223 | C19: EXTREP | D19: D | E19: Soffit: Wash down, fill in cracks and holes, sand smooth and apply one coat of sealer and two coats of smooth or textured masonry paint to rendered or concrete soffits. | H19: 6.188 | J19: 4356CB | K19: SM | L19: 12 | M19: 9.82 | N19: 117.84 | P19: =SUMIF('Planned Maint v6.2 CSV File'!A:A,J19,'Planned Maint v6.2 CSV File'!I:I) -> 8.347 | Q19: 100.164 | R19: =IF(J19="Prov Sum","",IF(MATCH(J19,'Packet Rate Library'!J:J,0),VLOOKUP(J19,'Packet Rate Library'!J:T,9,FALSE),"")) -> 0 | S19: 8.347 | T19: 100.164
B20: REPB04223 | C20: EXTREP | D20: D | E20: Balustrading: Wire brush, prepare for and apply one undercoat, one coat of gloss paint on existing painted surfaces of ornamental metal balustrading, railings or gates (measured both sides). | H20: 6.225 | J20: 4364DA | K20: SM | L20: 12 | M20: 11.66 | N20: 139.92 | P20: =SUMIF('Planned Maint v6.2 CSV File'!A:A,J20,'Planned Maint v6.2 CSV File'!I:I) -> 9.911 | Q20: 118.932 | R20: =IF(J20="Prov Sum","",IF(MATCH(J20,'Packet Rate Library'!J:J,0),VLOOKUP(J20,'Packet Rate Library'!J:T,9,FALSE),"")) -> 0 | S20: 9.911 | T20: 118.932
B21: REPB04223 | C21: EXTREP | D21: D | E21: Window:Rub down, prepare and apply one coat of primer, one undercoat and two coats of gloss paint on surfaces of wooden windowsl (one side and edges). | H21: 6.236 | J21: 4380BA | K21: SM | L21: 177 | M21: 25.87 | N21: 4578.99 | P21: =SUMIF('Planned Maint v6.2 CSV File'!A:A,J21,'Planned Maint v6.2 CSV File'!I:I) -> 21.9895 | Q21: 3892.1415 | R21: =IF(J21="Prov Sum","",IF(MATCH(J21,'Packet Rate Library'!J:J,0),VLOOKUP(J21,'Packet Rate Library'!J:T,9,FALSE),"")) -> 0 | S21: 21.9895 | T21: 3892.1415
B22: REPB04223 | C22: EXTREP | D22: D | E22: Frame:Rub down, prepare and apply one coat of primer, one undercoat and two coats of gloss paint on timber frame ne 300mm girth. | H22: 6.237 | J22: 4380CA | K22: LM | L22: 50 | M22: 6.28 | N22: 314 | P22: =SUMIF('Planned Maint v6.2 CSV File'!A:A,J22,'Planned Maint v6.2 CSV File'!I:I) -> 5.338 | Q22: 266.9 | R22: =IF(J22="Prov Sum","",IF(MATCH(J22,'Packet Rate Library'!J:J,0),VLOOKUP(J22,'Packet Rate Library'!J:T,9,FALSE),"")) -> 0 | S22: 5.338 | T22: 266.9
B23: REPB04223 | C23: EXTREP | D23: D | E23: Door:Rub down, prepare for and apply one coat of primer, one undercoat and two coats of gloss paint to all surfaces of any size or type of single glazed timber door. (one sides and edges). | H23: 6.238 | J23: 4380DA | K23: IT | L23: 9 | M23: 20.71 | N23: 186.39 | P23: =SUMIF('Planned Maint v6.2 CSV File'!A:A,J23,'Planned Maint v6.2 CSV File'!I:I) -> 17.6035 | Q23: 158.4315 | R23: =IF(J23="Prov Sum","",IF(MATCH(J23,'Packet Rate Library'!J:J,0),VLOOKUP(J23,'Packet Rate Library'!J:T,9,FALSE),"")) -> 0 | S23: 17.6035 | T23: 158.4315
B24: REPB04223 | C24: EXTREP | D24: D | E24: Gates: Rub down, prepare for, and apply one undercoat, two coats of gloss paint on existing painted surfaces of gates and posts (measured both sides). | H24: 6.258 | J24: 4381FA | K24: SM | L24: 2 | M24: 12.41 | N24: 24.82 | P24: =SUMIF('Planned Maint v6.2 CSV File'!A:A,J24,'Planned Maint v6.2 CSV File'!I:I) -> 10.5485 | Q24: 21.097 | R24: =IF(J24="Prov Sum","",IF(MATCH(J24,'Packet Rate Library'!J:J,0),VLOOKUP(J24,'Packet Rate Library'!J:T,9,FALSE),"")) -> 0 | S24: 10.5485 | T24: 21.097
B25: REPB04223 | C25: EXTREP | D25: D | E25: Fascias, soffits, Bargeboards and the like:Rub down, prepare for, and apply one undercoat, two coats of gloss paint on existing painted surfaces of facias, soffits, bargeboards and the like ne 300mm girth. | H25: 6.26 | J25: 4381HB | K25: LM | L25: 12 | M25: 3.74 | N25: 44.88 | P25: =SUMIF('Planned Maint v6.2 CSV File'!A:A,J25,'Planned Maint v6.2 CSV File'!I:I) -> 3.179 | Q25: 38.148 | R25: =IF(J25="Prov Sum","",IF(MATCH(J25,'Packet Rate Library'!J:J,0),VLOOKUP(J25,'Packet Rate Library'!J:T,9,FALSE),"")) -> 0 | S25: 3.179 | T25: 38.148
B26: REPB04223 | C26: EXTREP | D26: D | E26: PROVISIONAL SUM: S/F pull handle to side gates. | H26: 6.399 | J26: PROV SUM | K26: SUM | L26: 1 | M26: 50 | N26: 50 | P26: =SUMIF('Planned Maint v6.2 CSV File'!A:A,J26,'Planned Maint v6.2 CSV File'!I:I) -> 0 | Q26: 50 | R26: =IF(J26="Prov Sum","",IF(MATCH(J26,'Packet Rate Library'!J:J,0),VLOOKUP(J26,'Packet Rate Library'!J:T,9,FALSE),"")) ->  | T26: 50
B27: REPB04223 | C27: ROOF | D27: H
B28: REPB04223 | C28: ROOF | D28: D | E28: PROV SUM: Overlay with BAUDER Bauderflex System or equivalent inclusive of 15 year guarantee. Voids 1m2 to be deducted Overlay existing mineral surfaced felt with 2 layer torch-on built up felt roofing (including preparation). Code RF154 Up to 200 m2* | H28: 3.434 | J28: PROV SUM | K28: M2 | L28: 250 | M28: 52 | N28: 13000 | P28: =SUMIF('Planned Maint v6.2 CSV File'!A:A,J28,'Planned Maint v6.2 CSV File'!I:I) -> 0 | Q28: =IF(J28="PROV SUM",N28,L28*P28) -> 13000 | R28: =IF(J28="Prov Sum","",IF(MATCH(J28,'Packet Rate Library'!J:J,0),VLOOKUP(J28,'Packet Rate Library'!J:T,9,FALSE),"")) ->  | S28: =IF(R28>0,R28,P28) ->  | T28: =IF(J28="SC024",N28,IF(ISERROR(S28),"",IF(J28="PROV SUM",N28,L28*S28))) -> 13000
B29: REPB04223 | C29: ROOF | D29: D | E29: PROV SUM: Supply & lay vapour barrier felt incl enveloping insulation board Up to 200 m2* Code RF171 | H29: 3.435 | J29: PROV SUM | K29: M2 | L29: 250 | M29: 17 | N29: 4250 | P29: =SUMIF('Planned Maint v6.2 CSV File'!A:A,J29,'Planned Maint v6.2 CSV File'!I:I) -> 0 | Q29: 4250 | R29: =IF(J29="Prov Sum","",IF(MATCH(J29,'Packet Rate Library'!J:J,0),VLOOKUP(J29,'Packet Rate Library'!J:T,9,FALSE),"")) ->  | T29: 4250
B30: REPB04223 | C30: ROOF | D30: D | E30: PROV SUM: Supply & lay 120mm thick PIR insulation bonded to vapour barrier (in line with current building regulations) Code RF175 Up to 200 m2* | H30: 3.436 | J30: PROV SUM | K30: M2 | L30: 250 | M30: 32 | N30: 8000 | P30: =SUMIF('Planned Maint v6.2 CSV File'!A:A,J30,'Planned Maint v6.2 CSV File'!I:I) -> 0 | Q30: 8000 | R30: =IF(J30="Prov Sum","",IF(MATCH(J30,'Packet Rate Library'!J:J,0),VLOOKUP(J30,'Packet Rate Library'!J:T,9,FALSE),"")) ->  | T30: 8000
B31: REPB04223 | C31: ROOF | D31: D | E31: PROV SUM: Prepare & clean existing Rainwater Outlet and dress to same Code RF181 | H31: 3.437 | J31: PROV SUM | K31: Nr | L31: 10 | M31: 35 | N31: 350 | P31: =SUMIF('Planned Maint v6.2 CSV File'!A:A,J31,'Planned Maint v6.2 CSV File'!I:I) -> 0 | Q31: 350 | R31: =IF(J31="Prov Sum","",IF(MATCH(J31,'Packet Rate Library'!J:J,0),VLOOKUP(J31,'Packet Rate Library'!J:T,9,FALSE),"")) ->  | T31: 350
B32: REPB04223 | C32: ROOF | D32: D | E32: PROV SUM: Asphalt: Renew 20mm asphalt roof finish comprising isolating membrane, asphalt laid in two layers and bond to existing asphalt and finish smooth to match existing levels, and remove waste and debris. Code 2190AA | H32: 3.438 | J32: PROV SUM | K32: SM | L32: 25 | M32: 85.24 | N32: 2131 | P32: =SUMIF('Planned Maint v6.2 CSV File'!A:A,J32,'Planned Maint v6.2 CSV File'!I:I) -> 0 | Q32: 2131 | R32: =IF(J32="Prov Sum","",IF(MATCH(J32,'Packet Rate Library'!J:J,0),VLOOKUP(J32,'Packet Rate Library'!J:T,9,FALSE),"")) ->  | T32: 2131
B33: REPB04223 | C33: ROOF | D33: D | E33: PROV SUM: Tile: Overhaul clay plain tile roof, refix loose tiles, renew broken or missing tiles to match existing, redress, rewedge and repoint all flashings, aprons, chimney gutters etc., cut out and make good cement weather fillets, repoint in cement mortar (1:3) to all hips, ridges and verges, make good, clear away debris. Code 2013EA | H33: 3.439 | J33: PROV SUM | K33: SM | L33: 30 | M33: 30.56 | N33: 916.8 | P33: =SUMIF('Planned Maint v6.2 CSV File'!A:A,J33,'Planned Maint v6.2 CSV File'!I:I) -> 0 | Q33: 916.8 | R33: =IF(J33="Prov Sum","",IF(MATCH(J33,'Packet Rate Library'!J:J,0),VLOOKUP(J33,'Packet Rate Library'!J:T,9,FALSE),"")) ->  | T33: 916.8
B34: REPB04223 | C34: ROOF | D34: D | E34: PROV SUM: Roof Covering: Extra over any renewal or refixing of plain concrete roof tiles for renew roofing felt and battens. Code 2013RR | H34: 3.44 | J34: PROV SUM | K34: SM | L34: 10 | M34: 21.88 | N34: 218.8 | P34: =SUMIF('Planned Maint v6.2 CSV File'!A:A,J34,'Planned Maint v6.2 CSV File'!I:I) -> 0 | Q34: 218.8 | R34: =IF(J34="Prov Sum","",IF(MATCH(J34,'Packet Rate Library'!J:J,0),VLOOKUP(J34,'Packet Rate Library'!J:T,9,FALSE),"")) ->  | T34: 218.8
B35: REPB04223 | C35: ROOF | D35: D | E35: PROV SUM: Slate: Renew any size natural slates to roof fixed with clips or copper nails including double courses at eaves, verges cuttings, all labours renewing roofing felt and battens, and remove waste and debris. Code 2033AA | H35: 3.441 | J35: PROV SUM | K35: SM | L35: 6 | M35: 119.76 | N35: 718.56 | P35: =SUMIF('Planned Maint v6.2 CSV File'!A:A,J35,'Planned Maint v6.2 CSV File'!I:I) -> 0 | Q35: 718.56 | R35: =IF(J35="Prov Sum","",IF(MATCH(J35,'Packet Rate Library'!J:J,0),VLOOKUP(J35,'Packet Rate Library'!J:T,9,FALSE),"")) ->  | T35: 718.56
B36: REPB04223 | C36: WINDOWS | D36: H
B37: REPB04223 | C37: WINDOWS | D37: D | E37: Soft wood timber splice with resin; face splice repair method no. 5. Remove old and loose paint as necessary. Cut out decayed timber from windows and frames, piecing in or frame in new wrought softwood with resin to match existing. Leave ready to decorate. Splice not exc 500 to 1000mm | H37: 4.11 | J37: WIND017 | K37: Nr | L37: 22 | M37: 36.75 | N37: 808.5 | P37: =SUMIF('Planned Maint v6.2 CSV File'!A:A,J37,'Planned Maint v6.2 CSV File'!I:I) -> 34.9125 | Q37: =IF(J37="PROV SUM",N37,L37*P37) -> 768.075 | R37: =IF(J37="Prov Sum","",IF(MATCH(J37,'Packet Rate Library'!J:J,0),VLOOKUP(J37,'Packet Rate Library'!J:T,9,FALSE),"")) -> 0 | S37: =IF(R37>0,R37,P37) -> 34.9125 | T37: =IF(J37="SC024",N37,IF(ISERROR(S37),"",IF(J37="PROV SUM",N37,L37*S37))) -> 768.075
B38: REPB04223 | C38: WINDOWS | D38: D | E38: 7. Timber repair system; using window care dry fix/dry flex RP; Conservation Joint; Up to 50mm | H38: 4.13 | J38: WIND022 | K38: Nr | L38: 170 | M38: 4.25 | N38: 722.5 | P38: =SUMIF('Planned Maint v6.2 CSV File'!A:A,J38,'Planned Maint v6.2 CSV File'!I:I) -> 4.0375 | Q38: =IF(J38="PROV SUM",N38,L38*P38) -> 686.375 | R38: =IF(J38="Prov Sum","",IF(MATCH(J38,'Packet Rate Library'!J:J,0),VLOOKUP(J38,'Packet Rate Library'!J:T,9,FALSE),"")) -> 0 | S38: =IF(R38>0,R38,P38) -> 4.0375 | T38: =IF(J38="SC024",N38,IF(ISERROR(S38),"",IF(J38="PROV SUM",N38,L38*S38))) -> 686.375
B39: REPB04223 | C39: WINDOWS | D39: D | E39: 7. Timber repair system; using window care dry fix/dry flex RP; Conservation Joint; up to 100mm | H39: 4.14 | J39: WIND023 | K39: Nr | L39: 28 | M39: 6.75 | N39: 189 | P39: =SUMIF('Planned Maint v6.2 CSV File'!A:A,J39,'Planned Maint v6.2 CSV File'!I:I) -> 6.4125 | Q39: =IF(J39="PROV SUM",N39,L39*P39) -> 179.55 | R39: =IF(J39="Prov Sum","",IF(MATCH(J39,'Packet Rate Library'!J:J,0),VLOOKUP(J39,'Packet Rate Library'!J:T,9,FALSE),"")) -> 0 | S39: =IF(R39>0,R39,P39) -> 6.4125 | T39: =IF(J39="SC024",N39,IF(ISERROR(S39),"",IF(J39="PROV SUM",N39,L39*S39))) -> 179.55
B40: REPB04223 | C40: WINDOWS | D40: D | E40: Window: Overhaul timber sash window, renew staff and parting beads, take out sashes and later rehang on appropriate sized new undyed plaited nylon sash cords, renew pocket pieces, wedge and cramp loose sash frames, oil pulleys, ease and adjust sashes, remove, refit or renew ironmongery, rake out and renew defective putty and mastic, touch up decorations internally to match existing and prepare for redecoration externally, and remove waste and debris. | H40: 4.9 | J40: 3150CA | K40: NO | L40: 19 | M40: 35.61 | N40: 676.59 | P40: =SUMIF('Planned Maint v6.2 CSV File'!A:A,J40,'Planned Maint v6.2 CSV File'!I:I) -> 31.568265 | Q40: =IF(J40="PROV SUM",N40,L40*P40) -> 599.797035 | R40: =IF(J40="Prov Sum","",IF(MATCH(J40,'Packet Rate Library'!J:J,0),VLOOKUP(J40,'Packet Rate Library'!J:T,9,FALSE),"")) -> 0 | S40: =IF(R40>0,R40,P40) -> 31.568265 | T40: =IF(J40="SC024",N40,IF(ISERROR(S40),"",IF(J40="PROV SUM",N40,L40*S40))) -> 599.797035
B41: REPB04223 | C41: SCAFFOLD | D41: H
B42: REPB04223 | C42: SCAFFOLD | D42: D | E42: Standard Scaffold item: erect; dismantle; basic independent tied working scaffolding; 5 boards wide, including hire period; completely accessible; debris netting to all elevations; double boarded and polythene included as necessary, any fan(s) included as required; rope plus wheel for lifting operations; 3rd handrail included whenever necessary; as per applicable regulations (applies to up to 5 storeys). Measured up to second handrail and by the middle of the scaffold (equidistant from the inside/outside face) including design when required. Rate to include for 12 week hire | H42: 2.1 | J42: SC001 | K42: M2 | L42: 1124 | M42: 12.92 | N42: 14522.08 | P42: =SUMIF('Planned Maint v6.2 CSV File'!A:A,J42,'Planned Maint v6.2 CSV File'!I:I) -> 16.4084 | Q42: =IF(J42="PROV SUM",N42,L42*P42) -> 18443.0416 | R42: =IF(J42="Prov Sum","",IF(MATCH(J42,'Packet Rate Library'!J:J,0),VLOOKUP(J42,'Packet Rate Library'!J:T,9,FALSE),"")) -> 0 | S42: =IF(R42>0,R42,P42) -> 16.4084 | T42: =IF(J42="SC024",N42,IF(ISERROR(S42),"",IF(J42="PROV SUM",N42,L42*S42))) -> 18443.0416
B43: REPB04223 | C43: SCAFFOLD | D43: D | E43: Scaffold alarm - 1 x sounder, 2 x PIR 1 X key pad (Divided by Number of properties if continuous scaffolds) | H43: 2.5 | J43: SC005 | K43: unit | L43: 1 | M43: 420 | N43: 420 | P43: =SUMIF('Planned Maint v6.2 CSV File'!A:A,J43,'Planned Maint v6.2 CSV File'!I:I) -> 533.4 | Q43: 533.4 | R43: =IF(J43="Prov Sum","",IF(MATCH(J43,'Packet Rate Library'!J:J,0),VLOOKUP(J43,'Packet Rate Library'!J:T,9,FALSE),"")) -> 0 | S43: 533.4 | T43: 533.4
B44: REPB04223 | C44: SCAFFOLD | D44: D | E44: E/O for additional PIRS | H44: 2.6 | J44: SC007 | K44: unit | L44: 3 | M44: 50 | N44: 150 | P44: =SUMIF('Planned Maint v6.2 CSV File'!A:A,J44,'Planned Maint v6.2 CSV File'!I:I) -> 63.5 | Q44: 190.5 | R44: =IF(J44="Prov Sum","",IF(MATCH(J44,'Packet Rate Library'!J:J,0),VLOOKUP(J44,'Packet Rate Library'!J:T,9,FALSE),"")) -> 0 | S44: 63.5 | T44: 190.5
B45: REPB04223 | C45: SCAFFOLD | D45: D | E45: Installation of rubbish chute | H45: 2.18 | J45: SC018 | K45: lm | L45: 1 | M45: 45 | N45: 45 | P45: =SUMIF('Planned Maint v6.2 CSV File'!A:A,J45,'Planned Maint v6.2 CSV File'!I:I) -> 57.15 | Q45: 57.15 | R45: =IF(J45="Prov Sum","",IF(MATCH(J45,'Packet Rate Library'!J:J,0),VLOOKUP(J45,'Packet Rate Library'!J:T,9,FALSE),"")) -> 0 | S45: 57.15 | T45: 57.15
B46: REPB04223 | C46: SCAFFOLD | D46: D | E46: Erecting hoist mast- per unit- up to 5 storeys (including delivery, dismantle and gates) | H46: 2.26 | J46: SC026 | K46: unit | L46: 1 | M46: 1127.5 | N46: 1127.5 | P46: =SUMIF('Planned Maint v6.2 CSV File'!A:A,J46,'Planned Maint v6.2 CSV File'!I:I) -> 1431.925 | Q46: 1431.925 | R46: =IF(J46="Prov Sum","",IF(MATCH(J46,'Packet Rate Library'!J:J,0),VLOOKUP(J46,'Packet Rate Library'!J:T,9,FALSE),"")) -> 0 | S46: 1431.925 | T46: 1431.925
B47: REPB04223 | C47: SCAFFOLD | D47: D | E47: Parking bay suspensions per 2 bays fee. | H47: 2.28 | J47: SC028 | K47: day | L47: 120 | M47: 77.26 | N47: 9271.2 | P47: =SUMIF('Planned Maint v6.2 CSV File'!A:A,J47,'Planned Maint v6.2 CSV File'!I:I) -> 98.1202 | Q47: 11774.424 | R47: =IF(J47="Prov Sum","",IF(MATCH(J47,'Packet Rate Library'!J:J,0),VLOOKUP(J47,'Packet Rate Library'!J:T,9,FALSE),"")) -> 0 | S47: 98.1202 | T47: 11774.424
B48: REPB04223 | C48: SCAFFOLD | D48: D | E48: Suspension of Parking Bays administration Fee | H48: 2.29 | J48: SC029 | K48: item | L48: 1 | M48: 61.29 | N48: 61.29 | P48: =SUMIF('Planned Maint v6.2 CSV File'!A:A,J48,'Planned Maint v6.2 CSV File'!I:I) -> 77.8383 | Q48: 77.8383 | R48: =IF(J48="Prov Sum","",IF(MATCH(J48,'Packet Rate Library'!J:J,0),VLOOKUP(J48,'Packet Rate Library'!J:T,9,FALSE),"")) -> 0 | S48: 77.8383 | T48: 77.8383
B49: REPB04223 | C49: SCAFFOLD | D49: D | E49: Additional Hire if required - % per week of total scaffolding costs. This is to be applied in the event an agreed programme exceeding the duration set out above. An example would be large low level blocks of 4 storeys requiring a large programme duration | J49: SC024 | K49: unit | M49: 0.0483 | N49: =VLOOKUP(B49,'Project Overheads & Scaffold'!$W:$AI,13,FALSE) -> 0 | P49: =SUMIF('Planned Maint v6.2 CSV File'!A:A,J49,'Planned Maint v6.2 CSV File'!I:I) -> 0.0483 | Q49: 0 | R49: =IF(J49="Prov Sum","",IF(MATCH(J49,'Packet Rate Library'!J:J,0),VLOOKUP(J49,'Packet Rate Library'!J:T,9,FALSE),"")) ->  | T49: 0
B50: REPB04223 | C50: SCAFFOLD | D50: D | E50: Weekly hire (in event of programme extension in line with NEC opt A compensation event agreed). Hoist hire | J50: SC027 | K50: week | N50: ='Project Overheads & Scaffold'!AI30 -> 1432 | P50: =SUMIF('Planned Maint v6.2 CSV File'!A:A,J50,'Planned Maint v6.2 CSV File'!I:I) -> 227.33 | Q50: 0 | R50: =IF(J50="Prov Sum","",IF(MATCH(J50,'Packet Rate Library'!J:J,0),VLOOKUP(J50,'Packet Rate Library'!J:T,9,FALSE),"")) ->  | T50: =N50 -> 1432

Sheet 25 Troyes House
P1: =SUMIF('Planned Maint v6.2 CSV File'!A:A,J1,'Planned Maint v6.2 CSV File'!I:I) -> 0 | Q1: =IF(J1="PROV SUM",N1,L1*P1) -> 0 | R1: =IF(J1="Prov Sum","",IF(MATCH(J1,'Packet Rate Library'!J:J,0),VLOOKUP(J1,'Packet Rate Library'!J:T,9,FALSE),"")) ->  | S1: =IF(R1>0,R1,P1) ->  | T1: =IF(J1="SC024",N1,IF(ISERROR(S1),"",IF(J1="PROV SUM",N1,L1*S1))) -> 
A4: 1-25 Troyes House
A6: Requirement | B6: REPB11024 | C6: Requirement Type | D6: Rowtype (H=Header, D=Detail) | E6: Description | F6: Works Order Commencement Date | G6: Works Order Completion Date | H6: Specification Ref. Item No.'s | I6: Works Order Delivery Date | J6: SOR Code | K6: SOR Unit | L6: SOR Qty | M6: SOR Cost | N6: Total Cost | P6: Rate (max) | Q6: Cost (max) | R6: Modified price | S6: Tendered rate | T6: Tendered total
B8: REPB11024 | C8: ENERGY EFFICIENY | D8: H
B9: REPB11024 | C9: ENERGY EFFICIENY | D9: D | E9: Contractor to access and undertake survey of loft space in accordance with the Project Brief in order to assess level of current loft insulation. Including submittion of a survey report supported by photographic evidance to CM/PM. Where insulation levels are less then 200mm, Contractor to provide cost proposal to upgrade insulation in accordance with NHF SoR Planned Maintenance Version 6.2. | H9: 9.1 | J9: ADD001 | K9: IT | L9: 1 | P9: =SUMIF('Planned Maint v6.2 CSV File'!A:A,J9,'Planned Maint v6.2 CSV File'!I:I) -> 0 | Q9: =IF(J9="PROV SUM",N9,L9*P9) -> 0 | R9: =IF(J9="Prov Sum","",IF(MATCH(J9,'Packet Rate Library'!J:J,0),VLOOKUP(J9,'Packet Rate Library'!J:T,9,FALSE),"")) -> 0 | S9: =IF(R9>0,R9,P9) -> 0 | T9: =IF(J9="SC024",N9,IF(ISERROR(S9),"",IF(J9="PROV SUM",N9,L9*S9))) -> 0
B10: REPB11024 | C10: ENERGY EFFICIENY | D10: D | E10: Insulation:Supply and lay ne 270mm thick insulation quilt to loft area including gain access and moving/replacing contents within loft area in order to undertake work. Item 2270AA | H10: 9.2 | J10: 2270AA | K10: SM | L10: 46.04 | M10: 10.86 | N10: =M10*L10 -> 499.9944 | P10: =SUMIF('Planned Maint v6.2 CSV File'!A:A,J10,'Planned Maint v6.2 CSV File'!I:I) -> 8.688 | Q10: =IF(J10="PROV SUM",N10,L10*P10) -> 399.99552 | R10: =IF(J10="Prov Sum","",IF(MATCH(J10,'Packet Rate Library'!J:J,0),VLOOKUP(J10,'Packet Rate Library'!J:T,9,FALSE),"")) -> 0 | S10: =IF(R10>0,R10,P10) -> 8.688 | T10: =IF(J10="SC024",N10,IF(ISERROR(S10),"",IF(J10="PROV SUM",N10,L10*S10))) -> 399.99552
B11: REPB11024 | C11: ASBESTOS | D11: H
B12: REPB11024 | C12: ASBESTOS | D12: D | E12: Refurbishment and Demolition Survey to Full Property (with upto 5 Nr samples) , flat or house any size | H12: 1.3 | J12: A003 | K12: Item | L12: 1 | M12: 234 | N12: 234 | P12: =SUMIF('Planned Maint v6.2 CSV File'!A:A,J12,'Planned Maint v6.2 CSV File'!I:I) -> 222.3 | Q12: =IF(J12="PROV SUM",N12,L12*P12) -> 222.3 | R12: =IF(J12="Prov Sum","",IF(MATCH(J12,'Packet Rate Library'!J:J,0),VLOOKUP(J12,'Packet Rate Library'!J:T,9,FALSE),"")) -> 0 | S12: =IF(R12>0,R12,P12) -> 222.3 | T12: =IF(J12="SC024",N12,IF(ISERROR(S12),"",IF(J12="PROV SUM",N12,L12*S12))) -> 222.3
B13: REPB11024 | C13: COMMUNAL WORKS | D13: H
B14: REPB11024 | C14: EXTREP | D14: H
B15: REPB11024 | C15: EXTREP | D15: D | E15: Soffit:Wash down, fill in cracks and holes, sand smooth and apply two coats of smooth or textured masonry paint to rendered or concrete canopies or soffits. | H15: 6.187 | J15: 4356CA | K15: SM | L15: 20 | M15: 8.58 | N15: 171.6 | P15: =SUMIF('Planned Maint v6.2 CSV File'!A:A,J15,'Planned Maint v6.2 CSV File'!I:I) -> 7.293 | Q15: =IF(J15="PROV SUM",N15,L15*P15) -> 145.86 | R15: =IF(J15="Prov Sum","",IF(MATCH(J15,'Packet Rate Library'!J:J,0),VLOOKUP(J15,'Packet Rate Library'!J:T,9,FALSE),"")) -> 0 | S15: =IF(R15>0,R15,P15) -> 7.293 | T15: =IF(J15="SC024",N15,IF(ISERROR(S15),"",IF(J15="PROV SUM",N15,L15*S15))) -> 145.86
B16: REPB11024 | C16: EXTREP | D16: D | E16: Balustrading:Wire brush, prepare for and apply one undercoat and two coats of gloss paint on existing painted surfaces ornamental metal balustrading, railings or gates (measured both sides). | H16: 6.215 | J16: 4363EA | K16: SM | L16: 160 | M16: 16.08 | N16: 2572.8 | P16: =SUMIF('Planned Maint v6.2 CSV File'!A:A,J16,'Planned Maint v6.2 CSV File'!I:I) -> 13.668 | Q16: =IF(J16="PROV SUM",N16,L16*P16) -> 2186.88 | R16: =IF(J16="Prov Sum","",IF(MATCH(J16,'Packet Rate Library'!J:J,0),VLOOKUP(J16,'Packet Rate Library'!J:T,9,FALSE),"")) -> 0 | S16: =IF(R16>0,R16,P16) -> 13.668 | T16: =IF(J16="SC024",N16,IF(ISERROR(S16),"",IF(J16="PROV SUM",N16,L16*S16))) -> 2186.88
B17: REPB11024 | C17: EXTREP | D17: D | E17: PROVISIONAL SUM: Unidentified concrete repairs | H17: 6.399 | J17: PROV SUM | K17: SUM | L17: 1 | M17: 1000 | N17: 1000 | P17: =SUMIF('Planned Maint v6.2 CSV File'!A:A,J17,'Planned Maint v6.2 CSV File'!I:I) -> 0 | Q17: =IF(J17="PROV SUM",N17,L17*P17) -> 1000 | R17: =IF(J17="Prov Sum","",IF(MATCH(J17,'Packet Rate Library'!J:J,0),VLOOKUP(J17,'Packet Rate Library'!J:T,9,FALSE),"")) ->  | S17: =IF(R17>0,R17,P17) ->  | T17: =IF(J17="SC024",N17,IF(ISERROR(S17),"",IF(J17="PROV SUM",N17,L17*S17))) -> 1000
B18: REPB11024 | C18: ROOF | D18: H
B19: REPB11024 | C19: ROOF | D19: D | E19: PROVISIONAL SUM: Overlay with BAUDER Bauderflex System or equivalent | H19: 3.434 | J19: PROV SUM | K19: M2 | L19: 1 | M19: 41600 | N19: 41600 | P19: =SUMIF('Planned Maint v6.2 CSV File'!A:A,J19,'Planned Maint v6.2 CSV File'!I:I) -> 0 | Q19: =IF(J19="PROV SUM",N19,L19*P19) -> 41600 | S19: =IF(R19>0,R19,P19) -> 0 | T19: =IF(J19="SC024",N19,IF(ISERROR(S19),"",IF(J19="PROV SUM",N19,L19*S19))) -> 41600
B20: REPB11024 | C20: ROOF | D20: D | E20: PROVISIONAL SUM: Supply & lay 120mm thick PIR insulation bonded to vapour barrier (in line with current building regulations) | H20: 3.435 | J20: PROV SUM | K20: M2 | L20: 1 | M20: 25600 | N20: 25600 | P20: =SUMIF('Planned Maint v6.2 CSV File'!A:A,J20,'Planned Maint v6.2 CSV File'!I:I) -> 0 | Q20: =IF(J20="PROV SUM",N20,L20*P20) -> 25600 | R20: =IF(J20="Prov Sum","",IF(MATCH(J20,'Packet Rate Library'!J:J,0),VLOOKUP(J20,'Packet Rate Library'!J:T,9,FALSE),"")) ->  | S20: =IF(R20>0,R20,P20) ->  | T20: =IF(J20="SC024",N20,IF(ISERROR(S20),"",IF(J20="PROV SUM",N20,L20*S20))) -> 25600
B21: REPB11024 | C21: WINDOWS | D21: H
B22: REPB11024
B23: REPB11024 | C23: SCAFFOLD | D23: H
B24: REPB11024 | C24: SCAFFOLD | D24: D | E24: Standard Scaffold item: erect; dismantle; basic independent tied working scaffolding; 5 boards wide, including hire period; completely accessible; debris netting to all elevations; double boarded and polythene included as necessary, any fan(s) included as required; rope plus wheel for lifting operations; 3rd handrail included whenever necessary; as per applicable regulations (applies to up to 5 storeys). Measured up to second handrail and by the middle of the scaffold (equidistant from the inside/outside face) including design when required. Rate to include for 12 week hire | H24: 2.1 | J24: SC001 | K24: M2 | L24: 40 | M24: 12.92 | N24: 516.8 | P24: =SUMIF('Planned Maint v6.2 CSV File'!A:A,J24,'Planned Maint v6.2 CSV File'!I:I) -> 16.4084 | Q24: =IF(J24="PROV SUM",N24,L24*P24) -> 656.336 | R24: =IF(J24="Prov Sum","",IF(MATCH(J24,'Packet Rate Library'!J:J,0),VLOOKUP(J24,'Packet Rate Library'!J:T,9,FALSE),"")) -> 0 | S24: =IF(R24>0,R24,P24) -> 16.4084 | T24: =IF(J24="SC024",N24,IF(ISERROR(S24),"",IF(J24="PROV SUM",N24,L24*S24))) -> 656.336
B25: REPB11024 | C25: SCAFFOLD | D25: D | E25: Scaffold alarm - 1 x sounder, 2 x PIR 1 X key pad (Divided by Number of properties if continuous scaffolds) | H25: 2.5 | J25: SC005 | K25: unit | L25: 1 | M25: 420 | N25: 420 | P25: =SUMIF('Planned Maint v6.2 CSV File'!A:A,J25,'Planned Maint v6.2 CSV File'!I:I) -> 533.4 | Q25: 533.4 | R25: =IF(J25="Prov Sum","",IF(MATCH(J25,'Packet Rate Library'!J:J,0),VLOOKUP(J25,'Packet Rate Library'!J:T,9,FALSE),"")) -> 0 | S25: 533.4 | T25: 533.4
B26: REPB11024 | C26: SCAFFOLD | D26: D | E26: Installation of rubbish chute | H26: 2.18 | J26: SC018 | K26: lm | L26: 1 | M26: 45 | N26: 45 | P26: =SUMIF('Planned Maint v6.2 CSV File'!A:A,J26,'Planned Maint v6.2 CSV File'!I:I) -> 57.15 | Q26: 57.15 | R26: =IF(J26="Prov Sum","",IF(MATCH(J26,'Packet Rate Library'!J:J,0),VLOOKUP(J26,'Packet Rate Library'!J:T,9,FALSE),"")) -> 0 | S26: 57.15 | T26: 57.15
